Workbook

Sheet Calendrier
A1: GRAND JEU NEUCHATELOIS | J1: mettre votre club en évidence | L1: 2023 | M1: 2022 | N1: 2021 | O1: 2020 | P1: 2019 | Q1: 2018 | R1: 2017 | S1: 2016 | T1: 2015 | U1: 2014 | V1: 2013 | W1: 2012
A2: Entraînements | E2: =CONCATENATE("Compétitions ",YEAR(B6)) -> Compétitions 2024
A4: Challenge 80ème | E4: Jeu : | F4: L'Epi | H4: Marquage | L4: La Chaux-de-fonds | O4: Evologia | P4: La Vue-des-Alpes | Q4: La Chaux-de-Fonds | R4: L'Epi | S4: La Vue-des-Alpes | T4: La Chaux-de-Fonds | U4: La Chaux-de-Fonds | V4: L'Epi | W4: La Vue-des-Alpes
A6: Lundi | B6: 2024-03-11 | C6: Le Locle | E6: Lundi | F6: =B6+7 -> 2024-03-18 | G6: Le Locle | H6: L'Epi
A7: Mardi | B7: =B6+1 -> 2024-03-12 | C7: L'Epi | E7: Mardi | F7: =F6+1 -> 2024-03-19 | G7: L'Epi | H7: La Chaux-de-Fonds
A8: Mercredi | B8: =B7+1 -> 2024-03-13 | C8: La Chaux-de-Fonds | E8: Mercredi | F8: =F7+1 -> 2024-03-20 | G8: La Chaux-de-Fonds | H8: L'Epi
A9: Jeudi | B9: =B8+1 -> 2024-03-14 | C9: La Vue-des-Alpes | E9: Jeudi | F9: =F8+1 -> 2024-03-21 | G9: La Vue-des-Alpes | H9: L'Epi
A11: Challenge - ÉTÉ (ex Impartial) | E11: Jeu : | F11: La Chaux-de-Fonds | H11: Marquage | J11: Nbre marquage | L11: Le Locle | P11: La Chaux-de-Fonds | Q11: Evologia | R11: La Chaux-de-Fonds | S11: Le Locle | T11: L'Epi | U11: La Vue-des-Alpes | V11: La Chaux-de-Fonds | W11: Le Locle
A13: Lundi | B13: 2024-04-15 | C13: Le Locle | E13: Lundi | F13: =B13+7 -> 2024-04-22 | G13: Le Locle | H13: La Chaux-de-Fonds | J13: =Qui!A201 -> La Chaux-de-Fonds | K13: =COUNTIF(H$6:H$87,J13)-COUNTIF(H$20:H$23,J13) -> 10
A14: Mardi | B14: =B13+1 -> 2024-04-16 | C14: L'Epi | E14: Mardi | F14: =F13+1 -> 2024-04-23 | G14: L'Epi | H14: La Chaux-de-Fonds | J14: =Qui!A202 -> La Vue-des-Alpes | K14: =COUNTIF(H$6:H$87,J14)-COUNTIF(H$20:H$23,J14) -> 7
A15: Mercredi | B15: =B14+1 -> 2024-04-17 | C15: La Chaux-de-Fonds | E15: Mercredi | F15: =F14+1 -> 2024-04-24 | G15: La Chaux-de-Fonds | H15: L'Epi | J15: =Qui!A203 -> Le Locle | K15: =COUNTIF(H$6:H$87,J15)-COUNTIF(H$20:H$23,J15) -> 6
A16: Jeudi | B16: =B15+1 -> 2024-04-18 | C16: La Vue-des-Alpes | E16: Jeudi | F16: =F15+1 -> 2024-04-25 | G16: La Vue-des-Alpes | H16: La Chaux-de-Fonds | J16: =Qui!A204 -> L'Epi | K16: =COUNTIF(H$6:H$87,J16)-COUNTIF(H$20:H$23,J16) -> 9
A18: COUPE SUISSE | E18: Jeu : | F18: Evologia | H18: Les clubs marquent l'un pour l'autre | L18: Grand-Sommartel | M18: Evologia | P18: Evologia | Q18: Grand-Sommartel | R18: Grand-Sommartel | S18: La Chaux-de-Fonds | T18: Le Locle | U18: L'Epi | V18: La Vue-des-Alpes | W18: La Chaux-de-Fonds
A20: Lundi | B20: 2024-06-17 | C20: Le Locle | E20: Mercredi | F20: =B22+7 -> 2024-06-26 | G20: La Chaux-de-Fonds | H20: L'Epi
A21: Mardi | B21: =B20+1 -> 2024-06-18 | C21: L'Epi | E21: Jeudi | F21: =F20+1 -> 2024-06-27 | G21: Le Locle | H21: La Vue-des-Alpes
A22: Mercredi | B22: =B21+1 -> 2024-06-19 | C22: La Chaux-de-Fonds | E22: Les 16 meilleurs sont qualifiés et jouent le Tour Final dès 13h°°
A23: Jeudi | B23: =B22+1 -> 2024-06-20 | C23: La Vue-des-Alpes | E23: Samedi | F23: =F21+2 -> 2024-06-29
E24: Inauguration officielle pour les clubistes du nouveau pont
A25: Challenge - ÉTÉ (ex Impartial) | E25: Jeu : | H25: Marquage | M25: Le Locle | P25: Grand-Sommartel | Q25: La Vue-des-Alpes | R25: Le Locle | S25: L'Epi | T25: La Vue-des-Alpes | U25: Le Locle | V25: Le Locle | W25: L'Epi
A27: Lundi | B27: 2023-05-01 | C27: Le Locle | E27: Lundi | F27: =B27+7 -> 2023-05-08 | G27: Le Locle
A28: Mardi | B28: =B27+1 -> 2023-05-02 | C28: L'Epi | E28: Mardi | F28: =F27+1 -> 2023-05-09 | G28: L'Epi
A29: Mercredi | B29: =B28+1 -> 2023-05-03 | C29: La Chaux-de-Fonds | E29: Mercredi | F29: =F28+1 -> 2023-05-10 | G29: La Chaux-de-Fonds
A30: Jeudi | B30: =B29+1 -> 2023-05-04 | C30: La Vue-des-Alpes | E30: Jeudi | F30: =F29+1 -> 2023-05-11 | G30: La Vue-des-Alpes
J31: Nbre jeu
A32: Les N° de téléphone des Responsables des Jeux | D32: Toutes les compétitions, 7.-- le requillage _______________________________ Président de l'intercantonale Claude-Alain Vuillème 079 448 43 01 sauf la Coupe Suisse 5.-- le requillage | G32: Les feuilles des résultats des compétitions sont à transmettre par WhatsApp à : Christian Monnier Rue des Marais 46 La Chaux-de-Fonds 079 378 43 49 Merci de cadrer correctement vos photos
A33: L'Epi | B33: Blaise MORES | C33: 079 704 08 91 | J33: =Qui!B201 -> Evologia | K33: =COUNTIF(F$4:F$88,J33) -> 2
A34: Le Locle | B34: Lucien TYNOWSKI | C34: 032 931 47 02 | J34: =Qui!B202 -> Grand-Sommartel | K34: 1
A35: La Chaux-de-Fonds | B35: Christian MONNIER | C35: 079 378 43 49 | J35: =Qui!B203 -> La Chaux-de-Fonds | K35: 2
A36: La Vue-des-Alpes | B36: Hervé OPPLIGER | C36: 079 301 51 15 | J36: =Qui!B204 -> La Vue-des-Alpes | K36: 1
A37: Evologia | B37: Daniel PELLATON (la clé Henri-Calame 2) | C37: 079 675 72 71 | J37: =Qui!B205 -> Le Locle | K37: 1
A38: Grand-Sommartel | B38: Lucien TYNOWSKI | C38: 032 931 47 02 | J38: =Qui!B206 -> L'Epi | K38: 2
A39: Fête La Terre - samedi & dimanche 24 et 25 août 2024 Requillage par les clubistes - 3 personnes (Samedi 11h-14h L'Epi / 14h-17h Chx-Fds // Dimanche 11h-13h30 La Vue / 13h30-16h Locle) Inauguration du Ballenberg - Lundi du Jeune 16 septembre 2024 | J39: =Qui!B207 -> L'Erguel | K39: 0
A40: Championnat 1ère manche | E40: Jeu : | F40: Grand-Sommartel | H40: Marquage | L40: Grand-Sommartel | M40: Grand-Sommartel | N40: Grand-Sommartel | O40: Le Locle | P40: Grand-Sommartel | Q40: Grand-Sommartel | R40: Le Locle | S40: Le Locle | T40: Le Locle | U40: Le Locle | V40: Le Locle | W40: Le Locle
A42: Lundi | B42: 2024-08-19 | C42: Le Locle | E42: Lundi | F42: =B42+7 -> 2024-08-26 | G42: Le Locle | H42: La Vue-des-Alpes
A43: Mardi | B43: =B42+1 -> 2024-08-20 | C43: L'Epi | E43: Mardi | F43: =F42+1 -> 2024-08-27 | G43: L'Epi | H43: Le Locle
A44: Mercredi | B44: =B43+1 -> 2024-08-21 | C44: La Chaux-de-Fonds | E44: Mercredi | F44: =F43+1 -> 2024-08-28 | G44: La Chaux-de-Fonds | H44: L'Epi
A45: Jeudi | B45: =B44+1 -> 2024-08-22 | C45: La Vue-des-Alpes | E45: Jeudi | F45: =F44+1 -> 2024-08-29 | G45: La Vue-des-Alpes | H45: La Chaux-de-Fonds
A47: Championnat 2ème manche | E47: Jeu : | F47: Le Locle | H47: Marquage | L47: Le Locle | M47: Le Locle | N47: Grand-Sommartel | O47: Grand-Sommartel | P47: Le Locle | Q47: Le Locle | R47: Grand-Sommartel | S47: L'Epi | T47: La Vue-des-Alpes | U47: L'Epi | V47: Evologia | W47: L'Epi
A49: Lundi | B49: 2024-09-02 | C49: Le Locle | E49: Lundi | F49: =B49+7 -> 2024-09-09 | G49: Le Locle | H49: La Chaux-de-Fonds
A50: Mardi | B50: =B49+1 -> 2024-09-03 | C50: L'Epi | E50: Mardi | F50: =F49+1 -> 2024-09-10 | G50: L'Epi | H50: Le Locle
A51: Mercredi | B51: =B50+1 -> 2024-09-04 | C51: La Chaux-de-Fonds | E51: Mercredi | F51: =F50+1 -> 2024-09-11 | G51: La Chaux-de-Fonds | H51: Le Locle
A52: Jeudi | B52: =B51+1 -> 2024-09-05 | C52: La Vue-des-Alpes | E52: Jeudi | F52: =F51+1 -> 2024-09-12 | G52: La Vue-des-Alpes | H52: Le Locle
A54: Championnat 3ème manche | E54: Jeu : | F54: Evologia | H54: Marquage | L54: L'Epi | M54: L'Epi | N54: Le Locle | O54: L'Erguel | P54: La Vue-des-Alpes | Q54: L'Epi | R54: Evologia | S54: La Chaux-de-Fonds | T54: La Chaux-de-Fonds | U54: Evologia | V54: La Vue-des-Alpes | W54: La Vue-des-Alpes
A56: Lundi | B56: 2024-09-23 | C56: Le Locle | E56: Lundi | F56: =B56+7 -> 2024-09-30 | G56: Le Locle | H56: La Chaux-de-Fonds
A57: Mardi | B57: =B56+1 -> 2024-09-24 | C57: L'Epi | E57: Mardi | F57: =F56+1 -> 2024-10-01 | G57: L'Epi | H57: La Vue-des-Alpes
A58: Mercredi | B58: =B57+1 -> 2024-09-25 | C58: La Chaux-de-Fonds | E58: Mercredi | F58: =F57+1 -> 2024-10-02 | G58: La Chaux-de-Fonds | H58: Le Locle
A59: Jeudi | B59: =B58+1 -> 2024-09-26 | C59: La Vue-des-Alpes | E59: Jeudi | F59: =F58+1 -> 2024-10-03 | G59: La Vue-des-Alpes | H59: L'Epi
A61: Championnat 4ème manche | E61: Jeu : | F61: La Vue-des-Alpes | H61: Marquage | L61: La Chaux-de-Fonds | M61: La Chaux-de-Fonds | N61: L'Epi | O61: L'Epi | P61: Evologia | Q61: Evologia | R61: La Vue-des-Alpes | S61: La Vue-des-Alpes | T61: Evologia | U61: La Chaux-de-Fonds | V61: La Chaux-de-Fonds | W61: Jeu erguel
A63: Lundi | B63: 2024-10-21 | C63: Le Locle | E63: Lundi | F63: =B63+7 -> 2024-10-28 | G63: Le Locle | H63: La Vue-des-Alpes
A64: Mardi | B64: =B63+1 -> 2024-10-22 | C64: L'Epi | E64: Mardi | F64: =F63+1 -> 2024-10-29 | G64: L'Epi | H64: La Vue-des-Alpes
A65: Mercredi | B65: =B64+1 -> 2024-10-23 | C65: La Chaux-de-Fonds | E65: Mercredi | F65: =F64+1 -> 2024-10-30 | G65: La Chaux-de-Fonds | H65: La Vue-des-Alpes
A66: Jeudi | B66: =B65+1 -> 2024-10-24 | C66: La Vue-des-Alpes | E66: Jeudi | F66: =F65+1 -> 2024-10-31 | G66: La Vue-des-Alpes | H66: Le Locle
A68: Championnat 5ème manche | D68: Vauquille 7ème 24-25 octobre | E68: Jeu : | F68: L'Epi | H68: Marquage | L68: La Vue des Alpes | M68: Evologia | N68: La Chaux-de-Fonds | O68: Evologia | P68: L'Epi | Q68: La Vue-des-Alpes | R68: La Chaux-de-Fonds | S68: Evologia | T68: L'Epi | U68: La Vue-des-Alpes | V68: L'Epi
A70: Lundi | B70: 2024-11-04 | C70: Le Locle | E70: Lundi | F70: =B70+7 -> 2024-11-11 | G70: Le Locle | H70: L'Epi
A71: Mardi | B71: =B70+1 -> 2024-11-05 | C71: L'Epi | E71: Mardi | F71: =F70+1 -> 2024-11-12 | G71: L'Epi | H71: La Vue-des-Alpes
A72: Mercredi | B72: =B71+1 -> 2024-11-06 | C72: La Chaux-de-Fonds | E72: Mercredi | F72: =F71+1 -> 2024-11-13 | G72: La Chaux-de-Fonds | H72: L'Epi
A73: Jeudi | B73: =B72+1 -> 2024-11-07 | C73: La Vue-des-Alpes | E73: Jeudi | F73: =F72+1 -> 2024-11-14 | G73: La Vue-des-Alpes | H73: L'Epi
A75: Championnat 6ème manche | E75: Jeu : | F75: La Chaux-de-Fonds | H75: Marquage | L75: Erguel | N75: Evologia | O75: La Chaux-de-Fonds | P75: La Chaux-de-Fonds | Q75: La Chaux-de-Fonds | R75: L'Epi | S75: Jeu erguel | T75: Jeu erguel | U75: Jeu erguel | V75: Jeu erguel
A77: Lundi | B77: 2024-11-18 | C77: Le Locle | E77: Lundi | F77: =B77+7 -> 2024-11-25 | G77: Le Locle | H77: La Chaux-de-Fonds
A78: Mardi | B78: =B77+1 -> 2024-11-19 | C78: L'Epi | E78: Mardi | F78: =F77+1 -> 2024-11-26 | G78: L'Epi | H78: La Chaux-de-Fonds
A79: Mercredi | B79: =B78+1 -> 2024-11-20 | C79: La Chaux-de-Fonds | E79: Mercredi | F79: =F78+1 -> 2024-11-27 | G79: La Chaux-de-Fonds | H79: La Vue-des-Alpes
A80: Jeudi | B80: =B79+1 -> 2024-11-21 | C80: La Vue-des-Alpes | E80: Jeudi | F80: =F79+1 -> 2024-11-28 | G80: La Vue-des-Alpes | H80: La Chaux-de-Fonds
E82: Jeu : | H82: Marquage | N82: La Vue-des-Alpes | O82: La Vue-des-Alpes
A84: Lundi | C84: Le Locle | E84: Lundi | F84: =B84+7 -> 1900-01-07 | G84: Le Locle
A85: Mardi | B85: =B84+1 -> 1900-01-01 | C85: L'Epi | E85: Mardi | F85: =F84+1 -> 1900-01-08 | G85: L'Epi
A86: Mercredi | B86: =B85+1 -> 1900-01-02 | C86: La Chaux-de-Fonds | E86: Mercredi | F86: =F85+1 -> 1900-01-09 | G86: La Chaux-de-Fonds
A87: Jeudi | B87: =B86+1 -> 1900-01-03 | C87: La Vue-des-Alpes | E87: Jeudi | F87: =F86+1 -> 1900-01-10 | G87: La Vue-des-Alpes
A90: =CONCATENATE("Rappel pour le Championnat neuchâtelois: ",CHAR(10)," individuel - seuls comptent les ",Qui!$A$402," meilleurs résultats",CHAR(10)," par club - seuls comptent les ",Qui!$B$402," meilleurs résultats") -> Rappel pour le Championnat neuchâtelois: individuel - seuls comptent les 5 meilleurs résultats par club - seuls comptent les 5 meilleurs résultats
A92: Remise des prix | C92: vendredi 13 décembre 2024 à 19h00 précise à La Cheminée
A93: Organisation | C93: La Chaux-de-Fonds | L93: Le Locle | M93: L'Epi | N93: La Vue-des-Alpes | O93: La Chaux-de-Fonds | P93: La Chaux-de-Fonds | Q93: Le Locle | R93: L'Epi | S93: La Vue-des-Alpes | T93: La Chaux-de-Fonds | U93: Le Locle | V93: L'Epi | W93: La Vue-des-Alpes
F204: Duplicata Colonne A technique

Sheet Qui (hidden)
A196: Inventaire des Club, Jeux, choix des couleurs
A197: Club Texte | B197: Pour lui-même | C197: Pour lui-même | D197: Choix de la couleur club pour chque club | E197: Couleur club texte | F197: Duplicata Colonne A technique | I197: Lien entre n° couleur et texte ==> mise en forme conditionnelle
E198: Non modifiable | F198: Non modifiable | G198: Non modifiable | I198: Non modifiable | J198: Non modifiable
A200: Les_Clubs | B200: Les_Jeux | C200: Les_compétitions | D200: CLUB n° | E200: Couleur | F200: Copie_Les_Clubs | G200: Nb joueurs | I200: Définition des couleurs
A201: La Chaux-de-Fonds | B201: Evologia | C201: Challenge - ÉTÉ (ex Impartial) | D201: 1 | E201: =(VLOOKUP(Liste319[[#This Row],[CLUB n°]],I201:J205,2,0)) -> bleu | F201: =Liste117[[#This Row],[Les_Clubs]] -> La Chaux-de-Fonds | G201: =COUNTIF(E$301:E$355,A201) -> 10 | I201: 1 | J201: bleu
A202: La Vue-des-Alpes | B202: Grand-Sommartel | C202: Challenge 80ème | D202: 2 | E202: =(VLOOKUP(Liste319[[#This Row],[CLUB n°]],I202:J206,2,0)) -> grisé | F202: =Liste117[[#This Row],[Les_Clubs]] -> La Vue-des-Alpes | G202: =COUNTIF(E$301:E$355,A202) -> 6 | I202: 2 | J202: grisé
A203: Le Locle | B203: La Chaux-de-Fonds | C203: Challenge ÉTÉ | D203: 3 | E203: =(VLOOKUP(Liste319[[#This Row],[CLUB n°]],I203:J207,2,0)) -> vert | F203: =Liste117[[#This Row],[Les_Clubs]] -> Le Locle | G203: =COUNTIF(E$301:E$355,A203) -> 6 | I203: 3 | J203: vert
A204: L'Epi | B204: La Vue-des-Alpes | C204: Challenge HIVER | D204: 4 | E204: =(VLOOKUP(Liste319[[#This Row],[CLUB n°]],I204:J208,2,0)) -> jaune | F204: =Liste117[[#This Row],[Les_Clubs]] -> L'Epi | G204: =COUNTIF(E$301:E$355,A204) -> 9 | I204: 4 | J204: jaune
B205: Le Locle | C205: Championnat 1ère manche | D205: 5 | E205: =(VLOOKUP(Liste319[[#This Row],[CLUB n°]],I205:J209,2,0)) -> rouge (réserve) | F205: =Liste117[[#This Row],[Les_Clubs]] -> 0 | I205: 5 | J205: rouge (réserve)
B206: L'Epi | C206: Championnat 2ème manche | F206: =Liste117[[#This Row],[Les_Clubs]] -> 0 | J206: le reste est blanc
B207: L'Erguel | C207: Championnat 3ème manche | F207: =Liste117[[#This Row],[Les_Clubs]] -> 0
C208: Championnat 4ème manche | F208: =Liste117[[#This Row],[Les_Clubs]] -> 0
C209: Championnat 5ème manche | F209: =Liste117[[#This Row],[Les_Clubs]] -> 0
C210: Championnat 6ème manche | F210: =Liste117[[#This Row],[Les_Clubs]] -> 0 | G210: Total clubistes
C211: Championnat 7ème manche | F211: =Liste117[[#This Row],[Les_Clubs]] -> 0 | G211: =SUM(G201:G210) -> 31
C212: COUPE SUISSE
A296: Les Membres
C298: Non modifiable | D298: Non modifiable | F298: Non modifiable | G298: Non modifiable | H298: Non modifiable
A300: Nom | B300: Prenom | C300: NomPrenom | D300: NP | E300: ClubNom | F300: ClubNo | G300: Nom dupl | H300: Prénom dupl | I300: Rue | J300: NPA | K300: Ville | L300: Tél | M300: Courriel | N300: Date de naissance | O300: Joueur depuis | P300: J'utilise Whatsapp
A301: Aeschlimann | B301: Loris | C301: =CONCATENATE(A301," ",B301) -> Aeschlimann Loris | D301: =CONCATENATE(A301,B301) -> AeschlimannLoris | E301: L'Epi | F301: =(VLOOKUP(E301,Qui!$A$201:$D$211,4)) -> 4 | G301: =A301 -> Aeschlimann | H301: =B301 -> Loris | I301: Les Crêts 5 | J301: 2056 | K301: Dombresson | L301: +41 79 325 07 85 | M301: Loris.aeschlimann@gmail.com | N301: 1990-06-19 | O301: 2022-01-01 | P301: oui
A302: Bart | B302: Fabien | C302: Bart Fabien | D302: BartFabien | E302: Le Locle | F302: =(VLOOKUP(E302,Qui!$A$201:$D$211,4)) -> 3 | G302: Bart | H302: Fabien | I302: La Sagne Eglise 145a | J302: 2314 | K302: La Sagne | L302: +41796958609 | M302: francoise.bart@net2000.ch | O302: 1993-01-01
A303: Billod-Morel | B303: Gérald | C303: Billod-Morel Gérald | D303: Billod-MorelGérald | E303: La Chaux-de-Fonds | F303: =(VLOOKUP(E303,Qui!$A$201:$D$211,4)) -> 1 | G303: Billod-Morel | H303: Gérald | I303: Cornes-Morel 41 | J303: 2300 | K303: La Chaux-de-Fonds | L303: +41798221983 | M303: geraldbillod@gmail.com | N303: 1971-08-01 | O303: 2017-01-01 | P303: oui
A304: Bourquin | B304: Willy | C304: Bourquin Willy | D304: BourquinWilly | E304: L'Epi | F304: =(VLOOKUP(E304,Qui!$A$201:$D$211,4)) -> 4 | G304: Bourquin | H304: Willy | I304: Les Vieux-Prés 2 | J304: 2054 | K304: Les Vieux-Prés | L304: +41 79 125 29 97 | M304: wbourquin@bluewin.ch | N304: 1944-03-22 | O304: 2012-01-01 | P304: oui
A305: Cassi | B305: Alain | C305: Cassi Alain | D305: CassiAlain | E305: Le Locle | F305: =(VLOOKUP(E305,Qui!$A$201:$D$211,4)) -> 3 | G305: Cassi | H305: Alain | I305: les Bulles 18 | J305: 2300 | K305: La Chaux-de-Fonds | L305: +41329681245 | M305: alainvero@gmail.com | O305: D 1990
A306: Chassot | B306: Yves | C306: Chassot Yves | D306: ChassotYves | E306: La Vue-des-Alpes | F306: =(VLOOKUP(E306,Qui!$A$201:$D$211,4)) -> 2 | G306: Chassot | H306: Yves | I306: Combes 3 | J306: 2042 | K306: Fontaines | L306: +41 79 482 96 88 | M306: yves.chassot@gmail.com | N306: 1971-02-05 | O306: 2000-01-01 | P306: oui
A307: Coppet | B307: Romain | C307: Coppet Romain | D307: CoppetRomain | E307: Le Locle | F307: =(VLOOKUP(E307,Qui!$A$201:$D$211,4)) -> 3 | G307: Coppet | H307: Romain | I307: Philippe-Henri-Matthey 15 | J307: 2300 | K307: La Chaux-de-Fonds
A308: Dick | B308: Pierre-Alain | C308: Dick Pierre-Alain | D308: DickPierre-Alain | E308: La Vue-des-Alpes | F308: =(VLOOKUP(E308,Qui!$A$201:$D$211,4)) -> 2 | G308: Dick | H308: Pierre-Alain | I308: La Biche 1 | J308: 2054 | K308: Les Vieux-Prés | L308: * 032 853 27 40 +41 79 796 32 34 | M308: pierre-alain.dick@ne.ch | N308: 1967-07-27 | O308: 1997-01-01 | P308: oui
A309: Dubois | B309: Emmanuel | C309: Dubois Emmanuel | D309: DuboisEmmanuel | E309: La Chaux-de-Fonds | F309: =(VLOOKUP(E309,Qui!$A$201:$D$211,4)) -> 1 | G309: Dubois | H309: Emmanuel | I309: Route des Provins 2 | J309: 2087 | K309: Cornaux | L309: +41798980701 | M309: emmanuel.dubois93@gmail.com | N309: 1993-04-05 | O309: 2019-01-01 | P309: oui
A310: Dubois | B310: Eric | C310: Dubois Eric | D310: DuboisEric | E310: La Chaux-de-Fonds | F310: =(VLOOKUP(E310,Qui!$A$201:$D$211,4)) -> 1 | G310: Dubois | H310: Eric | I310: Route de Cottendart 15 | J310: 2013 | K310: Colombier | L310: +41763160852 | M310: eric.dubois311@gmail.com | N310: 1972-03-26 | O310: 2016-01-01 | P310: oui
A311: Dubois | B311: Marcel | C311: Dubois Marcel | D311: DuboisMarcel | E311: La Chaux-de-Fonds | F311: =(VLOOKUP(E311,Qui!$A$201:$D$211,4)) -> 1 | G311: Dubois | H311: Marcel | I311: Rue du Locle 32 | J311: 2300 | K311: La Chaux-de-Fonds | L311: +41764233384 +41329144618 | N311: 1994-12-14 | O311: 1970-01-01
A312: Favre | B312: Daniel | C312: Favre Daniel | D312: FavreDaniel | E312: Le Locle | F312: =(VLOOKUP(E312,Qui!$A$201:$D$211,4)) -> 3 | G312: Favre | H312: Daniel | I312: Rue Jardinière 113 | J312: 2300 | K312: La Chaux-de-Fonds | L312: +41794458191 +41329134030 | O312: 2010-01-01 | P312: oui
A313: Frutiger | B313: Bertrand | C313: Frutiger Bertrand | D313: FrutigerBertrand | E313: L'Epi | F313: =(VLOOKUP(E313,Qui!$A$201:$D$211,4)) -> 4 | G313: Frutiger | H313: Bertrand | I313: Impasse des Saules 1 | J313: 2053 | K313: Cernier | L313: +41794011093 +41328532139 | O313: 2010-01-01
A314: Haussener | B314: Philippe | C314: Haussener Philippe | D314: HaussenerPhilippe | E314: La Vue-des-Alpes | F314: =(VLOOKUP(E314,Qui!$A$201:$D$211,4)) -> 2 | G314: Haussener | H314: Philippe | I314: Chemin de la Pépinière 1 | J314: 2046 | K314: Fontaines | L314: +41 79 213 81 65 | M314: haussenerphv@gmail.com | N314: 1968-01-03 | O314: 2014-01-01 | P314: oui
A315: Jean-Mairet | B315: Jean-Claude | C315: Jean-Mairet Jean-Claude | D315: Jean-MairetJean-Claude | E315: La Chaux-de-Fonds | F315: =(VLOOKUP(E315,Qui!$A$201:$D$211,4)) -> 1 | G315: Jean-Mairet | H315: Jean-Claude | I315: Progrès 103 | J315: 2300 | K315: La Chaux-de-Fonds | L315: +41329135462 | N315: 29.05.194 | O315: 2015-01-01
A316: Jeanneret | B316: Louis | C316: Jeanneret Louis | D316: JeanneretLouis | E316: La Vue-des-Alpes | F316: =(VLOOKUP(E316,Qui!$A$201:$D$211,4)) -> 2 | G316: Jeanneret | H316: Louis | I316: Rue de la Promenade 14 | J316: 2052 | K316: Fontainemelon | L316: +41 79 796 39 19 +41328536368 | M316: louis.jeanneret@ne.ch | N316: 1976-04-02 | O316: 2001-01-01 | P316: oui
A317: Kemajl | B317: Fetahi | C317: Kemajl Fetahi | D317: KemajlFetahi | E317: Le Locle | F317: =(VLOOKUP(E317,Qui!$A$201:$D$211,4)) -> 3 | G317: Kemajl | H317: Fetahi | I317: Rue de l'Helvétie 23 | J317: 2300 | K317: La Chaux-de-Fonds | O317: 2015-01-01
A318: Matthey | B318: Pierre | C318: Matthey Pierre | D318: MattheyPierre | E318: La Chaux-de-Fonds | F318: =(VLOOKUP(E318,Qui!$A$201:$D$211,4)) -> 1 | G318: Matthey | H318: Pierre | I318: Rue des Bouleaux 1 | J318: 2300 | K318: La Chaux-de-Fonds | L318: +41793489512 | M318: pierrotmatthey@bluewin.ch | N318: 1951-09-27 | O318: 1972-01-01 | P318: non
A319: Monnier | B319: Christian | C319: Monnier Christian | D319: MonnierChristian | E319: La Chaux-de-Fonds | F319: =(VLOOKUP(E319,Qui!$A$201:$D$211,4)) -> 1 | G319: Monnier | H319: Christian | I319: Rue du Marais 46 | J319: 2300 | K319: La Chaux-de-Fonds | L319: +41793784349 +41329681347 | M319: csmonnier@bluewin.ch | N319: 1962-08-30 | O319: 2003-01-01 | P319: oui
A320: Mores | B320: Blaise | C320: Mores Blaise | D320: MoresBlaise | E320: L'Epi | F320: =(VLOOKUP(E320,Qui!$A$201:$D$211,4)) -> 4 | G320: Mores | H320: Blaise | I320: Boulevard des Endroits 42 | J320: 2300 | K320: La Chaux-de-Fonds | L320: +41797040891 +41329267877 | M320: catherinemonnin@gmail.com | N320: 1962-10-02 | O320: 1990 a ver | P320: oui
A321: Oppliger | B321: Hervé | C321: Oppliger Hervé | D321: OppligerHervé | E321: La Vue-des-Alpes | F321: =(VLOOKUP(E321,Qui!$A$201:$D$211,4)) -> 2 | G321: Oppliger | H321: Hervé | I321: Le Crêt du Châble 7 | J321: 2057 | K321: Villiers | L321: +41 79 301 51 15 +41328534052 | M321: h.oppliger57@bluewin.ch | N321: 1957-01-26 | O321: 2009-01-01 | P321: oui
A322: Pellaton | B322: Daniel | C322: Pellaton Daniel | D322: PellatonDaniel | E322: L'Epi | F322: =(VLOOKUP(E322,Qui!$A$201:$D$211,4)) -> 4 | G322: Pellaton | H322: Daniel | I322: Rue des Pierres Grises 17 | J322: 2053 | K322: Cernier | L322: +41796757271 +41328520443 | M322: daniel@pellaton.ch | N322: 1958-09-13 | O322: 2008-01-01 | P322: oui
A323: Reichen | B323: Sylvain | C323: Reichen Sylvain | D323: ReichenSylvain | E323: L'Epi | F323: =(VLOOKUP(E323,Qui!$A$201:$D$211,4)) -> 4 | G323: Reichen | H323: Sylvain | I323: Rue des Terraux 41 | J323: 2300 | K323: La Chaux-de-Fonds | L323: +41797680522 +41329685392 | N323: 1944-12-08 | O323: 1972-01-01 | P323: non
A324: Rindlisbacher | B324: Heinz | C324: Rindlisbacher Heinz | D324: RindlisbacherHeinz | E324: L'Epi | F324: =(VLOOKUP(E324,Qui!$A$201:$D$211,4)) -> 4 | G324: Rindlisbacher | H324: Heinz | I324: Chemin du Mont d'Amin 2 | J324: 2052 | K324: Fontainemelon | L324: +41794791816 | M324: heguriba@gmail.com | N324: 1956-02-08 | O324: 2014-01-01 | P324: oui
A325: Rollat | B325: Christian | C325: Rollat Christian | D325: RollatChristian | E325: La Chaux-de-Fonds | F325: =(VLOOKUP(E325,Qui!$A$201:$D$211,4)) -> 1 | G325: Rollat | H325: Christian | I325: Rue du Crêt 2 | J325: 2300 | K325: La Chaux-de-Fonds | L325: +41793320738 +41329684491 | M325: rollat.christian@gmail.com | N325: 1962-03-04 | O325: 2011-01-01 | P325: non
A326: Rossier | B326: Yves-Alain | C326: Rossier Yves-Alain | D326: RossierYves-Alain | E326: L'Epi | F326: =(VLOOKUP(E326,Qui!$A$201:$D$211,4)) -> 4 | G326: Rossier | H326: Yves-Alain | I326: Les Vieux-Prés 3 | J326: 2054 | K326: Les Vieux-Prés | L326: +41797139187 +41328532179 | M326: yarossier@bluewin.ch | N326: 1962-04-03 | O326: 2013-01-01 | P326: oui
A327: Tinguely | B327: Didier | C327: Tinguely Didier | D327: TinguelyDidier | E327: La Chaux-de-Fonds | F327: =(VLOOKUP(E327,Qui!$A$201:$D$211,4)) -> 1 | G327: Tinguely | H327: Didier | I327: Chemin des Sorbiers 21 | J327: 2400 | K327: Le Locle | L327: +41329314702 | O327: 2019-01-01
A328: Tynowski | B328: Lucien | C328: Tynowski Lucien | D328: TynowskiLucien | E328: Le Locle | F328: =(VLOOKUP(E328,Qui!$A$201:$D$211,4)) -> 3 | G328: Tynowski | H328: Lucien | I328: Chemin des Sorbiers 21 | J328: 2400 | K328: Le Locle | L328: +41796703979 +41329314702 | M328: cl.tynowski@hispeed.ch | O328: D 1990 | P328: oui
A329: Voirol | B329: Pierre | C329: Voirol Pierre | D329: VoirolPierre | E329: La Chaux-de-Fonds | F329: =(VLOOKUP(E329,Qui!$A$201:$D$211,4)) -> 1 | G329: Voirol | H329: Pierre | I329: Rue Charles-Humbert 8 | J329: 2300 | K329: La Chaux-de-Fonds | L329: +41329132256 | M329: pierre.voirol@gmail.com | N329: 1962-01-25 | O329: 2014-01-01 | P329: oui
A330: Vuillème | B330: Claude-Alain | C330: Vuillème Claude-Alain | D330: VuillèmeClaude-Alain | E330: La Vue-des-Alpes | F330: =(VLOOKUP(E330,Qui!$A$201:$D$211,4)) -> 2 | G330: Vuillème | H330: Claude-Alain | I330: Les Loges 18 | J330: 2052 | K330: La Vue-des-Alpes | L330: +41328535225 +41794484301 | M330: ca.vuilleme@gmail.com | N330: 1964-06-02 | O330: 2009-01-01 | P330: oui
A331: Wäfler | B331: Jean-Louis | C331: Wäfler Jean-Louis | D331: WäflerJean-Louis | E331: L'Epi | F331: =(VLOOKUP(E331,Qui!$A$201:$D$211,4)) -> 4 | G331: Wäfler | H331: Jean-Louis | I331: Les Foulets 7 | J331: 2300 | K331: La Chaux-de-Fonds | L331: +41774229744 +41329136443 | O331: D 1990 | P331: non
A332: ZZ1 | B332: Z2 | C332: ZZ1 Z2 | D332: ZZ1Z2 | F332: =(VLOOKUP(E332,Qui!$A$201:$D$211,4)) ->  | G332: ZZ1 | H332: Z2
A333: ZZ1 | B333: Z2 | C333: =CONCATENATE(A333," ",B333) -> ZZ1 Z2 | D333: =CONCATENATE(A333,B333) -> ZZ1Z2 | F333: =(VLOOKUP(E333,Qui!$A$201:$D$211,4)) ->  | G333: =A333 -> ZZ1 | H333: =B333 -> Z2
A334: ZZ1 | B334: Z2 | C334: ZZ1 Z2 | D334: ZZ1Z2 | F334: =(VLOOKUP(E334,Qui!$A$201:$D$211,4)) ->  | G334: ZZ1 | H334: Z2
A335: ZZ1 | B335: Z2 | C335: ZZ1 Z2 | D335: ZZ1Z2 | F335: =(VLOOKUP(E335,Qui!$A$201:$D$211,4)) ->  | G335: ZZ1 | H335: Z2
A336: ZZ1 | B336: Z2 | C336: ZZ1 Z2 | D336: ZZ1Z2 | F336: =(VLOOKUP(E336,Qui!$A$201:$D$211,4)) ->  | G336: ZZ1 | H336: Z2
A337: ZZ1 | B337: Z2 | C337: ZZ1 Z2 | D337: ZZ1Z2 | F337: =(VLOOKUP(E337,Qui!$A$201:$D$211,4)) ->  | G337: ZZ1 | H337: Z2
A338: ZZ1 | B338: Z2 | C338: ZZ1 Z2 | D338: ZZ1Z2 | F338: =(VLOOKUP(E338,Qui!$A$201:$D$211,4)) ->  | G338: ZZ1 | H338: Z2
A339: ZZ1 | B339: Z2 | C339: ZZ1 Z2 | D339: ZZ1Z2 | F339: =(VLOOKUP(E339,Qui!$A$201:$D$211,4)) ->  | G339: ZZ1 | H339: Z2
A340: ZZ1 | B340: Z2 | C340: ZZ1 Z2 | D340: ZZ1Z2 | F340: =(VLOOKUP(E340,Qui!$A$201:$D$211,4)) ->  | G340: ZZ1 | H340: Z2
A341: ZZ1 | B341: Z2 | C341: ZZ1 Z2 | D341: ZZ1Z2 | F341: =(VLOOKUP(E341,Qui!$A$201:$D$211,4)) ->  | G341: ZZ1 | H341: Z2
A342: ZZ1 | B342: Z2 | C342: ZZ1 Z2 | D342: ZZ1Z2 | F342: =(VLOOKUP(E342,Qui!$A$201:$D$211,4)) ->  | G342: ZZ1 | H342: Z2
A343: ZZ1 | B343: Z2 | C343: ZZ1 Z2 | D343: ZZ1Z2 | F343: =(VLOOKUP(E343,Qui!$A$201:$D$211,4)) ->  | G343: ZZ1 | H343: Z2
A344: ZZ1 | B344: Z2 | C344: ZZ1 Z2 | D344: ZZ1Z2 | F344: =(VLOOKUP(E344,Qui!$A$201:$D$211,4)) ->  | G344: ZZ1 | H344: Z2
A345: ZZ1 | B345: Z2 | C345: ZZ1 Z2 | D345: ZZ1Z2 | F345: =(VLOOKUP(E345,Qui!$A$201:$D$211,4)) ->  | G345: ZZ1 | H345: Z2
A346: ZZ1 | B346: Z2 | C346: ZZ1 Z2 | D346: ZZ1Z2 | F346: =(VLOOKUP(E346,Qui!$A$201:$D$211,4)) ->  | G346: ZZ1 | H346: Z2
A347: ZZ1 | B347: Z2 | C347: ZZ1 Z2 | D347: ZZ1Z2 | F347: =(VLOOKUP(E347,Qui!$A$201:$D$211,4)) ->  | G347: ZZ1 | H347: Z2
A348: ZZ1 | B348: Z2 | C348: ZZ1 Z2 | D348: ZZ1Z2 | F348: =(VLOOKUP(E348,Qui!$A$201:$D$211,4)) ->  | G348: ZZ1 | H348: Z2
A349: ZZ1 | B349: Z2 | C349: ZZ1 Z2 | D349: ZZ1Z2 | F349: =(VLOOKUP(E349,Qui!$A$201:$D$211,4)) ->  | G349: ZZ1 | H349: Z2
A350: ZZ1 | B350: Z2 | C350: ZZ1 Z2 | D350: ZZ1Z2 | F350: =(VLOOKUP(E350,Qui!$A$201:$D$211,4)) ->  | G350: ZZ1 | H350: Z2
A398: Eléments techniques - Règlements de jeu
A399: Championnat | B399: Championnat
A400: Classement général individuel | B400: Classement par club
A401: Nombre de résultats qui comptent | B401: Nombre de résultats par équipe
A402: 5 | B402: 5
A411: Outils
C414: 0
D415: 1 | E415: Modifications impossibles, classeurs et feuilles protégés
D416: 0 | E416: Modifications possibles, Classeurs et feuilles libres (ATTENTION)
D422: mot de passe : aa
A500: ANCIENS MEMBRES
C502: Non modifiable | D502: Non modifiable | F502: Non modifiable | G502: Non modifiable | H502: Non modifiable
L503: +41 79 325 07 85
A504: Nom | B504: Prenom | C504: NomPrenom | D504: NP | E504: ClubNom | F504: ClubNo | G504: Nom dupl | H504: Prénom dupl | I504: Rue | J504: NPA | K504: Ville | L504: Tél | M504: Courriel | N504: Date de naissance | O504: Joueur depuis | P504: J'utilise Whatsapp
A505: Blaser | B505: Jean-Pierre | C505: Blaser Jean-Pierre | D505: BlaserJean-Pierre | E505: La Chaux-de-Fonds | F505: 4 | G505: Blaser | H505: Jean-Pierre | I505: Rue de la Croix-Fédérale 48 | J505: 2300 | K505: La Chaux-de-Fonds | L505: +41329132040
A506: Cuche | B506: Roland | C506: Cuche Roland | D506: CucheRoland | E506: La Vue-des-Alpes | F506: 1 | G506: Cuche | H506: Roland | I506: Rue de la Chapelle 8 | J506: 2208 | K506: Les Hauts-Geneveys NE | L506: * 032 853 55 89
A507: Dubois | B507: Georges | C507: Dubois Georges | D507: DuboisGeorges | E507: La Chaux-de-Fonds | F507: 4 | G507: Dubois | H507: Georges | I507: Rue de la Charrière 42 | J507: 2300 | K507: La Chaux-de-Fonds | L507: +41774520866 +41329688312
A508: Kiepfer | B508: Marcel | C508: Kiepfer Marcel | D508: KiepferMarcel | E508: La Vue-des-Alpes | F508: 1 | G508: Kiepfer | H508: Marcel | I508: Rue Monique-St-Hélier 7 | J508: 2300 | K508: La Chaux-de-Fonds | L508: +41796112760 +41329681796 | M508: mkipfer@hispeed.ch
A509: Monnier | B509: Marion | C509: =CONCATENATE(A509," ",B509) -> Monnier Marion | D509: =CONCATENATE(A509,B509) -> MonnierMarion | E509: La Chaux-de-Fonds | F509: =(VLOOKUP(E509,Qui!$A$201:$D$211,4)) -> 1 | G509: =A509 -> Monnier | H509: =B509 -> Marion | O509: 2016-01-01
A510: Oppliger | B510: Sylvain | C510: Oppliger Sylvain | D510: OppligerSylvain | E510: Le Locle | F510: 2 | G510: Oppliger | H510: Sylvain | I510: Route de la Croix 34 | J510: 1589 | K510: Chabrey | M510: sylvano73@hotmail.com
A511: Oppliger | B511: Sylvain | C511: =CONCATENATE(A511," ",B511) -> Oppliger Sylvain | D511: =CONCATENATE(A511,B511) -> OppligerSylvain | E511: Le Locle | F511: =(VLOOKUP(E511,Qui!$A$201:$D$211,4)) -> 3 | G511: =A511 -> Oppliger | H511: =B511 -> Sylvain | O511: 1996-01-01
A512: Rollat | B512: Christian | C512: Rollat Christian | D512: RollatChristian | E512: La Chaux-de-Fonds | F512: 4 | G512: Rollat | H512: Christian | I512: Rue du Crêt 2 | J512: 2300 | K512: La Chaux-de-Fonds | L512: +41329684491
A513: Vuagneux | B513: Charles | C513: Vuagneux Charles | D513: VuagneuxCharles | E513: L'Epi | F513: 5 | G513: Vuagneux | H513: Charles | J513: 2300 | K513: La Chaux-de-Fonds | L513: +41794881660 +41329688369
A514: Gerber | B514: Michel | C514: =CONCATENATE(A514," ",B514) -> Gerber Michel | D514: =CONCATENATE(A514,B514) -> GerberMichel | E514: Le Locle | F514: =(VLOOKUP(E514,Qui!$A$201:$D$211,4)) -> 3 | G514: =A514 -> Gerber | H514: =B514 -> Michel | I514: Rue du St-Gothard 34 | J514: 2300 | K514: La Chaux-de-Fonds | L514: +41329269296 +41799265851 | N514: 1965-06-05 | O514: 2013-01-01
A515: Charlet | B515: Léon | C515: Charlet Léon | D515: CharletLéon | E515: La Vue-des-Alpes | F515: 2 | G515: Charlet | H515: Léon | I515: Fritz-Courvoisier 21 | J515: 2300 | K515: La Chaux-de-Fonds | L515: +41795107075 | M515: leonchat@outlook.com | N515: 1998-04-02 | O515: 2019-01-01 | P515: oui
A516: Bühler | B516: Raymond | C516: =CONCATENATE(A516," ",B516) -> Bühler Raymond | D516: =CONCATENATE(A516,B516) -> BühlerRaymond | E516: L'Epi | F516: =(VLOOKUP(E516,Qui!$A$201:$D$211,4)) -> 4 | G516: =A516 -> Bühler | H516: =B516 -> Raymond | I516: Rue du Parc 11 | J516: 2300 | K516: La Chaux-de-Fonds | L516: +41794713615 | M516: rbuhler@hispeed.ch | N516: 1949-06-01

Sheet Comment (hidden)
A1: Onglet Calendrier
A3: Choisir la compétition dans la liste déroulante
A4: Choisir le Jeu (pont) dans la liste déroulante
A5: Remplir la première date de l'entrainement et les suivantes se mettent automatiquement
A6: Choisir les clubs marqueurs (Un décompte du nombre de marquages ce fait automatiquement)
A7: Attention pour les compétitions à Evologia au regard des examens des Fleuristes (en général début juin)
A8: Si possible tenir comptes des vacances scolaires et de la fermeture du restaurant du Grand-Sommartel
A10: Modifier les dates de Fête La Terre
A11: Mentionner les dates de la Vauquille
A13: Dans le rappel, le nombre de résultats pris en compte provient automatiquement de l'Onglet Qui (Eléments techniques)
A19: Onglet Qui
A21: =Qui!A196 -> Inventaire des Club, Jeux, choix des couleurs
A23: L'exactitude du nom des clubs est IMPERATIVE (On ne peut plus changer)
A24: Chaque entité doit être triée pour elle-même :
A25: - Les_Clubs
A26: - Les Jeux
A27: - Les Compétitions
A29: Le lien couleur entre les_Clubs et Clubs n° se fait entre colonne A et D
A31: On découvre aussi la répartition des joueurs entre les clubs
A33: =Qui!A296 -> Les Membres
A34: Possibilité d'introduire 55 joueurs
A36: Introduire les joueurs (Nom, Prénom, Club, Rue, NPA, Ville, Tél, e-mail) le reste est automatique
A37: Les colonnes C, D, F, G et H sont automatiques (ne pas les remplir)
A39: ==> Si pas trié alors les couleurs des joueurs peuvent être fausses (lancer macro dans Qui "Trier les membres")
A44: =Qui!A398 -> Eléments techniques - Règlements de jeu
A46: Ces éléments sont à vérifier en début de saison :
A47: - Nombre de résultats à comptabiliser par joueur sur le championnat (si tous alors mettre 6 identique au nombre de manches de la saison)
A48: - Nombre de joueurs par équipe pour le championnat ==> on cumule donc les x meilleurs résultats du club de chaque manche)
A51: =Qui!A411 -> Outils
A53: Possibilité de dévérouiller et d'effectuer des modifications
A55: Lancement du tri des membres
A58: Onglets Challenge_x
A61: Les cellules des scores non remplies doivent être à 0
A62: (pour remplir plusieures cellules en 1 fois, sélectionner toutes les cellules voulues, presser sur zéro et pour valider presser sur Ctrl-Return)
A64: Possibilité d'introduire jusqu'à 49 joueurs
A67: En cas d'égalité entre plusieurs joueurs, pour les "départager" selon les critères de l'art 4 :
A68: ==> il faut ajouter . 01 (ou rien) pour le moins bon et jusqu'à .07 pour le meilleur
A71: Pour la manche
A73: a) Introduire les scores sur le classement individuel (Colonnes H6 à J54) en accord avec les membres (Qui)
A74: - Colonne H : Nom
A75: - Colonne I : Prénom
A76: - Colonne J : Score de la manche
A78: b) Une fois les scores de tous les joueurs inscrits, compléter le N° d'équipe pour chaque joueur
A80: - Colonne M : N° de l'équipe (en accord avec la liste des Equipes possibles)
A82: c) Une fois les scores de tous les joueurs inscrits, lancer le tri en cliquant sur "Tri des résultats de la manche x"
A91: Onglets Manche_x
A94: Ne pas trier les classements avant d'introduire les scores
A95: Les cellules des scores non remplies doivent être à 0
A96: (pour remplir plusieures cellules en 1 fois, sélectionner toutes les cellules voulues, presser sur zéro et pour valider presser sur Ctrl-Return)
A98: Possibilité d'afficher jusqu'à 49 joueurs (actuellement les joueurs 36 à 54 sont masqués)
A101: En cas d'égalité entre plusieurs joueurs, pour les "départager" selon les critères de l'art 4 :
A102: ==> il faut ajouter . 01 (ou rien) pour le moins bon et jusqu'à .07 pour le meilleur
A105: Pour la manche
A107: a) Introduire les scores sur le classement individuel (Colonnes M5 à O58) en accord avec les membres (Qui)
A108: - Colonne M : Nom
A109: - Colonne N : Prénom
A110: - Colonne O : Score de la manche
A112: b) Une fois les scores de tous les joueurs inscrits, lancer le tri en cliquant sur "Tri des résultats de la manche1"
A115: Pour les manches suivantes
A117: a) Lancer la préparation en cliquant sur "Préparation de manche x"
A119: b) Introduire les scores sur le classement individuel (Colonnes M5 à O58) - Ne pas trier les classements avant d'introduire les scores
A120: - Colonne M : Nom (si nouveau => à la suite des autres)
A121: - Colonne N : Prénom (si nouveau => à la suite des autres)
A122: - Colonne O : Score de la manche
A124: c) Une fois les scores de tous les joueurs inscrits, lancer le tri en cliquant sur "Tri des résultats de la manche x"
A127: NOTA BENE
A128: les colonnes représentant les manches 8 et 9 son masquées (K et L)
A130: les lignes pour les joueurs > 35 sont masquées au max 54 (40 à 67)
A131: les lignes pour les clubs > 4 sont masquées (66 et 67)
F181: Duplicata Colonne A technique

Sheet Manche_1 (hidden)
A1: Association intercantonale des joueurs de boules Grand Jeu Neuchâtelois
A2: =CONCATENATE("Championnat grand jeu neuchâtelois ",YEAR(Calendrier!B6)) -> Championnat grand jeu neuchâtelois 2024
A3: Classement général individuel | C3: Manches | D3: =Calendrier!F40 -> Grand-Sommartel | E3: =Calendrier!F47 -> Le Locle | F3: =Calendrier!F54 -> Evologia | G3: =Calendrier!F61 -> La Vue-des-Alpes | H3: =Calendrier!F68 -> L'Epi | I3: =Calendrier!F75 -> La Chaux-de-Fonds | J3: =Calendrier!F82 -> 00:00:00 | M3: =CONCATENATE("Général",CHAR(10),"les ",Qui!$A$402," meilleurs") -> Général les 5 meilleurs | P3: =CONCATENATE("Classement de la manche",CHAR(10),Calendrier!F40,CHAR(10),"du",TEXT(Calendrier!F42," jj.mm")," au",TEXT(Calendrier!F45," jj.mm.aaaa")) -> Classement de la manche Grand-Sommartel du 26.08 au 29.08.2024 | U3: =CONCATENATE(TEXT(Calendrier!F42," jj.mm")," au",TEXT(Calendrier!F45," jj.mm.aaaa")) -> 26.08 au 29.08.2024
D4: 1 | E4: 2 | F4: 3 | G4: 4 | H4: 5 | I4: 6 | J4: 7 | K4: 8 | L4: 9 | P4: =CONCATENATE("Champion de jeu : ",CHAR(10),P5," ",Q5) -> Champion de jeu : Bart Fabien
A5: 1 | B5: Bart | C5: Fabien | D5: 118 | E5: 0 | F5: 0 | G5: 0 | H5: 0 | I5: 0 | J5: 0 | M5: =SUM(D5:L5*(D5:L5>=LARGE(D5:L5,Qui!$A$402))) -> 118 | N5: =IFERROR((VLOOKUP(CONCATENATE(B5,C5),Qui!$D$301:$F$356,3,)),0) -> 3 | O5: 1 | P5: Bart | Q5: Fabien | R5: 118 | S5: =IFERROR((VLOOKUP(CONCATENATE(P5,Q5),Qui!$D$301:$F$356,3,0)),0) -> 3
A6: 2 | B6: Tynowski | C6: Lucien | D6: 110 | E6: 0 | F6: 0 | G6: 0 | H6: 0 | I6: 0 | J6: 0 | M6: =SUM(D6:L6*(D6:L6>=LARGE(D6:L6,Qui!$A$402))) -> 110 | N6: =IFERROR((VLOOKUP(CONCATENATE(B6,C6),Qui!$D$301:$F$356,3,)),0) -> 3 | O6: 2 | P6: Tynowski | Q6: Lucien | R6: 110 | S6: =IFERROR((VLOOKUP(CONCATENATE(P6,Q6),Qui!$D$301:$F$356,3,0)),0) -> 3
A7: 3 | B7: Mores | C7: Blaise | D7: 110 | E7: 0 | F7: 0 | G7: 0 | H7: 0 | I7: 0 | J7: 0 | M7: =SUM(D7:L7*(D7:L7>=LARGE(D7:L7,Qui!$A$402))) -> 110 | N7: =IFERROR((VLOOKUP(CONCATENATE(B7,C7),Qui!$D$301:$F$356,3,)),0) -> 4 | O7: 3 | P7: Mores | Q7: Blaise | R7: 110 | S7: =IFERROR((VLOOKUP(CONCATENATE(P7,Q7),Qui!$D$301:$F$356,3,0)),0) -> 4
A8: 4 | B8: Vuillème | C8: Claude-Alain | D8: 107 | E8: 0 | F8: 0 | G8: 0 | H8: 0 | I8: 0 | J8: 0 | M8: =SUM(D8:L8*(D8:L8>=LARGE(D8:L8,Qui!$A$402))) -> 107 | N8: =IFERROR((VLOOKUP(CONCATENATE(B8,C8),Qui!$D$301:$F$356,3,)),0) -> 2 | O8: 4 | P8: Vuillème | Q8: Claude-Alain | R8: 107 | S8: =IFERROR((VLOOKUP(CONCATENATE(P8,Q8),Qui!$D$301:$F$356,3,0)),0) -> 2
A9: 5 | B9: Voirol | C9: Pierre | D9: 104 | E9: 0 | F9: 0 | G9: 0 | H9: 0 | I9: 0 | J9: 0 | M9: =SUM(D9:L9*(D9:L9>=LARGE(D9:L9,Qui!$A$402))) -> 104 | N9: =IFERROR((VLOOKUP(CONCATENATE(B9,C9),Qui!$D$301:$F$356,3,)),0) -> 1 | O9: 5 | P9: Voirol | Q9: Pierre | R9: 104 | S9: =IFERROR((VLOOKUP(CONCATENATE(P9,Q9),Qui!$D$301:$F$356,3,0)),0) -> 1
A10: 6 | B10: Dick | C10: Pierre-Alain | D10: 99 | E10: 0 | F10: 0 | G10: 0 | H10: 0 | I10: 0 | J10: 0 | M10: =SUM(D10:L10*(D10:L10>=LARGE(D10:L10,Qui!$A$402))) -> 99 | N10: =IFERROR((VLOOKUP(CONCATENATE(B10,C10),Qui!$D$301:$F$356,3,)),0) -> 2 | O10: 6 | P10: Dick | Q10: Pierre-Alain | R10: 99 | S10: =IFERROR((VLOOKUP(CONCATENATE(P10,Q10),Qui!$D$301:$F$356,3,0)),0) -> 2
A11: 7 | B11: Jeanneret | C11: Louis | D11: 98 | E11: 0 | F11: 0 | G11: 0 | H11: 0 | I11: 0 | J11: 0 | M11: =SUM(D11:L11*(D11:L11>=LARGE(D11:L11,Qui!$A$402))) -> 98 | N11: =IFERROR((VLOOKUP(CONCATENATE(B11,C11),Qui!$D$301:$F$356,3,)),0) -> 2 | O11: 7 | P11: Jeanneret | Q11: Louis | R11: 98 | S11: =IFERROR((VLOOKUP(CONCATENATE(P11,Q11),Qui!$D$301:$F$356,3,0)),0) -> 2
A12: 8 | B12: Oppliger | C12: Hervé | D12: 97 | E12: 0 | F12: 0 | G12: 0 | H12: 0 | I12: 0 | J12: 0 | M12: =SUM(D12:L12*(D12:L12>=LARGE(D12:L12,Qui!$A$402))) -> 97 | N12: =IFERROR((VLOOKUP(CONCATENATE(B12,C12),Qui!$D$301:$F$356,3,)),0) -> 2 | O12: 8 | P12: Oppliger | Q12: Hervé | R12: 97 | S12: =IFERROR((VLOOKUP(CONCATENATE(P12,Q12),Qui!$D$301:$F$356,3,0)),0) -> 2
A13: 9 | B13: Monnier | C13: Christian | D13: 96 | E13: 0 | F13: 0 | G13: 0 | H13: 0 | I13: 0 | J13: 0 | M13: =SUM(D13:L13*(D13:L13>=LARGE(D13:L13,Qui!$A$402))) -> 96 | N13: =IFERROR((VLOOKUP(CONCATENATE(B13,C13),Qui!$D$301:$F$356,3,)),0) -> 1 | O13: 9 | P13: Monnier | Q13: Christian | R13: 96 | S13: =IFERROR((VLOOKUP(CONCATENATE(P13,Q13),Qui!$D$301:$F$356,3,0)),0) -> 1
A14: 10 | B14: Rossier | C14: Yves-Alain | D14: 92 | E14: 0 | F14: 0 | G14: 0 | H14: 0 | I14: 0 | J14: 0 | M14: =SUM(D14:L14*(D14:L14>=LARGE(D14:L14,Qui!$A$402))) -> 92 | N14: =IFERROR((VLOOKUP(CONCATENATE(B14,C14),Qui!$D$301:$F$356,3,)),0) -> 4 | O14: 10 | P14: Rossier | Q14: Yves-Alain | R14: 92 | S14: =IFERROR((VLOOKUP(CONCATENATE(P14,Q14),Qui!$D$301:$F$356,3,0)),0) -> 4
A15: 11 | B15: Dubois | C15: Eric | D15: 89 | E15: 0 | F15: 0 | G15: 0 | H15: 0 | I15: 0 | J15: 0 | M15: =SUM(D15:L15*(D15:L15>=LARGE(D15:L15,Qui!$A$402))) -> 89 | N15: =IFERROR((VLOOKUP(CONCATENATE(B15,C15),Qui!$D$301:$F$356,3,)),0) -> 1 | O15: 11 | P15: Dubois | Q15: Eric | R15: 89 | S15: =IFERROR((VLOOKUP(CONCATENATE(P15,Q15),Qui!$D$301:$F$356,3,0)),0) -> 1
A16: 12 | B16: Rollat | C16: Christian | D16: 86 | E16: 0 | F16: 0 | G16: 0 | H16: 0 | I16: 0 | J16: 0 | M16: =SUM(D16:L16*(D16:L16>=LARGE(D16:L16,Qui!$A$402))) -> 86 | N16: =IFERROR((VLOOKUP(CONCATENATE(B16,C16),Qui!$D$301:$F$356,3,)),0) -> 1 | O16: 12 | P16: Rollat | Q16: Christian | R16: 86 | S16: =IFERROR((VLOOKUP(CONCATENATE(P16,Q16),Qui!$D$301:$F$356,3,0)),0) -> 1
A17: 13 | B17: Pellaton | C17: Daniel | D17: 85 | E17: 0 | F17: 0 | G17: 0 | H17: 0 | I17: 0 | J17: 0 | M17: =SUM(D17:L17*(D17:L17>=LARGE(D17:L17,Qui!$A$402))) -> 85 | N17: =IFERROR((VLOOKUP(CONCATENATE(B17,C17),Qui!$D$301:$F$356,3,)),0) -> 4 | O17: 13 | P17: Pellaton | Q17: Daniel | R17: 85 | S17: =IFERROR((VLOOKUP(CONCATENATE(P17,Q17),Qui!$D$301:$F$356,3,0)),0) -> 4
A18: 14 | B18: Frutiger | C18: Bertrand | D18: 85 | E18: 0 | F18: 0 | G18: 0 | H18: 0 | I18: 0 | J18: 0 | M18: =SUM(D18:L18*(D18:L18>=LARGE(D18:L18,Qui!$A$402))) -> 85 | N18: =IFERROR((VLOOKUP(CONCATENATE(B18,C18),Qui!$D$301:$F$356,3,)),0) -> 4 | O18: 14 | P18: Frutiger | Q18: Bertrand | R18: 85 | S18: =IFERROR((VLOOKUP(CONCATENATE(P18,Q18),Qui!$D$301:$F$356,3,0)),0) -> 4
A19: 15 | B19: Bourquin | C19: Willy | D19: 85 | E19: 0 | F19: 0 | G19: 0 | H19: 0 | I19: 0 | J19: 0 | M19: =SUM(D19:L19*(D19:L19>=LARGE(D19:L19,Qui!$A$402))) -> 85 | N19: =IFERROR((VLOOKUP(CONCATENATE(B19,C19),Qui!$D$301:$F$356,3,)),0) -> 4 | O19: 15 | P19: Bourquin | Q19: Willy | R19: 85 | S19: =IFERROR((VLOOKUP(CONCATENATE(P19,Q19),Qui!$D$301:$F$356,3,0)),0) -> 4
A20: 16 | B20: Bühler | C20: Raymond | D20: 82 | E20: 0 | F20: 0 | G20: 0 | H20: 0 | I20: 0 | J20: 0 | M20: =SUM(D20:L20*(D20:L20>=LARGE(D20:L20,Qui!$A$402))) -> 82 | N20: =IFERROR((VLOOKUP(CONCATENATE(B20,C20),Qui!$D$301:$F$356,3,)),0) -> 0 | O20: 16 | P20: Bühler | Q20: Raymond | R20: 82 | S20: =IFERROR((VLOOKUP(CONCATENATE(P20,Q20),Qui!$D$301:$F$356,3,0)),0) -> 0
A21: 17 | B21: Chassot | C21: Yves | D21: 79 | E21: 0 | F21: 0 | G21: 0 | H21: 0 | I21: 0 | J21: 0 | M21: =SUM(D21:L21*(D21:L21>=LARGE(D21:L21,Qui!$A$402))) -> 79 | N21: =IFERROR((VLOOKUP(CONCATENATE(B21,C21),Qui!$D$301:$F$356,3,)),0) -> 2 | O21: 17 | P21: Chassot | Q21: Yves | R21: 79 | S21: =IFERROR((VLOOKUP(CONCATENATE(P21,Q21),Qui!$D$301:$F$356,3,0)),0) -> 2
A22: 18 | B22: Aeschlimann | C22: Loris | D22: 78 | E22: 0 | F22: 0 | G22: 0 | H22: 0 | I22: 0 | J22: 0 | M22: =SUM(D22:L22*(D22:L22>=LARGE(D22:L22,Qui!$A$402))) -> 78 | N22: =IFERROR((VLOOKUP(CONCATENATE(B22,C22),Qui!$D$301:$F$356,3,)),0) -> 4 | O22: 18 | P22: Aeschlimann | Q22: Loris | R22: 78 | S22: =IFERROR((VLOOKUP(CONCATENATE(P22,Q22),Qui!$D$301:$F$356,3,0)),0) -> 4
A23: 19 | B23: Reichen | C23: Sylvain | D23: 78 | E23: 0 | F23: 0 | G23: 0 | H23: 0 | I23: 0 | J23: 0 | M23: =SUM(D23:L23*(D23:L23>=LARGE(D23:L23,Qui!$A$402))) -> 78 | N23: =IFERROR((VLOOKUP(CONCATENATE(B23,C23),Qui!$D$301:$F$356,3,)),0) -> 4 | O23: 19 | P23: Reichen | Q23: Sylvain | R23: 78 | S23: =IFERROR((VLOOKUP(CONCATENATE(P23,Q23),Qui!$D$301:$F$356,3,0)),0) -> 4
A24: 20 | B24: Haussener | C24: Philippe | D24: 69 | E24: 0 | F24: 0 | G24: 0 | H24: 0 | I24: 0 | J24: 0 | M24: =SUM(D24:L24*(D24:L24>=LARGE(D24:L24,Qui!$A$402))) -> 69 | N24: =IFERROR((VLOOKUP(CONCATENATE(B24,C24),Qui!$D$301:$F$356,3,)),0) -> 2 | O24: 20 | P24: Haussener | Q24: Philippe | R24: 69 | S24: =IFERROR((VLOOKUP(CONCATENATE(P24,Q24),Qui!$D$301:$F$356,3,0)),0) -> 2
A25: 21 | B25: Dubois | C25: Emmanuel | D25: 67 | E25: 0 | F25: 0 | G25: 0 | H25: 0 | I25: 0 | J25: 0 | M25: =SUM(D25:L25*(D25:L25>=LARGE(D25:L25,Qui!$A$402))) -> 67 | N25: =IFERROR((VLOOKUP(CONCATENATE(B25,C25),Qui!$D$301:$F$356,3,)),0) -> 1 | O25: 21 | P25: Dubois | Q25: Emmanuel | R25: 67 | S25: =IFERROR((VLOOKUP(CONCATENATE(P25,Q25),Qui!$D$301:$F$356,3,0)),0) -> 1
A26: 22 | B26: Matthey | C26: Pierre | D26: 65 | E26: 0 | F26: 0 | G26: 0 | H26: 0 | I26: 0 | J26: 0 | M26: =SUM(D26:L26*(D26:L26>=LARGE(D26:L26,Qui!$A$402))) -> 65 | N26: =IFERROR((VLOOKUP(CONCATENATE(B26,C26),Qui!$D$301:$F$356,3,)),0) -> 1 | O26: 22 | P26: Matthey | Q26: Pierre | R26: 65 | S26: =IFERROR((VLOOKUP(CONCATENATE(P26,Q26),Qui!$D$301:$F$356,3,0)),0) -> 1
A27: 23 | B27: Dubois | C27: Marcel | D27: 53 | E27: 0 | F27: 0 | G27: 0 | H27: 0 | I27: 0 | J27: 0 | M27: =SUM(D27:L27*(D27:L27>=LARGE(D27:L27,Qui!$A$402))) -> 53 | N27: =IFERROR((VLOOKUP(CONCATENATE(B27,C27),Qui!$D$301:$F$356,3,)),0) -> 1 | O27: 23 | P27: Dubois | Q27: Marcel | R27: 53 | S27: =IFERROR((VLOOKUP(CONCATENATE(P27,Q27),Qui!$D$301:$F$356,3,0)),0) -> 1
A28: 24 | B28: Jean-Mairet | C28: Jean-Claude | D28: 51 | E28: 0 | F28: 0 | G28: 0 | H28: 0 | I28: 0 | J28: 0 | M28: =SUM(D28:L28*(D28:L28>=LARGE(D28:L28,Qui!$A$402))) -> 51 | N28: =IFERROR((VLOOKUP(CONCATENATE(B28,C28),Qui!$D$301:$F$356,3,)),0) -> 1 | O28: 24 | P28: Jean-Mairet | Q28: Jean-Claude | R28: 51 | S28: =IFERROR((VLOOKUP(CONCATENATE(P28,Q28),Qui!$D$301:$F$356,3,0)),0) -> 1
A29: 25 | B29: Coppey | C29: Romain | D29: 40 | E29: 0 | F29: 0 | G29: 0 | H29: 0 | I29: 0 | J29: 0 | M29: =SUM(D29:L29*(D29:L29>=LARGE(D29:L29,Qui!$A$402))) -> 40 | N29: =IFERROR((VLOOKUP(CONCATENATE(B29,C29),Qui!$D$301:$F$356,3,)),0) -> 0 | O29: 25 | P29: Coppey | Q29: Romain | R29: 40 | S29: =IFERROR((VLOOKUP(CONCATENATE(P29,Q29),Qui!$D$301:$F$356,3,0)),0) -> 0
A30: 26 | B30: Rindlisbascher | C30: Heinz | D30: 37 | E30: 0 | F30: 0 | G30: 0 | H30: 0 | I30: 0 | J30: 0 | M30: =SUM(D30:L30*(D30:L30>=LARGE(D30:L30,Qui!$A$402))) -> 37 | N30: =IFERROR((VLOOKUP(CONCATENATE(B30,C30),Qui!$D$301:$F$356,3,)),0) -> 0 | O30: 26 | P30: Rindlisbascher | Q30: Heinz | R30: 37 | S30: =IFERROR((VLOOKUP(CONCATENATE(P30,Q30),Qui!$D$301:$F$356,3,0)),0) -> 0
A31: 27 | B31: Favre | C31: Daniel | D31: 0 | E31: 0 | F31: 0 | G31: 0 | H31: 0 | I31: 0 | J31: 0 | M31: =SUM(D31:L31*(D31:L31>=LARGE(D31:L31,Qui!$A$402))) -> 0 | N31: =IFERROR((VLOOKUP(CONCATENATE(B31,C31),Qui!$D$301:$F$356,3,)),0) -> 3 | O31: 27 | P31: Favre | Q31: Daniel | R31: 0 | S31: =IFERROR((VLOOKUP(CONCATENATE(P31,Q31),Qui!$D$301:$F$356,3,0)),0) -> 3
A32: 28 | B32: Cassi | C32: Alain | D32: 0 | E32: 0 | F32: 0 | G32: 0 | H32: 0 | I32: 0 | J32: 0 | M32: =SUM(D32:L32*(D32:L32>=LARGE(D32:L32,Qui!$A$402))) -> 0 | N32: =IFERROR((VLOOKUP(CONCATENATE(B32,C32),Qui!$D$301:$F$356,3,)),0) -> 3 | O32: 28 | P32: Cassi | Q32: Alain | R32: 0 | S32: =IFERROR((VLOOKUP(CONCATENATE(P32,Q32),Qui!$D$301:$F$356,3,0)),0) -> 3
A33: 29 | B33: Wäfler | C33: Jean-Louis | D33: 0 | E33: 0 | F33: 0 | G33: 0 | H33: 0 | I33: 0 | J33: 0 | M33: =SUM(D33:L33*(D33:L33>=LARGE(D33:L33,Qui!$A$402))) -> 0 | N33: =IFERROR((VLOOKUP(CONCATENATE(B33,C33),Qui!$D$301:$F$356,3,)),0) -> 4 | O33: 29 | P33: Wäfler | Q33: Jean-Louis | R33: 0 | S33: =IFERROR((VLOOKUP(CONCATENATE(P33,Q33),Qui!$D$301:$F$356,3,0)),0) -> 4
A34: 30 | B34: Kemajl | C34: Fetahi | D34: 0 | E34: 0 | F34: 0 | G34: 0 | H34: 0 | I34: 0 | J34: 0 | M34: =SUM(D34:L34*(D34:L34>=LARGE(D34:L34,Qui!$A$402))) -> 0 | N34: =IFERROR((VLOOKUP(CONCATENATE(B34,C34),Qui!$D$301:$F$356,3,)),0) -> 3 | O34: 30 | P34: Kemajl | Q34: Fetahi | R34: 0 | S34: =IFERROR((VLOOKUP(CONCATENATE(P34,Q34),Qui!$D$301:$F$356,3,0)),0) -> 3
A35: 31 | B35: Billod-Morel | C35: Gérald | D35: 0 | E35: 0 | F35: 0 | G35: 0 | H35: 0 | I35: 0 | J35: 0 | M35: =SUM(D35:L35*(D35:L35>=LARGE(D35:L35,Qui!$A$402))) -> 0 | N35: =IFERROR((VLOOKUP(CONCATENATE(B35,C35),Qui!$D$301:$F$356,3,)),0) -> 1 | O35: 31 | P35: Billod-Morel | Q35: Gérald | R35: 0 | S35: =IFERROR((VLOOKUP(CONCATENATE(P35,Q35),Qui!$D$301:$F$356,3,0)),0) -> 1
A36: 32 | B36: Voirol | C36: Pierre | E36: 0 | F36: 0 | G36: 0 | H36: 0 | I36: 0 | J36: 0 | M36: =SUM(D36:L36*(D36:L36>=LARGE(D36:L36,Qui!$A$402))) -> 0 | N36: =IFERROR((VLOOKUP(CONCATENATE(B36,C36),Qui!$D$301:$F$356,3,)),0) -> 1 | O36: 32 | P36: Voirol | Q36: Pierre | R36: 0 | S36: =IFERROR((VLOOKUP(CONCATENATE(P36,Q36),Qui!$D$301:$F$356,3,0)),0) -> 1
A37: 33 | E37: 0 | F37: 0 | G37: 0 | H37: 0 | I37: 0 | J37: 0 | M37: =SUM(D37:L37*(D37:L37>=LARGE(D37:L37,Qui!$A$402))) -> 0 | N37: =IFERROR((VLOOKUP(CONCATENATE(B37,C37),Qui!$D$301:$F$356,3,)),0) -> 0 | O37: 33 | S37: =IFERROR((VLOOKUP(CONCATENATE(P37,Q37),Qui!$D$301:$F$356,3,0)),0) -> 0
A38: 34 | E38: 0 | F38: 0 | G38: 0 | H38: 0 | I38: 0 | J38: 0 | M38: =SUM(D38:L38*(D38:L38>=LARGE(D38:L38,Qui!$A$402))) -> 0 | N38: =IFERROR((VLOOKUP(CONCATENATE(B38,C38),Qui!$D$301:$F$356,3,)),0) -> 0 | O38: 34 | S38: =IFERROR((VLOOKUP(CONCATENATE(P38,Q38),Qui!$D$301:$F$356,3,0)),0) -> 0
A39: 35 | D39: 0 | E39: 0 | F39: 0 | G39: 0 | H39: 0 | I39: 0 | J39: 0 | M39: =SUM(D39:L39*(D39:L39>=LARGE(D39:L39,Qui!$A$402))) -> 0 | N39: =IFERROR((VLOOKUP(CONCATENATE(B39,C39),Qui!$D$301:$F$356,3,)),0) -> 0 | O39: 35 | S39: =IFERROR((VLOOKUP(CONCATENATE(P39,Q39),Qui!$D$301:$F$356,3,0)),0) -> 0
A40: 36 | D40: 0 | E40: 0 | F40: 0 | G40: 0 | H40: 0 | I40: 0 | J40: 0 | K40: 0 | L40: 0 | M40: =SUM(D40:L40*(D40:L40>=LARGE(D40:L40,Qui!$A$402))) -> 0 | N40: =IFERROR((VLOOKUP(CONCATENATE(B40,C40),Qui!$D$301:$F$356,3,)),0) -> 0 | O40: 36 | R40: 0 | S40: =IFERROR((VLOOKUP(CONCATENATE(P40,Q40),Qui!$D$301:$F$356,3,0)),0) -> 0
A41: 37 | D41: 0 | E41: 0 | F41: 0 | G41: 0 | H41: 0 | I41: 0 | J41: 0 | K41: 0 | L41: 0 | M41: =SUM(D41:L41*(D41:L41>=LARGE(D41:L41,Qui!$A$402))) -> 0 | N41: =IFERROR((VLOOKUP(CONCATENATE(B41,C41),Qui!$D$301:$F$356,3,)),0) -> 0 | O41: 37 | R41: 0 | S41: =IFERROR((VLOOKUP(CONCATENATE(P41,Q41),Qui!$D$301:$F$356,3,0)),0) -> 0
A42: 38 | D42: 0 | E42: 0 | F42: 0 | G42: 0 | H42: 0 | I42: 0 | J42: 0 | K42: 0 | L42: 0 | M42: =SUM(D42:L42*(D42:L42>=LARGE(D42:L42,Qui!$A$402))) -> 0 | N42: =IFERROR((VLOOKUP(CONCATENATE(B42,C42),Qui!$D$301:$F$356,3,)),0) -> 0 | O42: 38 | R42: 0 | S42: =IFERROR((VLOOKUP(CONCATENATE(P42,Q42),Qui!$D$301:$F$356,3,0)),0) -> 0
A43: 39 | D43: 0 | E43: 0 | F43: 0 | G43: 0 | H43: 0 | I43: 0 | J43: 0 | K43: 0 | L43: 0 | M43: =SUM(D43:L43*(D43:L43>=LARGE(D43:L43,Qui!$A$402))) -> 0 | N43: =IFERROR((VLOOKUP(CONCATENATE(B43,C43),Qui!$D$301:$F$356,3,)),0) -> 0 | O43: 39 | R43: 0 | S43: =IFERROR((VLOOKUP(CONCATENATE(P43,Q43),Qui!$D$301:$F$356,3,0)),0) -> 0
A44: 40 | D44: 0 | E44: 0 | F44: 0 | G44: 0 | H44: 0 | I44: 0 | J44: 0 | K44: 0 | L44: 0 | M44: =SUM(D44:L44*(D44:L44>=LARGE(D44:L44,Qui!$A$402))) -> 0 | N44: =IFERROR((VLOOKUP(CONCATENATE(B44,C44),Qui!$D$301:$F$356,3,)),0) -> 0 | O44: 40 | R44: 0 | S44: =IFERROR((VLOOKUP(CONCATENATE(P44,Q44),Qui!$D$301:$F$356,3,0)),0) -> 0
A45: 41 | D45: 0 | E45: 0 | F45: 0 | G45: 0 | H45: 0 | I45: 0 | J45: 0 | K45: 0 | L45: 0 | M45: =SUM(D45:L45*(D45:L45>=LARGE(D45:L45,Qui!$A$402))) -> 0 | N45: =IFERROR((VLOOKUP(CONCATENATE(B45,C45),Qui!$D$301:$F$356,3,)),0) -> 0 | O45: 41 | R45: 0 | S45: =IFERROR((VLOOKUP(CONCATENATE(P45,Q45),Qui!$D$301:$F$356,3,0)),0) -> 0
A46: 42 | D46: 0 | E46: 0 | F46: 0 | G46: 0 | H46: 0 | I46: 0 | J46: 0 | K46: 0 | L46: 0 | M46: =SUM(D46:L46*(D46:L46>=LARGE(D46:L46,Qui!$A$402))) -> 0 | N46: =IFERROR((VLOOKUP(CONCATENATE(B46,C46),Qui!$D$301:$F$356,3,)),0) -> 0 | O46: 42 | R46: 0 | S46: =IFERROR((VLOOKUP(CONCATENATE(P46,Q46),Qui!$D$301:$F$356,3,0)),0) -> 0
A47: 43 | D47: 0 | E47: 0 | F47: 0 | G47: 0 | H47: 0 | I47: 0 | J47: 0 | K47: 0 | L47: 0 | M47: =SUM(D47:L47*(D47:L47>=LARGE(D47:L47,Qui!$A$402))) -> 0 | N47: =IFERROR((VLOOKUP(CONCATENATE(B47,C47),Qui!$D$301:$F$356,3,)),0) -> 0 | O47: 43 | R47: 0 | S47: =IFERROR((VLOOKUP(CONCATENATE(P47,Q47),Qui!$D$301:$F$356,3,0)),0) -> 0
A48: 44 | D48: 0 | E48: 0 | F48: 0 | G48: 0 | H48: 0 | I48: 0 | J48: 0 | K48: 0 | L48: 0 | M48: =SUM(D48:L48*(D48:L48>=LARGE(D48:L48,Qui!$A$402))) -> 0 | N48: =IFERROR((VLOOKUP(CONCATENATE(B48,C48),Qui!$D$301:$F$356,3,)),0) -> 0 | O48: 44 | R48: 0 | S48: =IFERROR((VLOOKUP(CONCATENATE(P48,Q48),Qui!$D$301:$F$356,3,0)),0) -> 0
A49: 45 | D49: 0 | E49: 0 | F49: 0 | G49: 0 | H49: 0 | I49: 0 | J49: 0 | K49: 0 | L49: 0 | M49: =SUM(D49:L49*(D49:L49>=LARGE(D49:L49,Qui!$A$402))) -> 0 | N49: =IFERROR((VLOOKUP(CONCATENATE(B49,C49),Qui!$D$301:$F$356,3,)),0) -> 0 | O49: 45 | R49: 0 | S49: =IFERROR((VLOOKUP(CONCATENATE(P49,Q49),Qui!$D$301:$F$356,3,0)),0) -> 0
A50: 46 | D50: 0 | E50: 0 | F50: 0 | G50: 0 | H50: 0 | I50: 0 | J50: 0 | K50: 0 | L50: 0 | M50: =SUM(D50:L50*(D50:L50>=LARGE(D50:L50,Qui!$A$402))) -> 0 | N50: =IFERROR((VLOOKUP(CONCATENATE(B50,C50),Qui!$D$301:$F$356,3,)),0) -> 0 | O50: 46 | R50: 0 | S50: =IFERROR((VLOOKUP(CONCATENATE(P50,Q50),Qui!$D$301:$F$356,3,0)),0) -> 0
A51: 47 | D51: 0 | E51: 0 | F51: 0 | G51: 0 | H51: 0 | I51: 0 | J51: 0 | K51: 0 | L51: 0 | M51: =SUM(D51:L51*(D51:L51>=LARGE(D51:L51,Qui!$A$402))) -> 0 | N51: =IFERROR((VLOOKUP(CONCATENATE(B51,C51),Qui!$D$301:$F$356,3,)),0) -> 0 | O51: 47 | R51: 0 | S51: =IFERROR((VLOOKUP(CONCATENATE(P51,Q51),Qui!$D$301:$F$356,3,0)),0) -> 0
A52: 48 | D52: 0 | E52: 0 | F52: 0 | G52: 0 | H52: 0 | I52: 0 | J52: 0 | K52: 0 | L52: 0 | M52: =SUM(D52:L52*(D52:L52>=LARGE(D52:L52,Qui!$A$402))) -> 0 | N52: =IFERROR((VLOOKUP(CONCATENATE(B52,C52),Qui!$D$301:$F$356,3,)),0) -> 0 | O52: 48 | R52: 0 | S52: =IFERROR((VLOOKUP(CONCATENATE(P52,Q52),Qui!$D$301:$F$356,3,0)),0) -> 0
A53: 49 | D53: 0 | E53: 0 | F53: 0 | G53: 0 | H53: 0 | I53: 0 | J53: 0 | K53: 0 | L53: 0 | M53: =SUM(D53:L53*(D53:L53>=LARGE(D53:L53,Qui!$A$402))) -> 0 | N53: =IFERROR((VLOOKUP(CONCATENATE(B53,C53),Qui!$D$301:$F$356,3,)),0) -> 0 | O53: 49 | R53: 0 | S53: =IFERROR((VLOOKUP(CONCATENATE(P53,Q53),Qui!$D$301:$F$356,3,0)),0) -> 0
A54: 50 | D54: 0 | E54: 0 | F54: 0 | G54: 0 | H54: 0 | I54: 0 | J54: 0 | K54: 0 | L54: 0 | M54: =SUM(D54:L54*(D54:L54>=LARGE(D54:L54,Qui!$A$402))) -> 0 | N54: =IFERROR((VLOOKUP(CONCATENATE(B54,C54),Qui!$D$301:$F$356,3,)),0) -> 0 | O54: 50 | R54: 0 | S54: =IFERROR((VLOOKUP(CONCATENATE(P54,Q54),Qui!$D$301:$F$356,3,0)),0) -> 0
A55: 51 | D55: 0 | E55: 0 | F55: 0 | G55: 0 | H55: 0 | I55: 0 | J55: 0 | K55: 0 | L55: 0 | M55: =SUM(D55:L55*(D55:L55>=LARGE(D55:L55,Qui!$A$402))) -> 0 | N55: =IFERROR((VLOOKUP(CONCATENATE(B55,C55),Qui!$D$301:$F$356,3,)),0) -> 0 | O55: 51 | R55: 0 | S55: =IFERROR((VLOOKUP(CONCATENATE(P55,Q55),Qui!$D$301:$F$356,3,0)),0) -> 0
A56: 52 | D56: 0 | E56: 0 | F56: 0 | G56: 0 | H56: 0 | I56: 0 | J56: 0 | K56: 0 | L56: 0 | M56: =SUM(D56:L56*(D56:L56>=LARGE(D56:L56,Qui!$A$402))) -> 0 | N56: =IFERROR((VLOOKUP(CONCATENATE(B56,C56),Qui!$D$301:$F$356,3,)),0) -> 0 | O56: 52 | R56: 0 | S56: =IFERROR((VLOOKUP(CONCATENATE(P56,Q56),Qui!$D$301:$F$356,3,0)),0) -> 0
A57: 53 | D57: 0 | E57: 0 | F57: 0 | G57: 0 | H57: 0 | I57: 0 | J57: 0 | K57: 0 | L57: 0 | M57: =SUM(D57:L57*(D57:L57>=LARGE(D57:L57,Qui!$A$402))) -> 0 | N57: =IFERROR((VLOOKUP(CONCATENATE(B57,C57),Qui!$D$301:$F$356,3,)),0) -> 0 | O57: 53 | R57: 0 | S57: =IFERROR((VLOOKUP(CONCATENATE(P57,Q57),Qui!$D$301:$F$356,3,0)),0) -> 0
A58: 54 | D58: 0 | E58: 0 | F58: 0 | G58: 0 | H58: 0 | I58: 0 | J58: 0 | K58: 0 | L58: 0 | M58: =SUM(D58:L58*(D58:L58>=LARGE(D58:L58,Qui!$A$402))) -> 0 | N58: =IFERROR((VLOOKUP(CONCATENATE(B58,C58),Qui!$D$301:$F$356,3,)),0) -> 0 | O58: 54 | R58: 0 | S58: =IFERROR((VLOOKUP(CONCATENATE(P58,Q58),Qui!$D$301:$F$356,3,0)),0) -> 0
D59: =MAX(D5:D58) -> 118 | F59: =MAX(F5:F58) -> 0 | G59: =MAX(G5:G58) -> 0 | I59: =MAX(I5:I58) -> 0 | J59: =MAX(J5:J58) -> 0 | K59: =MAX(K5:K58) -> 0 | L59: =MAX(L5:L58) -> 0
A60: Classement général par équipe | O60: Classement par équipe
A62: 1 | B62: La Vue-des-Alpes | D62: 480 | M62: =SUM(D62:L62) -> 480 | N62: =VLOOKUP(B62,Qui!$A$201:$D$204,4) -> 2 | O62: 1 | P62: La Vue-des-Alpes | R62: =SUMPRODUCT(((($S$5:$S$58=S62)*$R$5:$R$58*1))*((($S$5:$S$58=S62)*$R$5:$R$58*1)>=LARGE((($S$5:$S$58=S62)*$R$5:$R$58*1),Qui!$B$402))) -> 480 | S62: =VLOOKUP(P62,Qui!$A$201:$D$204,4) -> 2
A63: 2 | B63: L'Epi | D63: 457.6 | M63: =SUM(D63:L63) -> 458 | N63: =VLOOKUP(B63,Qui!$A$201:$D$204,4) -> 4 | O63: 2 | P63: L'Epi | R63: =SUMPRODUCT(((($S$5:$S$58=S63)*$R$5:$R$58*1))*((($S$5:$S$58=S63)*$R$5:$R$58*1)>=LARGE((($S$5:$S$58=S63)*$R$5:$R$58*1),Qui!$B$402))) -> 458 | S63: =VLOOKUP(P63,Qui!$A$201:$D$204,4) -> 4
A64: 3 | B64: La Chaux-de-Fonds | D64: 442 | M64: =SUM(D64:L64) -> 442 | N64: =VLOOKUP(B64,Qui!$A$201:$D$204,4) -> 1 | O64: 3 | P64: La Chaux-de-Fonds | R64: =SUMPRODUCT(((($S$5:$S$58=S64)*$R$5:$R$58*1))*((($S$5:$S$58=S64)*$R$5:$R$58*1)>=LARGE((($S$5:$S$58=S64)*$R$5:$R$58*1),Qui!$B$402))) -> 442 | S64: =VLOOKUP(P64,Qui!$A$201:$D$204,4) -> 1
A65: 4 | B65: Le Locle | D65: 228.2 | M65: =SUM(D65:L65) -> 228 | N65: =VLOOKUP(B65,Qui!$A$201:$D$204,4) -> 3 | O65: 4 | P65: Le Locle | R65: =SUMPRODUCT(((($S$5:$S$58=S65)*$R$5:$R$58*1))*((($S$5:$S$58=S65)*$R$5:$R$58*1)>=LARGE((($S$5:$S$58=S65)*$R$5:$R$58*1),Qui!$B$402))) -> 228 | S65: =VLOOKUP(P65,Qui!$A$201:$D$204,4) -> 3
A66: 5 | M66: =SUM(D66:L66) ->  | N66: =VLOOKUP(B66,Qui!$A$201:$D$204,4) ->  | O66: 5 | R66: =SUMPRODUCT(((($S$5:$S$58=S66)*$R$5:$R$58*1))*((($S$5:$S$58=S66)*$R$5:$R$58*1)>=LARGE((($S$5:$S$58=S66)*$R$5:$R$58*1),Qui!$B$402))) ->  | S66: =VLOOKUP(P66,Qui!$A$201:$D$204,4) -> 
A67: 6 | N67: =VLOOKUP(B67,Qui!$A$201:$D$204,4) ->  | O67: 6 | R67: =SUMPRODUCT(((($S$5:$S$58=S67)*$R$5:$R$58*1))*((($S$5:$S$58=S67)*$R$5:$R$58*1)>=LARGE((($S$5:$S$58=S67)*$R$5:$R$58*1),Qui!$B$402))) ->  | S67: =VLOOKUP(P67,Qui!$A$201:$D$204,4) -> 
D68: =MAX(D62:D67) ->  | F68: =MAX(F62:F67) -> 0 | G68: =MAX(G62:G67) -> 0 | I68: =MAX(I62:I67) -> 0 | J68: =MAX(J62:J67) -> 0 | K68: =MAX(K62:K67) -> 0 | L68: =MAX(L62:L67) -> 0 | R68: 0
M69: La Chaux-de-Fonds, le 2023 / CM
B71: =CONCATENATE("Rappels :") -> Rappels :
B73: =CONCATENATE("a) le classement général par équipe est fait sur le cumul des ",Qui!$B$402," meilleurs résultats individuels de chaque manche") -> a) le classement général par équipe est fait sur le cumul des 5 meilleurs résultats individuels de chaque manche
B74: =CONCATENATE("b) le classement général individuel est fait sur le cumul des ",Qui!$A$402," meilleurs résultats individuels") -> b) le classement général individuel est fait sur le cumul des 5 meilleurs résultats individuels

Sheet Manche_2 (hidden)
A1: Association intercantonale des joueurs de boules Grand Jeu Neuchâtelois
A2: =CONCATENATE("Championnat grand jeu neuchâtelois ",YEAR(Calendrier!B6)) -> Championnat grand jeu neuchâtelois 2024
A3: Classement général individuel | C3: Manches | D3: =Calendrier!F40 -> Grand-Sommartel | E3: =Calendrier!F47 -> Le Locle | F3: =Calendrier!F54 -> Evologia | G3: =Calendrier!F61 -> La Vue-des-Alpes | H3: =Calendrier!F68 -> L'Epi | I3: =Calendrier!F75 -> La Chaux-de-Fonds | J3: =Calendrier!F82 -> 00:00:00 | M3: =CONCATENATE("Général",CHAR(10),"les ",Qui!$A$402," meilleurs") -> Général les 5 meilleurs | P3: =CONCATENATE("Classement de la manche",CHAR(10),Calendrier!F47,CHAR(10),"du",TEXT(Calendrier!F49," jj.mm")," au",TEXT(Calendrier!F52," jj.mm.aaaa")) -> Classement de la manche Le Locle du 09.09 au 12.09.2024 | U3: =CONCATENATE(TEXT(Calendrier!F49," jj.mm")," au",TEXT(Calendrier!F52," jj.mm.aaaa")) -> 09.09 au 12.09.2024
D4: 1 | E4: 2 | F4: 3 | G4: 4 | H4: 5 | I4: 6 | J4: 7 | K4: 8 | L4: 9 | P4: =CONCATENATE("Champion de jeu : ",CHAR(10),P5," ",Q5) -> Champion de jeu : Bart Fabien
A5: 1 | B5: Bart | C5: Fabien | D5: 118 | E5: 0 | F5: 0 | G5: 0 | H5: 0 | I5: 0 | J5: 0 | M5: =SUM(D5:L5*(D5:L5>=LARGE(D5:L5,Qui!$A$402))) -> 118 | N5: =IFERROR((VLOOKUP(CONCATENATE(B5,C5),Qui!$D$301:$F$356,3,)),0) -> 3 | O5: 1 | P5: Bart | Q5: Fabien | R5: 109 | S5: =IFERROR((VLOOKUP(CONCATENATE(P5,Q5),Qui!$D$301:$F$356,3,0)),0) -> 3
A6: 2 | B6: Tynowski | C6: Lucien | D6: 110 | E6: 0 | F6: 0 | G6: 0 | H6: 0 | I6: 0 | J6: 0 | M6: =SUM(D6:L6*(D6:L6>=LARGE(D6:L6,Qui!$A$402))) -> 110 | N6: =IFERROR((VLOOKUP(CONCATENATE(B6,C6),Qui!$D$301:$F$356,3,)),0) -> 3 | O6: 2 | P6: Tynowski | Q6: Lucien | R6: 117 | S6: =IFERROR((VLOOKUP(CONCATENATE(P6,Q6),Qui!$D$301:$F$356,3,0)),0) -> 3
A7: 3 | B7: Mores | C7: Blaise | D7: 110 | E7: 0 | F7: 0 | G7: 0 | H7: 0 | I7: 0 | J7: 0 | M7: =SUM(D7:L7*(D7:L7>=LARGE(D7:L7,Qui!$A$402))) -> 110 | N7: =IFERROR((VLOOKUP(CONCATENATE(B7,C7),Qui!$D$301:$F$356,3,)),0) -> 4 | O7: 3 | P7: Mores | Q7: Blaise | R7: 100 | S7: =IFERROR((VLOOKUP(CONCATENATE(P7,Q7),Qui!$D$301:$F$356,3,0)),0) -> 4
A8: 4 | B8: Vuillème | C8: Claude-Alain | D8: 107 | E8: 0 | F8: 0 | G8: 0 | H8: 0 | I8: 0 | J8: 0 | M8: =SUM(D8:L8*(D8:L8>=LARGE(D8:L8,Qui!$A$402))) -> 107 | N8: =IFERROR((VLOOKUP(CONCATENATE(B8,C8),Qui!$D$301:$F$356,3,)),0) -> 2 | O8: 4 | P8: Vuillème | Q8: Claude-Alain | R8: 69 | S8: =IFERROR((VLOOKUP(CONCATENATE(P8,Q8),Qui!$D$301:$F$356,3,0)),0) -> 2
A9: 5 | B9: Voirol | C9: Pierre | D9: 104 | E9: 0 | F9: 0 | G9: 0 | H9: 0 | I9: 0 | J9: 0 | M9: =SUM(D9:L9*(D9:L9>=LARGE(D9:L9,Qui!$A$402))) -> 104 | N9: =IFERROR((VLOOKUP(CONCATENATE(B9,C9),Qui!$D$301:$F$356,3,)),0) -> 1 | O9: 5 | P9: Voirol | Q9: Pierre | R9: 111 | S9: =IFERROR((VLOOKUP(CONCATENATE(P9,Q9),Qui!$D$301:$F$356,3,0)),0) -> 1
A10: 6 | B10: Dick | C10: Pierre-Alain | D10: 99 | E10: 0 | F10: 0 | G10: 0 | H10: 0 | I10: 0 | J10: 0 | M10: =SUM(D10:L10*(D10:L10>=LARGE(D10:L10,Qui!$A$402))) -> 99 | N10: =IFERROR((VLOOKUP(CONCATENATE(B10,C10),Qui!$D$301:$F$356,3,)),0) -> 2 | O10: 6 | P10: Dick | Q10: Pierre-Alain | R10: 93 | S10: =IFERROR((VLOOKUP(CONCATENATE(P10,Q10),Qui!$D$301:$F$356,3,0)),0) -> 2
A11: 7 | B11: Jeanneret | C11: Louis | D11: 98 | E11: 0 | F11: 0 | G11: 0 | H11: 0 | I11: 0 | J11: 0 | M11: =SUM(D11:L11*(D11:L11>=LARGE(D11:L11,Qui!$A$402))) -> 98 | N11: =IFERROR((VLOOKUP(CONCATENATE(B11,C11),Qui!$D$301:$F$356,3,)),0) -> 2 | O11: 7 | P11: Jeanneret | Q11: Louis | R11: 95 | S11: =IFERROR((VLOOKUP(CONCATENATE(P11,Q11),Qui!$D$301:$F$356,3,0)),0) -> 2
A12: 8 | B12: Oppliger | C12: Hervé | D12: 97 | E12: 0 | F12: 0 | G12: 0 | H12: 0 | I12: 0 | J12: 0 | M12: =SUM(D12:L12*(D12:L12>=LARGE(D12:L12,Qui!$A$402))) -> 97 | N12: =IFERROR((VLOOKUP(CONCATENATE(B12,C12),Qui!$D$301:$F$356,3,)),0) -> 2 | O12: 8 | P12: Oppliger | Q12: Hervé | R12: 70 | S12: =IFERROR((VLOOKUP(CONCATENATE(P12,Q12),Qui!$D$301:$F$356,3,0)),0) -> 2
A13: 9 | B13: Monnier | C13: Christian | D13: 96 | E13: 0 | F13: 0 | G13: 0 | H13: 0 | I13: 0 | J13: 0 | M13: =SUM(D13:L13*(D13:L13>=LARGE(D13:L13,Qui!$A$402))) -> 96 | N13: =IFERROR((VLOOKUP(CONCATENATE(B13,C13),Qui!$D$301:$F$356,3,)),0) -> 1 | O13: 9 | P13: Monnier | Q13: Christian | R13: 95 | S13: =IFERROR((VLOOKUP(CONCATENATE(P13,Q13),Qui!$D$301:$F$356,3,0)),0) -> 1
A14: 10 | B14: Rossier | C14: Yves-Alain | D14: 92 | E14: 0 | F14: 0 | G14: 0 | H14: 0 | I14: 0 | J14: 0 | M14: =SUM(D14:L14*(D14:L14>=LARGE(D14:L14,Qui!$A$402))) -> 92 | N14: =IFERROR((VLOOKUP(CONCATENATE(B14,C14),Qui!$D$301:$F$356,3,)),0) -> 4 | O14: 10 | P14: Rossier | Q14: Yves-Alain | R14: 84 | S14: =IFERROR((VLOOKUP(CONCATENATE(P14,Q14),Qui!$D$301:$F$356,3,0)),0) -> 4
A15: 11 | B15: Dubois | C15: Eric | D15: 89 | E15: 0 | F15: 0 | G15: 0 | H15: 0 | I15: 0 | J15: 0 | M15: =SUM(D15:L15*(D15:L15>=LARGE(D15:L15,Qui!$A$402))) -> 89 | N15: =IFERROR((VLOOKUP(CONCATENATE(B15,C15),Qui!$D$301:$F$356,3,)),0) -> 1 | O15: 11 | P15: Dubois | Q15: Eric | R15: 89 | S15: =IFERROR((VLOOKUP(CONCATENATE(P15,Q15),Qui!$D$301:$F$356,3,0)),0) -> 1
A16: 12 | B16: Rollat | C16: Christian | D16: 86 | E16: 0 | F16: 0 | G16: 0 | H16: 0 | I16: 0 | J16: 0 | M16: =SUM(D16:L16*(D16:L16>=LARGE(D16:L16,Qui!$A$402))) -> 86 | N16: =IFERROR((VLOOKUP(CONCATENATE(B16,C16),Qui!$D$301:$F$356,3,)),0) -> 1 | O16: 12 | P16: Rollat | Q16: Christian | R16: 0+ | S16: =IFERROR((VLOOKUP(CONCATENATE(P16,Q16),Qui!$D$301:$F$356,3,0)),0) -> 1
A17: 13 | B17: Pellaton | C17: Daniel | D17: 85 | E17: 0 | F17: 0 | G17: 0 | H17: 0 | I17: 0 | J17: 0 | M17: =SUM(D17:L17*(D17:L17>=LARGE(D17:L17,Qui!$A$402))) -> 85 | N17: =IFERROR((VLOOKUP(CONCATENATE(B17,C17),Qui!$D$301:$F$356,3,)),0) -> 4 | O17: 13 | P17: Pellaton | Q17: Daniel | R17: 85 | S17: =IFERROR((VLOOKUP(CONCATENATE(P17,Q17),Qui!$D$301:$F$356,3,0)),0) -> 4
A18: 14 | B18: Frutiger | C18: Bertrand | D18: 85 | E18: 0 | F18: 0 | G18: 0 | H18: 0 | I18: 0 | J18: 0 | M18: =SUM(D18:L18*(D18:L18>=LARGE(D18:L18,Qui!$A$402))) -> 85 | N18: =IFERROR((VLOOKUP(CONCATENATE(B18,C18),Qui!$D$301:$F$356,3,)),0) -> 4 | O18: 14 | P18: Frutiger | Q18: Bertrand | R18: 76 | S18: =IFERROR((VLOOKUP(CONCATENATE(P18,Q18),Qui!$D$301:$F$356,3,0)),0) -> 4
A19: 15 | B19: Bourquin | C19: Willy | D19: 85 | E19: 0 | F19: 0 | G19: 0 | H19: 0 | I19: 0 | J19: 0 | M19: =SUM(D19:L19*(D19:L19>=LARGE(D19:L19,Qui!$A$402))) -> 85 | N19: =IFERROR((VLOOKUP(CONCATENATE(B19,C19),Qui!$D$301:$F$356,3,)),0) -> 4 | O19: 15 | P19: Bourquin | Q19: Willy | R19: 44 | S19: =IFERROR((VLOOKUP(CONCATENATE(P19,Q19),Qui!$D$301:$F$356,3,0)),0) -> 4
A20: 16 | B20: Bühler | C20: Raymond | D20: 82 | E20: 0 | F20: 0 | G20: 0 | H20: 0 | I20: 0 | J20: 0 | M20: =SUM(D20:L20*(D20:L20>=LARGE(D20:L20,Qui!$A$402))) -> 82 | N20: =IFERROR((VLOOKUP(CONCATENATE(B20,C20),Qui!$D$301:$F$356,3,)),0) -> 0 | O20: 16 | P20: Bühler | Q20: Raymond | R20: 69 | S20: =IFERROR((VLOOKUP(CONCATENATE(P20,Q20),Qui!$D$301:$F$356,3,0)),0) -> 0
A21: 17 | B21: Chassot | C21: Yves | D21: 79 | E21: 0 | F21: 0 | G21: 0 | H21: 0 | I21: 0 | J21: 0 | M21: =SUM(D21:L21*(D21:L21>=LARGE(D21:L21,Qui!$A$402))) -> 79 | N21: =IFERROR((VLOOKUP(CONCATENATE(B21,C21),Qui!$D$301:$F$356,3,)),0) -> 2 | O21: 17 | P21: Chassot | Q21: Yves | R21: 72 | S21: =IFERROR((VLOOKUP(CONCATENATE(P21,Q21),Qui!$D$301:$F$356,3,0)),0) -> 2
A22: 18 | B22: Aeschlimann | C22: Loris | D22: 78 | E22: 0 | F22: 0 | G22: 0 | H22: 0 | I22: 0 | J22: 0 | M22: =SUM(D22:L22*(D22:L22>=LARGE(D22:L22,Qui!$A$402))) -> 78 | N22: =IFERROR((VLOOKUP(CONCATENATE(B22,C22),Qui!$D$301:$F$356,3,)),0) -> 4 | O22: 18 | P22: Aeschlimann | Q22: Loris | R22: 51 | S22: =IFERROR((VLOOKUP(CONCATENATE(P22,Q22),Qui!$D$301:$F$356,3,0)),0) -> 4
A23: 19 | B23: Reichen | C23: Sylvain | D23: 78 | E23: 0 | F23: 0 | G23: 0 | H23: 0 | I23: 0 | J23: 0 | M23: =SUM(D23:L23*(D23:L23>=LARGE(D23:L23,Qui!$A$402))) -> 78 | N23: =IFERROR((VLOOKUP(CONCATENATE(B23,C23),Qui!$D$301:$F$356,3,)),0) -> 4 | O23: 19 | P23: Reichen | Q23: Sylvain | R23: 75 | S23: =IFERROR((VLOOKUP(CONCATENATE(P23,Q23),Qui!$D$301:$F$356,3,0)),0) -> 4
A24: 20 | B24: Haussener | C24: Philippe | D24: 69 | E24: 0 | F24: 0 | G24: 0 | H24: 0 | I24: 0 | J24: 0 | M24: =SUM(D24:L24*(D24:L24>=LARGE(D24:L24,Qui!$A$402))) -> 69 | N24: =IFERROR((VLOOKUP(CONCATENATE(B24,C24),Qui!$D$301:$F$356,3,)),0) -> 2 | O24: 20 | P24: Haussener | Q24: Philippe | R24: 0 | S24: =IFERROR((VLOOKUP(CONCATENATE(P24,Q24),Qui!$D$301:$F$356,3,0)),0) -> 2
A25: 21 | B25: Dubois | C25: Emmanuel | D25: 67 | E25: 0 | F25: 0 | G25: 0 | H25: 0 | I25: 0 | J25: 0 | M25: =SUM(D25:L25*(D25:L25>=LARGE(D25:L25,Qui!$A$402))) -> 67 | N25: =IFERROR((VLOOKUP(CONCATENATE(B25,C25),Qui!$D$301:$F$356,3,)),0) -> 1 | O25: 21 | P25: Dubois | Q25: Emmanuel | R25: 0 | S25: =IFERROR((VLOOKUP(CONCATENATE(P25,Q25),Qui!$D$301:$F$356,3,0)),0) -> 1
A26: 22 | B26: Matthey | C26: Pierre | D26: 65 | E26: 0 | F26: 0 | G26: 0 | H26: 0 | I26: 0 | J26: 0 | M26: =SUM(D26:L26*(D26:L26>=LARGE(D26:L26,Qui!$A$402))) -> 65 | N26: =IFERROR((VLOOKUP(CONCATENATE(B26,C26),Qui!$D$301:$F$356,3,)),0) -> 1 | O26: 22 | P26: Matthey | Q26: Pierre | R26: 91 | S26: =IFERROR((VLOOKUP(CONCATENATE(P26,Q26),Qui!$D$301:$F$356,3,0)),0) -> 1
A27: 23 | B27: Dubois | C27: Marcel | D27: 53 | E27: 0 | F27: 0 | G27: 0 | H27: 0 | I27: 0 | J27: 0 | M27: =SUM(D27:L27*(D27:L27>=LARGE(D27:L27,Qui!$A$402))) -> 53 | N27: =IFERROR((VLOOKUP(CONCATENATE(B27,C27),Qui!$D$301:$F$356,3,)),0) -> 1 | O27: 23 | P27: Dubois | Q27: Marcel | R27: 46 | S27: =IFERROR((VLOOKUP(CONCATENATE(P27,Q27),Qui!$D$301:$F$356,3,0)),0) -> 1
A28: 24 | B28: Jean-Mairet | C28: Jean-Claude | D28: 51 | E28: 0 | F28: 0 | G28: 0 | H28: 0 | I28: 0 | J28: 0 | M28: =SUM(D28:L28*(D28:L28>=LARGE(D28:L28,Qui!$A$402))) -> 51 | N28: =IFERROR((VLOOKUP(CONCATENATE(B28,C28),Qui!$D$301:$F$356,3,)),0) -> 1 | O28: 24 | P28: Jean-Mairet | Q28: Jean-Claude | R28: 21 | S28: =IFERROR((VLOOKUP(CONCATENATE(P28,Q28),Qui!$D$301:$F$356,3,0)),0) -> 1
A29: 25 | B29: Coppet | C29: Romain | D29: 40 | E29: 0 | F29: 0 | G29: 0 | H29: 0 | I29: 0 | J29: 0 | M29: =SUM(D29:L29*(D29:L29>=LARGE(D29:L29,Qui!$A$402))) -> 40 | N29: =IFERROR((VLOOKUP(CONCATENATE(B29,C29),Qui!$D$301:$F$356,3,)),0) -> 3 | O29: 25 | P29: Coppet | Q29: Romain | R29: 55 | S29: =IFERROR((VLOOKUP(CONCATENATE(P29,Q29),Qui!$D$301:$F$356,3,0)),0) -> 3
A30: 26 | B30: Rindlisbacher | C30: Heinz | D30: 37 | E30: 0 | F30: 0 | G30: 0 | H30: 0 | I30: 0 | J30: 0 | M30: =SUM(D30:L30*(D30:L30>=LARGE(D30:L30,Qui!$A$402))) -> 37 | N30: =IFERROR((VLOOKUP(CONCATENATE(B30,C30),Qui!$D$301:$F$356,3,)),0) -> 4 | O30: 26 | P30: Rindlisbacher | Q30: Heinz | R30: 0 | S30: =IFERROR((VLOOKUP(CONCATENATE(P30,Q30),Qui!$D$301:$F$356,3,0)),0) -> 4
A31: 27 | B31: Favre | C31: Daniel | D31: 0 | E31: 0 | F31: 0 | G31: 0 | H31: 0 | I31: 0 | J31: 0 | M31: =SUM(D31:L31*(D31:L31>=LARGE(D31:L31,Qui!$A$402))) -> 0 | N31: =IFERROR((VLOOKUP(CONCATENATE(B31,C31),Qui!$D$301:$F$356,3,)),0) -> 3 | O31: 27 | P31: Favre | Q31: Daniel | R31: 112 | S31: =IFERROR((VLOOKUP(CONCATENATE(P31,Q31),Qui!$D$301:$F$356,3,0)),0) -> 3
A32: 28 | B32: Cassi | C32: Alain | D32: 0 | E32: 0 | F32: 0 | G32: 0 | H32: 0 | I32: 0 | J32: 0 | M32: =SUM(D32:L32*(D32:L32>=LARGE(D32:L32,Qui!$A$402))) -> 0 | N32: =IFERROR((VLOOKUP(CONCATENATE(B32,C32),Qui!$D$301:$F$356,3,)),0) -> 3 | O32: 28 | P32: Cassi | Q32: Alain | R32: 0 | S32: =IFERROR((VLOOKUP(CONCATENATE(P32,Q32),Qui!$D$301:$F$356,3,0)),0) -> 3
A33: 29 | B33: Wäfler | C33: Jean-Louis | D33: 0 | E33: 0 | F33: 0 | G33: 0 | H33: 0 | I33: 0 | J33: 0 | M33: =SUM(D33:L33*(D33:L33>=LARGE(D33:L33,Qui!$A$402))) -> 0 | N33: =IFERROR((VLOOKUP(CONCATENATE(B33,C33),Qui!$D$301:$F$356,3,)),0) -> 4 | O33: 29 | P33: Wäfler | Q33: Jean-Louis | R33: 0 | S33: =IFERROR((VLOOKUP(CONCATENATE(P33,Q33),Qui!$D$301:$F$356,3,0)),0) -> 4
A34: 30 | B34: Kemajl | C34: Fetahi | D34: 0 | E34: 0 | F34: 0 | G34: 0 | H34: 0 | I34: 0 | J34: 0 | M34: =SUM(D34:L34*(D34:L34>=LARGE(D34:L34,Qui!$A$402))) -> 0 | N34: =IFERROR((VLOOKUP(CONCATENATE(B34,C34),Qui!$D$301:$F$356,3,)),0) -> 3 | O34: 30 | P34: Kemajl | Q34: Fetahi | R34: 106 | S34: =IFERROR((VLOOKUP(CONCATENATE(P34,Q34),Qui!$D$301:$F$356,3,0)),0) -> 3
A35: 31 | B35: Billod-Morel | C35: Gérald | D35: 0 | E35: 0 | F35: 0 | G35: 0 | H35: 0 | I35: 0 | J35: 0 | M35: =SUM(D35:L35*(D35:L35>=LARGE(D35:L35,Qui!$A$402))) -> 0 | N35: =IFERROR((VLOOKUP(CONCATENATE(B35,C35),Qui!$D$301:$F$356,3,)),0) -> 1 | O35: 31 | R35: 0 | S35: =IFERROR((VLOOKUP(CONCATENATE(P35,Q35),Qui!$D$301:$F$356,3,0)),0) -> 0
A36: 32 | E36: 0 | F36: 0 | G36: 0 | H36: 0 | I36: 0 | J36: 0 | M36: =SUM(D36:L36*(D36:L36>=LARGE(D36:L36,Qui!$A$402))) -> 0 | N36: =IFERROR((VLOOKUP(CONCATENATE(B36,C36),Qui!$D$301:$F$356,3,)),0) -> 0 | O36: 32 | R36: 0 | S36: =IFERROR((VLOOKUP(CONCATENATE(P36,Q36),Qui!$D$301:$F$356,3,0)),0) -> 0
A37: 33 | E37: 0 | F37: 0 | G37: 0 | H37: 0 | I37: 0 | J37: 0 | M37: =SUM(D37:L37*(D37:L37>=LARGE(D37:L37,Qui!$A$402))) -> 0 | N37: =IFERROR((VLOOKUP(CONCATENATE(B37,C37),Qui!$D$301:$F$356,3,)),0) -> 0 | O37: 33 | R37: 0 | S37: =IFERROR((VLOOKUP(CONCATENATE(P37,Q37),Qui!$D$301:$F$356,3,0)),0) -> 0
A38: 34 | E38: 0 | F38: 0 | G38: 0 | H38: 0 | I38: 0 | J38: 0 | M38: =SUM(D38:L38*(D38:L38>=LARGE(D38:L38,Qui!$A$402))) -> 0 | N38: =IFERROR((VLOOKUP(CONCATENATE(B38,C38),Qui!$D$301:$F$356,3,)),0) -> 0 | O38: 34 | R38: 0 | S38: =IFERROR((VLOOKUP(CONCATENATE(P38,Q38),Qui!$D$301:$F$356,3,0)),0) -> 0
A39: 35 | D39: 0 | E39: 0 | F39: 0 | G39: 0 | H39: 0 | I39: 0 | J39: 0 | M39: =SUM(D39:L39*(D39:L39>=LARGE(D39:L39,Qui!$A$402))) -> 0 | N39: =IFERROR((VLOOKUP(CONCATENATE(B39,C39),Qui!$D$301:$F$356,3,)),0) -> 0 | O39: 35 | R39: 0 | S39: =IFERROR((VLOOKUP(CONCATENATE(P39,Q39),Qui!$D$301:$F$356,3,0)),0) -> 0
A40: 36 | D40: 0 | E40: 0 | F40: 0 | G40: 0 | H40: 0 | I40: 0 | J40: 0 | K40: 0 | L40: 0 | M40: =SUM(D40:L40*(D40:L40>=LARGE(D40:L40,Qui!$A$402))) -> 0 | N40: =IFERROR((VLOOKUP(CONCATENATE(B40,C40),Qui!$D$301:$F$356,3,)),0) -> 0 | O40: 36 | R40: 0 | S40: =IFERROR((VLOOKUP(CONCATENATE(P40,Q40),Qui!$D$301:$F$356,3,0)),0) -> 0
A41: 37 | D41: 0 | E41: 0 | F41: 0 | G41: 0 | H41: 0 | I41: 0 | J41: 0 | K41: 0 | L41: 0 | M41: =SUM(D41:L41*(D41:L41>=LARGE(D41:L41,Qui!$A$402))) -> 0 | N41: =IFERROR((VLOOKUP(CONCATENATE(B41,C41),Qui!$D$301:$F$356,3,)),0) -> 0 | O41: 37 | R41: 0 | S41: =IFERROR((VLOOKUP(CONCATENATE(P41,Q41),Qui!$D$301:$F$356,3,0)),0) -> 0
A42: 38 | D42: 0 | E42: 0 | F42: 0 | G42: 0 | H42: 0 | I42: 0 | J42: 0 | K42: 0 | L42: 0 | M42: =SUM(D42:L42*(D42:L42>=LARGE(D42:L42,Qui!$A$402))) -> 0 | N42: =IFERROR((VLOOKUP(CONCATENATE(B42,C42),Qui!$D$301:$F$356,3,)),0) -> 0 | O42: 38 | R42: 0 | S42: =IFERROR((VLOOKUP(CONCATENATE(P42,Q42),Qui!$D$301:$F$356,3,0)),0) -> 0
A43: 39 | D43: 0 | E43: 0 | F43: 0 | G43: 0 | H43: 0 | I43: 0 | J43: 0 | K43: 0 | L43: 0 | M43: =SUM(D43:L43*(D43:L43>=LARGE(D43:L43,Qui!$A$402))) -> 0 | N43: =IFERROR((VLOOKUP(CONCATENATE(B43,C43),Qui!$D$301:$F$356,3,)),0) -> 0 | O43: 39 | R43: 0 | S43: =IFERROR((VLOOKUP(CONCATENATE(P43,Q43),Qui!$D$301:$F$356,3,0)),0) -> 0
A44: 40 | D44: 0 | E44: 0 | F44: 0 | G44: 0 | H44: 0 | I44: 0 | J44: 0 | K44: 0 | L44: 0 | M44: =SUM(D44:L44*(D44:L44>=LARGE(D44:L44,Qui!$A$402))) -> 0 | N44: =IFERROR((VLOOKUP(CONCATENATE(B44,C44),Qui!$D$301:$F$356,3,)),0) -> 0 | O44: 40 | R44: 0 | S44: =IFERROR((VLOOKUP(CONCATENATE(P44,Q44),Qui!$D$301:$F$356,3,0)),0) -> 0
A45: 41 | D45: 0 | E45: 0 | F45: 0 | G45: 0 | H45: 0 | I45: 0 | J45: 0 | K45: 0 | L45: 0 | M45: =SUM(D45:L45*(D45:L45>=LARGE(D45:L45,Qui!$A$402))) -> 0 | N45: =IFERROR((VLOOKUP(CONCATENATE(B45,C45),Qui!$D$301:$F$356,3,)),0) -> 0 | O45: 41 | R45: 0 | S45: =IFERROR((VLOOKUP(CONCATENATE(P45,Q45),Qui!$D$301:$F$356,3,0)),0) -> 0
A46: 42 | D46: 0 | E46: 0 | F46: 0 | G46: 0 | H46: 0 | I46: 0 | J46: 0 | K46: 0 | L46: 0 | M46: =SUM(D46:L46*(D46:L46>=LARGE(D46:L46,Qui!$A$402))) -> 0 | N46: =IFERROR((VLOOKUP(CONCATENATE(B46,C46),Qui!$D$301:$F$356,3,)),0) -> 0 | O46: 42 | R46: 0 | S46: =IFERROR((VLOOKUP(CONCATENATE(P46,Q46),Qui!$D$301:$F$356,3,0)),0) -> 0
A47: 43 | D47: 0 | E47: 0 | F47: 0 | G47: 0 | H47: 0 | I47: 0 | J47: 0 | K47: 0 | L47: 0 | M47: =SUM(D47:L47*(D47:L47>=LARGE(D47:L47,Qui!$A$402))) -> 0 | N47: =IFERROR((VLOOKUP(CONCATENATE(B47,C47),Qui!$D$301:$F$356,3,)),0) -> 0 | O47: 43 | R47: 0 | S47: =IFERROR((VLOOKUP(CONCATENATE(P47,Q47),Qui!$D$301:$F$356,3,0)),0) -> 0
A48: 44 | D48: 0 | E48: 0 | F48: 0 | G48: 0 | H48: 0 | I48: 0 | J48: 0 | K48: 0 | L48: 0 | M48: =SUM(D48:L48*(D48:L48>=LARGE(D48:L48,Qui!$A$402))) -> 0 | N48: =IFERROR((VLOOKUP(CONCATENATE(B48,C48),Qui!$D$301:$F$356,3,)),0) -> 0 | O48: 44 | R48: 0 | S48: =IFERROR((VLOOKUP(CONCATENATE(P48,Q48),Qui!$D$301:$F$356,3,0)),0) -> 0
A49: 45 | D49: 0 | E49: 0 | F49: 0 | G49: 0 | H49: 0 | I49: 0 | J49: 0 | K49: 0 | L49: 0 | M49: =SUM(D49:L49*(D49:L49>=LARGE(D49:L49,Qui!$A$402))) -> 0 | N49: =IFERROR((VLOOKUP(CONCATENATE(B49,C49),Qui!$D$301:$F$356,3,)),0) -> 0 | O49: 45 | R49: 0 | S49: =IFERROR((VLOOKUP(CONCATENATE(P49,Q49),Qui!$D$301:$F$356,3,0)),0) -> 0
A50: 46 | D50: 0 | E50: 0 | F50: 0 | G50: 0 | H50: 0 | I50: 0 | J50: 0 | K50: 0 | L50: 0 | M50: =SUM(D50:L50*(D50:L50>=LARGE(D50:L50,Qui!$A$402))) -> 0 | N50: =IFERROR((VLOOKUP(CONCATENATE(B50,C50),Qui!$D$301:$F$356,3,)),0) -> 0 | O50: 46 | R50: 0 | S50: =IFERROR((VLOOKUP(CONCATENATE(P50,Q50),Qui!$D$301:$F$356,3,0)),0) -> 0
A51: 47 | D51: 0 | E51: 0 | F51: 0 | G51: 0 | H51: 0 | I51: 0 | J51: 0 | K51: 0 | L51: 0 | M51: =SUM(D51:L51*(D51:L51>=LARGE(D51:L51,Qui!$A$402))) -> 0 | N51: =IFERROR((VLOOKUP(CONCATENATE(B51,C51),Qui!$D$301:$F$356,3,)),0) -> 0 | O51: 47 | R51: 0 | S51: =IFERROR((VLOOKUP(CONCATENATE(P51,Q51),Qui!$D$301:$F$356,3,0)),0) -> 0
A52: 48 | D52: 0 | E52: 0 | F52: 0 | G52: 0 | H52: 0 | I52: 0 | J52: 0 | K52: 0 | L52: 0 | M52: =SUM(D52:L52*(D52:L52>=LARGE(D52:L52,Qui!$A$402))) -> 0 | N52: =IFERROR((VLOOKUP(CONCATENATE(B52,C52),Qui!$D$301:$F$356,3,)),0) -> 0 | O52: 48 | R52: 0 | S52: =IFERROR((VLOOKUP(CONCATENATE(P52,Q52),Qui!$D$301:$F$356,3,0)),0) -> 0
A53: 49 | D53: 0 | E53: 0 | F53: 0 | G53: 0 | H53: 0 | I53: 0 | J53: 0 | K53: 0 | L53: 0 | M53: =SUM(D53:L53*(D53:L53>=LARGE(D53:L53,Qui!$A$402))) -> 0 | N53: =IFERROR((VLOOKUP(CONCATENATE(B53,C53),Qui!$D$301:$F$356,3,)),0) -> 0 | O53: 49 | R53: 0 | S53: =IFERROR((VLOOKUP(CONCATENATE(P53,Q53),Qui!$D$301:$F$356,3,0)),0) -> 0
A54: 50 | D54: 0 | E54: 0 | F54: 0 | G54: 0 | H54: 0 | I54: 0 | J54: 0 | K54: 0 | L54: 0 | M54: =SUM(D54:L54*(D54:L54>=LARGE(D54:L54,Qui!$A$402))) -> 0 | N54: =IFERROR((VLOOKUP(CONCATENATE(B54,C54),Qui!$D$301:$F$356,3,)),0) -> 0 | O54: 50 | R54: 0 | S54: =IFERROR((VLOOKUP(CONCATENATE(P54,Q54),Qui!$D$301:$F$356,3,0)),0) -> 0
A55: 51 | D55: 0 | E55: 0 | F55: 0 | G55: 0 | H55: 0 | I55: 0 | J55: 0 | K55: 0 | L55: 0 | M55: =SUM(D55:L55*(D55:L55>=LARGE(D55:L55,Qui!$A$402))) -> 0 | N55: =IFERROR((VLOOKUP(CONCATENATE(B55,C55),Qui!$D$301:$F$356,3,)),0) -> 0 | O55: 51 | R55: 0 | S55: =IFERROR((VLOOKUP(CONCATENATE(P55,Q55),Qui!$D$301:$F$356,3,0)),0) -> 0
A56: 52 | D56: 0 | E56: 0 | F56: 0 | G56: 0 | H56: 0 | I56: 0 | J56: 0 | K56: 0 | L56: 0 | M56: =SUM(D56:L56*(D56:L56>=LARGE(D56:L56,Qui!$A$402))) -> 0 | N56: =IFERROR((VLOOKUP(CONCATENATE(B56,C56),Qui!$D$301:$F$356,3,)),0) -> 0 | O56: 52 | R56: 0 | S56: =IFERROR((VLOOKUP(CONCATENATE(P56,Q56),Qui!$D$301:$F$356,3,0)),0) -> 0
A57: 53 | D57: 0 | E57: 0 | F57: 0 | G57: 0 | H57: 0 | I57: 0 | J57: 0 | K57: 0 | L57: 0 | M57: =SUM(D57:L57*(D57:L57>=LARGE(D57:L57,Qui!$A$402))) -> 0 | N57: =IFERROR((VLOOKUP(CONCATENATE(B57,C57),Qui!$D$301:$F$356,3,)),0) -> 0 | O57: 53 | R57: 0 | S57: =IFERROR((VLOOKUP(CONCATENATE(P57,Q57),Qui!$D$301:$F$356,3,0)),0) -> 0
A58: 54 | D58: 0 | E58: 0 | F58: 0 | G58: 0 | H58: 0 | I58: 0 | J58: 0 | K58: 0 | L58: 0 | M58: =SUM(D58:L58*(D58:L58>=LARGE(D58:L58,Qui!$A$402))) -> 0 | N58: =IFERROR((VLOOKUP(CONCATENATE(B58,C58),Qui!$D$301:$F$356,3,)),0) -> 0 | O58: 54 | R58: 0 | S58: =IFERROR((VLOOKUP(CONCATENATE(P58,Q58),Qui!$D$301:$F$356,3,0)),0) -> 0
D59: =MAX(D5:D58) -> 118 | F59: =MAX(F5:F58) -> 0 | G59: =MAX(G5:G58) -> 0 | I59: =MAX(I5:I58) -> 0 | J59: =MAX(J5:J58) -> 0 | K59: =MAX(K5:K58) -> 0 | L59: =MAX(L5:L58) -> 0
A60: Classement général par équipe | O60: Classement par équipe
A62: 1 | B62: La Vue-des-Alpes | D62: 480 | M62: =SUM(D62:L62) -> 480 | N62: =VLOOKUP(B62,Qui!$A$201:$D$204,4) -> 2 | O62: 1 | P62: La Vue-des-Alpes | R62: 0 | S62: =VLOOKUP(P62,Qui!$A$201:$D$204,4) -> 2
A63: 2 | B63: L'Epi | D63: 458 | M63: =SUM(D63:L63) -> 458 | N63: =VLOOKUP(B63,Qui!$A$201:$D$204,4) -> 4 | O63: 2 | P63: L'Epi | R63: 0 | S63: =VLOOKUP(P63,Qui!$A$201:$D$204,4) -> 4
A64: 3 | B64: La Chaux-de-Fonds | D64: 442 | M64: =SUM(D64:L64) -> 442 | N64: =VLOOKUP(B64,Qui!$A$201:$D$204,4) -> 1 | O64: 3 | P64: La Chaux-de-Fonds | R64: 0 | S64: =VLOOKUP(P64,Qui!$A$201:$D$204,4) -> 1
A65: 4 | B65: Le Locle | D65: 228 | M65: =SUM(D65:L65) -> 228 | N65: =VLOOKUP(B65,Qui!$A$201:$D$204,4) -> 3 | O65: 4 | P65: Le Locle | R65: 0 | S65: =VLOOKUP(P65,Qui!$A$201:$D$204,4) -> 3
A66: 5 | O66: 5 | R66: 435 | S66: =VLOOKUP(P66,Qui!$A$201:$D$204,4) -> 
A67: 6 | O67: 6 | R67: 435 | S67: =VLOOKUP(P67,Qui!$A$201:$D$204,4) -> 
D68: =MAX(D62:D67) ->  | F68: =MAX(F62:F67) -> 0 | G68: =MAX(G62:G67) -> 0 | I68: =MAX(I62:I67) -> 0 | J68: =MAX(J62:J67) -> 0 | K68: =MAX(K62:K67) -> 0 | L68: =MAX(L62:L67) -> 0 | R68: 0
M69: La Chaux-de-Fonds, le 2023 / CM
B71: =CONCATENATE("Rappels :") -> Rappels :
B73: =CONCATENATE("a) le classement général par équipe est fait sur le cumul des ",Qui!$B$402," meilleurs résultats individuels de chaque manche") -> a) le classement général par équipe est fait sur le cumul des 5 meilleurs résultats individuels de chaque manche
B74: =CONCATENATE("b) le classement général individuel est fait sur le cumul des ",Qui!$A$402," meilleurs résultats individuels") -> b) le classement général individuel est fait sur le cumul des 5 meilleurs résultats individuels

Sheet Manche_3 (hidden)
A1: Association intercantonale des joueurs de boules Grand Jeu Neuchâtelois
A2: =CONCATENATE("Championnat grand jeu neuchâtelois ",YEAR(Calendrier!B6)) -> Championnat grand jeu neuchâtelois 2024
A3: Classement général individuel | C3: Manches | D3: =Calendrier!F40 -> Grand-Sommartel | E3: =Calendrier!F47 -> Le Locle | F3: =Calendrier!F54 -> Evologia | G3: =Calendrier!F61 -> La Vue-des-Alpes | H3: =Calendrier!F68 -> L'Epi | I3: =Calendrier!F75 -> La Chaux-de-Fonds | J3: =Calendrier!F82 -> 00:00:00 | M3: =CONCATENATE("Général",CHAR(10),"les ",Qui!$A$402," meilleurs") -> Général les 5 meilleurs | P3: =CONCATENATE("Classement de la manche",CHAR(10),Calendrier!F54,CHAR(10),"du",TEXT(Calendrier!F56," jj.mm")," au",TEXT(Calendrier!F59," jj.mm.aaaa")) -> Classement de la manche Evologia du 30.09 au 03.10.2024 | U3: =CONCATENATE(TEXT(Calendrier!F56," jj.mm")," au",TEXT(Calendrier!F59," jj.mm.aaaa")) -> 30.09 au 03.10.2024
D4: 1 | E4: 2 | F4: 3 | G4: 4 | H4: 5 | I4: 6 | J4: 7 | K4: 8 | L4: 9 | P4: =CONCATENATE("Champion de jeu : ",CHAR(10),P5," ",Q5) -> Champion de jeu :
A5: 1 | M5: =SUM(D5:L5*(D5:L5>=LARGE(D5:L5,Qui!$A$402))) ->  | N5: =IFERROR((VLOOKUP(CONCATENATE(B5,C5),Qui!$D$301:$F$356,3,)),0) -> 0 | O5: 1 | R5: 0 | S5: =IFERROR((VLOOKUP(CONCATENATE(P5,Q5),Qui!$D$301:$F$356,3,0)),0) -> 0
A6: 2 | M6: =SUM(D6:L6*(D6:L6>=LARGE(D6:L6,Qui!$A$402))) ->  | N6: =IFERROR((VLOOKUP(CONCATENATE(B6,C6),Qui!$D$301:$F$356,3,)),0) -> 0 | O6: 2 | R6: 0 | S6: =IFERROR((VLOOKUP(CONCATENATE(P6,Q6),Qui!$D$301:$F$356,3,0)),0) -> 0
A7: 3 | M7: =SUM(D7:L7*(D7:L7>=LARGE(D7:L7,Qui!$A$402))) ->  | N7: =IFERROR((VLOOKUP(CONCATENATE(B7,C7),Qui!$D$301:$F$356,3,)),0) -> 0 | O7: 3 | R7: 0 | S7: =IFERROR((VLOOKUP(CONCATENATE(P7,Q7),Qui!$D$301:$F$356,3,0)),0) -> 0
A8: 4 | M8: =SUM(D8:L8*(D8:L8>=LARGE(D8:L8,Qui!$A$402))) ->  | N8: =IFERROR((VLOOKUP(CONCATENATE(B8,C8),Qui!$D$301:$F$356,3,)),0) -> 0 | O8: 4 | R8: 0 | S8: =IFERROR((VLOOKUP(CONCATENATE(P8,Q8),Qui!$D$301:$F$356,3,0)),0) -> 0
A9: 5 | M9: =SUM(D9:L9*(D9:L9>=LARGE(D9:L9,Qui!$A$402))) ->  | N9: =IFERROR((VLOOKUP(CONCATENATE(B9,C9),Qui!$D$301:$F$356,3,)),0) -> 0 | O9: 5 | R9: 0 | S9: =IFERROR((VLOOKUP(CONCATENATE(P9,Q9),Qui!$D$301:$F$356,3,0)),0) -> 0
A10: 6 | M10: =SUM(D10:L10*(D10:L10>=LARGE(D10:L10,Qui!$A$402))) ->  | N10: =IFERROR((VLOOKUP(CONCATENATE(B10,C10),Qui!$D$301:$F$356,3,)),0) -> 0 | O10: 6 | R10: 0 | S10: =IFERROR((VLOOKUP(CONCATENATE(P10,Q10),Qui!$D$301:$F$356,3,0)),0) -> 0
A11: 7 | M11: =SUM(D11:L11*(D11:L11>=LARGE(D11:L11,Qui!$A$402))) ->  | N11: =IFERROR((VLOOKUP(CONCATENATE(B11,C11),Qui!$D$301:$F$356,3,)),0) -> 0 | O11: 7 | R11: 0 | S11: =IFERROR((VLOOKUP(CONCATENATE(P11,Q11),Qui!$D$301:$F$356,3,0)),0) -> 0
A12: 8 | M12: =SUM(D12:L12*(D12:L12>=LARGE(D12:L12,Qui!$A$402))) ->  | N12: =IFERROR((VLOOKUP(CONCATENATE(B12,C12),Qui!$D$301:$F$356,3,)),0) -> 0 | O12: 8 | R12: 0 | S12: =IFERROR((VLOOKUP(CONCATENATE(P12,Q12),Qui!$D$301:$F$356,3,0)),0) -> 0
A13: 9 | M13: =SUM(D13:L13*(D13:L13>=LARGE(D13:L13,Qui!$A$402))) ->  | N13: =IFERROR((VLOOKUP(CONCATENATE(B13,C13),Qui!$D$301:$F$356,3,)),0) -> 0 | O13: 9 | R13: 0 | S13: =IFERROR((VLOOKUP(CONCATENATE(P13,Q13),Qui!$D$301:$F$356,3,0)),0) -> 0
A14: 10 | M14: =SUM(D14:L14*(D14:L14>=LARGE(D14:L14,Qui!$A$402))) ->  | N14: =IFERROR((VLOOKUP(CONCATENATE(B14,C14),Qui!$D$301:$F$356,3,)),0) -> 0 | O14: 10 | R14: 0 | S14: =IFERROR((VLOOKUP(CONCATENATE(P14,Q14),Qui!$D$301:$F$356,3,0)),0) -> 0
A15: 11 | M15: =SUM(D15:L15*(D15:L15>=LARGE(D15:L15,Qui!$A$402))) ->  | N15: =IFERROR((VLOOKUP(CONCATENATE(B15,C15),Qui!$D$301:$F$356,3,)),0) -> 0 | O15: 11 | R15: 0 | S15: =IFERROR((VLOOKUP(CONCATENATE(P15,Q15),Qui!$D$301:$F$356,3,0)),0) -> 0
A16: 12 | M16: =SUM(D16:L16*(D16:L16>=LARGE(D16:L16,Qui!$A$402))) ->  | N16: =IFERROR((VLOOKUP(CONCATENATE(B16,C16),Qui!$D$301:$F$356,3,)),0) -> 0 | O16: 12 | R16: 0 | S16: =IFERROR((VLOOKUP(CONCATENATE(P16,Q16),Qui!$D$301:$F$356,3,0)),0) -> 0
A17: 13 | M17: =SUM(D17:L17*(D17:L17>=LARGE(D17:L17,Qui!$A$402))) ->  | N17: =IFERROR((VLOOKUP(CONCATENATE(B17,C17),Qui!$D$301:$F$356,3,)),0) -> 0 | O17: 13 | R17: 0 | S17: =IFERROR((VLOOKUP(CONCATENATE(P17,Q17),Qui!$D$301:$F$356,3,0)),0) -> 0
A18: 14 | M18: =SUM(D18:L18*(D18:L18>=LARGE(D18:L18,Qui!$A$402))) ->  | N18: =IFERROR((VLOOKUP(CONCATENATE(B18,C18),Qui!$D$301:$F$356,3,)),0) -> 0 | O18: 14 | R18: 0 | S18: =IFERROR((VLOOKUP(CONCATENATE(P18,Q18),Qui!$D$301:$F$356,3,0)),0) -> 0
A19: 15 | M19: =SUM(D19:L19*(D19:L19>=LARGE(D19:L19,Qui!$A$402))) ->  | N19: =IFERROR((VLOOKUP(CONCATENATE(B19,C19),Qui!$D$301:$F$356,3,)),0) -> 0 | O19: 15 | R19: 0 | S19: =IFERROR((VLOOKUP(CONCATENATE(P19,Q19),Qui!$D$301:$F$356,3,0)),0) -> 0
A20: 16 | M20: =SUM(D20:L20*(D20:L20>=LARGE(D20:L20,Qui!$A$402))) ->  | N20: =IFERROR((VLOOKUP(CONCATENATE(B20,C20),Qui!$D$301:$F$356,3,)),0) -> 0 | O20: 16 | R20: 0 | S20: =IFERROR((VLOOKUP(CONCATENATE(P20,Q20),Qui!$D$301:$F$356,3,0)),0) -> 0
A21: 17 | M21: =SUM(D21:L21*(D21:L21>=LARGE(D21:L21,Qui!$A$402))) ->  | N21: =IFERROR((VLOOKUP(CONCATENATE(B21,C21),Qui!$D$301:$F$356,3,)),0) -> 0 | O21: 17 | R21: 0 | S21: =IFERROR((VLOOKUP(CONCATENATE(P21,Q21),Qui!$D$301:$F$356,3,0)),0) -> 0
A22: 18 | M22: =SUM(D22:L22*(D22:L22>=LARGE(D22:L22,Qui!$A$402))) ->  | N22: =IFERROR((VLOOKUP(CONCATENATE(B22,C22),Qui!$D$301:$F$356,3,)),0) -> 0 | O22: 18 | R22: 0 | S22: =IFERROR((VLOOKUP(CONCATENATE(P22,Q22),Qui!$D$301:$F$356,3,0)),0) -> 0
A23: 19 | M23: =SUM(D23:L23*(D23:L23>=LARGE(D23:L23,Qui!$A$402))) ->  | N23: =IFERROR((VLOOKUP(CONCATENATE(B23,C23),Qui!$D$301:$F$356,3,)),0) -> 0 | O23: 19 | R23: 0 | S23: =IFERROR((VLOOKUP(CONCATENATE(P23,Q23),Qui!$D$301:$F$356,3,0)),0) -> 0
A24: 20 | M24: =SUM(D24:L24*(D24:L24>=LARGE(D24:L24,Qui!$A$402))) ->  | N24: =IFERROR((VLOOKUP(CONCATENATE(B24,C24),Qui!$D$301:$F$356,3,)),0) -> 0 | O24: 20 | R24: 0 | S24: =IFERROR((VLOOKUP(CONCATENATE(P24,Q24),Qui!$D$301:$F$356,3,0)),0) -> 0
A25: 21 | M25: =SUM(D25:L25*(D25:L25>=LARGE(D25:L25,Qui!$A$402))) ->  | N25: =IFERROR((VLOOKUP(CONCATENATE(B25,C25),Qui!$D$301:$F$356,3,)),0) -> 0 | O25: 21 | R25: 0 | S25: =IFERROR((VLOOKUP(CONCATENATE(P25,Q25),Qui!$D$301:$F$356,3,0)),0) -> 0
A26: 22 | M26: =SUM(D26:L26*(D26:L26>=LARGE(D26:L26,Qui!$A$402))) ->  | N26: =IFERROR((VLOOKUP(CONCATENATE(B26,C26),Qui!$D$301:$F$356,3,)),0) -> 0 | O26: 22 | R26: 0 | S26: =IFERROR((VLOOKUP(CONCATENATE(P26,Q26),Qui!$D$301:$F$356,3,0)),0) -> 0
A27: 23 | M27: =SUM(D27:L27*(D27:L27>=LARGE(D27:L27,Qui!$A$402))) ->  | N27: =IFERROR((VLOOKUP(CONCATENATE(B27,C27),Qui!$D$301:$F$356,3,)),0) -> 0 | O27: 23 | R27: 0 | S27: =IFERROR((VLOOKUP(CONCATENATE(P27,Q27),Qui!$D$301:$F$356,3,0)),0) -> 0
A28: 24 | M28: =SUM(D28:L28*(D28:L28>=LARGE(D28:L28,Qui!$A$402))) ->  | N28: =IFERROR((VLOOKUP(CONCATENATE(B28,C28),Qui!$D$301:$F$356,3,)),0) -> 0 | O28: 24 | R28: 0 | S28: =IFERROR((VLOOKUP(CONCATENATE(P28,Q28),Qui!$D$301:$F$356,3,0)),0) -> 0
A29: 25 | M29: =SUM(D29:L29*(D29:L29>=LARGE(D29:L29,Qui!$A$402))) ->  | N29: =IFERROR((VLOOKUP(CONCATENATE(B29,C29),Qui!$D$301:$F$356,3,)),0) -> 0 | O29: 25 | R29: 0 | S29: =IFERROR((VLOOKUP(CONCATENATE(P29,Q29),Qui!$D$301:$F$356,3,0)),0) -> 0
A30: 26 | M30: =SUM(D30:L30*(D30:L30>=LARGE(D30:L30,Qui!$A$402))) ->  | N30: =IFERROR((VLOOKUP(CONCATENATE(B30,C30),Qui!$D$301:$F$356,3,)),0) -> 0 | O30: 26 | R30: 0 | S30: =IFERROR((VLOOKUP(CONCATENATE(P30,Q30),Qui!$D$301:$F$356,3,0)),0) -> 0
A31: 27 | M31: =SUM(D31:L31*(D31:L31>=LARGE(D31:L31,Qui!$A$402))) ->  | N31: =IFERROR((VLOOKUP(CONCATENATE(B31,C31),Qui!$D$301:$F$356,3,)),0) -> 0 | O31: 27 | R31: 0 | S31: =IFERROR((VLOOKUP(CONCATENATE(P31,Q31),Qui!$D$301:$F$356,3,0)),0) -> 0
A32: 28 | M32: =SUM(D32:L32*(D32:L32>=LARGE(D32:L32,Qui!$A$402))) ->  | N32: =IFERROR((VLOOKUP(CONCATENATE(B32,C32),Qui!$D$301:$F$356,3,)),0) -> 0 | O32: 28 | R32: 0 | S32: =IFERROR((VLOOKUP(CONCATENATE(P32,Q32),Qui!$D$301:$F$356,3,0)),0) -> 0
A33: 29 | M33: =SUM(D33:L33*(D33:L33>=LARGE(D33:L33,Qui!$A$402))) ->  | N33: =IFERROR((VLOOKUP(CONCATENATE(B33,C33),Qui!$D$301:$F$356,3,)),0) -> 0 | O33: 29 | R33: 0 | S33: =IFERROR((VLOOKUP(CONCATENATE(P33,Q33),Qui!$D$301:$F$356,3,0)),0) -> 0
A34: 30 | M34: =SUM(D34:L34*(D34:L34>=LARGE(D34:L34,Qui!$A$402))) ->  | N34: =IFERROR((VLOOKUP(CONCATENATE(B34,C34),Qui!$D$301:$F$356,3,)),0) -> 0 | O34: 30 | R34: 0 | S34: =IFERROR((VLOOKUP(CONCATENATE(P34,Q34),Qui!$D$301:$F$356,3,0)),0) -> 0
A35: 31 | M35: =SUM(D35:L35*(D35:L35>=LARGE(D35:L35,Qui!$A$402))) ->  | N35: =IFERROR((VLOOKUP(CONCATENATE(B35,C35),Qui!$D$301:$F$356,3,)),0) -> 0 | O35: 31 | R35: 0 | S35: =IFERROR((VLOOKUP(CONCATENATE(P35,Q35),Qui!$D$301:$F$356,3,0)),0) -> 0
A36: 32 | M36: =SUM(D36:L36*(D36:L36>=LARGE(D36:L36,Qui!$A$402))) ->  | N36: =IFERROR((VLOOKUP(CONCATENATE(B36,C36),Qui!$D$301:$F$356,3,)),0) -> 0 | O36: 32 | R36: 0 | S36: =IFERROR((VLOOKUP(CONCATENATE(P36,Q36),Qui!$D$301:$F$356,3,0)),0) -> 0
A37: 33 | M37: =SUM(D37:L37*(D37:L37>=LARGE(D37:L37,Qui!$A$402))) ->  | N37: =IFERROR((VLOOKUP(CONCATENATE(B37,C37),Qui!$D$301:$F$356,3,)),0) -> 0 | O37: 33 | R37: 0 | S37: =IFERROR((VLOOKUP(CONCATENATE(P37,Q37),Qui!$D$301:$F$356,3,0)),0) -> 0
A38: 34 | M38: =SUM(D38:L38*(D38:L38>=LARGE(D38:L38,Qui!$A$402))) ->  | N38: =IFERROR((VLOOKUP(CONCATENATE(B38,C38),Qui!$D$301:$F$356,3,)),0) -> 0 | O38: 34 | R38: 0 | S38: =IFERROR((VLOOKUP(CONCATENATE(P38,Q38),Qui!$D$301:$F$356,3,0)),0) -> 0
A39: 35 | M39: =SUM(D39:L39*(D39:L39>=LARGE(D39:L39,Qui!$A$402))) ->  | N39: =IFERROR((VLOOKUP(CONCATENATE(B39,C39),Qui!$D$301:$F$356,3,)),0) -> 0 | O39: 35 | R39: 0 | S39: =IFERROR((VLOOKUP(CONCATENATE(P39,Q39),Qui!$D$301:$F$356,3,0)),0) -> 0
A40: 36 | D40: 0 | E40: 0 | F40: 0 | G40: 0 | H40: 0 | I40: 0 | J40: 0 | K40: 0 | L40: 0 | M40: =SUM(D40:L40*(D40:L40>=LARGE(D40:L40,Qui!$A$402))) -> 0 | N40: =IFERROR((VLOOKUP(CONCATENATE(B40,C40),Qui!$D$301:$F$356,3,)),0) -> 0 | O40: 36 | R40: 0 | S40: =IFERROR((VLOOKUP(CONCATENATE(P40,Q40),Qui!$D$301:$F$356,3,0)),0) -> 0
A41: 37 | D41: 0 | E41: 0 | F41: 0 | G41: 0 | H41: 0 | I41: 0 | J41: 0 | K41: 0 | L41: 0 | M41: =SUM(D41:L41*(D41:L41>=LARGE(D41:L41,Qui!$A$402))) -> 0 | N41: =IFERROR((VLOOKUP(CONCATENATE(B41,C41),Qui!$D$301:$F$356,3,)),0) -> 0 | O41: 37 | R41: 0 | S41: =IFERROR((VLOOKUP(CONCATENATE(P41,Q41),Qui!$D$301:$F$356,3,0)),0) -> 0
A42: 38 | D42: 0 | E42: 0 | F42: 0 | G42: 0 | H42: 0 | I42: 0 | J42: 0 | K42: 0 | L42: 0 | M42: =SUM(D42:L42*(D42:L42>=LARGE(D42:L42,Qui!$A$402))) -> 0 | N42: =IFERROR((VLOOKUP(CONCATENATE(B42,C42),Qui!$D$301:$F$356,3,)),0) -> 0 | O42: 38 | R42: 0 | S42: =IFERROR((VLOOKUP(CONCATENATE(P42,Q42),Qui!$D$301:$F$356,3,0)),0) -> 0
A43: 39 | D43: 0 | E43: 0 | F43: 0 | G43: 0 | H43: 0 | I43: 0 | J43: 0 | K43: 0 | L43: 0 | M43: =SUM(D43:L43*(D43:L43>=LARGE(D43:L43,Qui!$A$402))) -> 0 | N43: =IFERROR((VLOOKUP(CONCATENATE(B43,C43),Qui!$D$301:$F$356,3,)),0) -> 0 | O43: 39 | R43: 0 | S43: =IFERROR((VLOOKUP(CONCATENATE(P43,Q43),Qui!$D$301:$F$356,3,0)),0) -> 0
A44: 40 | D44: 0 | E44: 0 | F44: 0 | G44: 0 | H44: 0 | I44: 0 | J44: 0 | K44: 0 | L44: 0 | M44: =SUM(D44:L44*(D44:L44>=LARGE(D44:L44,Qui!$A$402))) -> 0 | N44: =IFERROR((VLOOKUP(CONCATENATE(B44,C44),Qui!$D$301:$F$356,3,)),0) -> 0 | O44: 40 | R44: 0 | S44: =IFERROR((VLOOKUP(CONCATENATE(P44,Q44),Qui!$D$301:$F$356,3,0)),0) -> 0
A45: 41 | D45: 0 | E45: 0 | F45: 0 | G45: 0 | H45: 0 | I45: 0 | J45: 0 | K45: 0 | L45: 0 | M45: =SUM(D45:L45*(D45:L45>=LARGE(D45:L45,Qui!$A$402))) -> 0 | N45: =IFERROR((VLOOKUP(CONCATENATE(B45,C45),Qui!$D$301:$F$356,3,)),0) -> 0 | O45: 41 | R45: 0 | S45: =IFERROR((VLOOKUP(CONCATENATE(P45,Q45),Qui!$D$301:$F$356,3,0)),0) -> 0
A46: 42 | D46: 0 | E46: 0 | F46: 0 | G46: 0 | H46: 0 | I46: 0 | J46: 0 | K46: 0 | L46: 0 | M46: =SUM(D46:L46*(D46:L46>=LARGE(D46:L46,Qui!$A$402))) -> 0 | N46: =IFERROR((VLOOKUP(CONCATENATE(B46,C46),Qui!$D$301:$F$356,3,)),0) -> 0 | O46: 42 | R46: 0 | S46: =IFERROR((VLOOKUP(CONCATENATE(P46,Q46),Qui!$D$301:$F$356,3,0)),0) -> 0
A47: 43 | D47: 0 | E47: 0 | F47: 0 | G47: 0 | H47: 0 | I47: 0 | J47: 0 | K47: 0 | L47: 0 | M47: =SUM(D47:L47*(D47:L47>=LARGE(D47:L47,Qui!$A$402))) -> 0 | N47: =IFERROR((VLOOKUP(CONCATENATE(B47,C47),Qui!$D$301:$F$356,3,)),0) -> 0 | O47: 43 | R47: 0 | S47: =IFERROR((VLOOKUP(CONCATENATE(P47,Q47),Qui!$D$301:$F$356,3,0)),0) -> 0
A48: 44 | D48: 0 | E48: 0 | F48: 0 | G48: 0 | H48: 0 | I48: 0 | J48: 0 | K48: 0 | L48: 0 | M48: =SUM(D48:L48*(D48:L48>=LARGE(D48:L48,Qui!$A$402))) -> 0 | N48: =IFERROR((VLOOKUP(CONCATENATE(B48,C48),Qui!$D$301:$F$356,3,)),0) -> 0 | O48: 44 | R48: 0 | S48: =IFERROR((VLOOKUP(CONCATENATE(P48,Q48),Qui!$D$301:$F$356,3,0)),0) -> 0
A49: 45 | D49: 0 | E49: 0 | F49: 0 | G49: 0 | H49: 0 | I49: 0 | J49: 0 | K49: 0 | L49: 0 | M49: =SUM(D49:L49*(D49:L49>=LARGE(D49:L49,Qui!$A$402))) -> 0 | N49: =IFERROR((VLOOKUP(CONCATENATE(B49,C49),Qui!$D$301:$F$356,3,)),0) -> 0 | O49: 45 | R49: 0 | S49: =IFERROR((VLOOKUP(CONCATENATE(P49,Q49),Qui!$D$301:$F$356,3,0)),0) -> 0
A50: 46 | D50: 0 | E50: 0 | F50: 0 | G50: 0 | H50: 0 | I50: 0 | J50: 0 | K50: 0 | L50: 0 | M50: =SUM(D50:L50*(D50:L50>=LARGE(D50:L50,Qui!$A$402))) -> 0 | N50: =IFERROR((VLOOKUP(CONCATENATE(B50,C50),Qui!$D$301:$F$356,3,)),0) -> 0 | O50: 46 | R50: 0 | S50: =IFERROR((VLOOKUP(CONCATENATE(P50,Q50),Qui!$D$301:$F$356,3,0)),0) -> 0
A51: 47 | D51: 0 | E51: 0 | F51: 0 | G51: 0 | H51: 0 | I51: 0 | J51: 0 | K51: 0 | L51: 0 | M51: =SUM(D51:L51*(D51:L51>=LARGE(D51:L51,Qui!$A$402))) -> 0 | N51: =IFERROR((VLOOKUP(CONCATENATE(B51,C51),Qui!$D$301:$F$356,3,)),0) -> 0 | O51: 47 | R51: 0 | S51: =IFERROR((VLOOKUP(CONCATENATE(P51,Q51),Qui!$D$301:$F$356,3,0)),0) -> 0
A52: 48 | D52: 0 | E52: 0 | F52: 0 | G52: 0 | H52: 0 | I52: 0 | J52: 0 | K52: 0 | L52: 0 | M52: =SUM(D52:L52*(D52:L52>=LARGE(D52:L52,Qui!$A$402))) -> 0 | N52: =IFERROR((VLOOKUP(CONCATENATE(B52,C52),Qui!$D$301:$F$356,3,)),0) -> 0 | O52: 48 | R52: 0 | S52: =IFERROR((VLOOKUP(CONCATENATE(P52,Q52),Qui!$D$301:$F$356,3,0)),0) -> 0
A53: 49 | D53: 0 | E53: 0 | F53: 0 | G53: 0 | H53: 0 | I53: 0 | J53: 0 | K53: 0 | L53: 0 | M53: =SUM(D53:L53*(D53:L53>=LARGE(D53:L53,Qui!$A$402))) -> 0 | N53: =IFERROR((VLOOKUP(CONCATENATE(B53,C53),Qui!$D$301:$F$356,3,)),0) -> 0 | O53: 49 | R53: 0 | S53: =IFERROR((VLOOKUP(CONCATENATE(P53,Q53),Qui!$D$301:$F$356,3,0)),0) -> 0
A54: 50 | D54: 0 | E54: 0 | F54: 0 | G54: 0 | H54: 0 | I54: 0 | J54: 0 | K54: 0 | L54: 0 | M54: =SUM(D54:L54*(D54:L54>=LARGE(D54:L54,Qui!$A$402))) -> 0 | N54: =IFERROR((VLOOKUP(CONCATENATE(B54,C54),Qui!$D$301:$F$356,3,)),0) -> 0 | O54: 50 | R54: 0 | S54: =IFERROR((VLOOKUP(CONCATENATE(P54,Q54),Qui!$D$301:$F$356,3,0)),0) -> 0
A55: 51 | D55: 0 | E55: 0 | F55: 0 | G55: 0 | H55: 0 | I55: 0 | J55: 0 | K55: 0 | L55: 0 | M55: =SUM(D55:L55*(D55:L55>=LARGE(D55:L55,Qui!$A$402))) -> 0 | N55: =IFERROR((VLOOKUP(CONCATENATE(B55,C55),Qui!$D$301:$F$356,3,)),0) -> 0 | O55: 51 | R55: 0 | S55: =IFERROR((VLOOKUP(CONCATENATE(P55,Q55),Qui!$D$301:$F$356,3,0)),0) -> 0
A56: 52 | D56: 0 | E56: 0 | F56: 0 | G56: 0 | H56: 0 | I56: 0 | J56: 0 | K56: 0 | L56: 0 | M56: =SUM(D56:L56*(D56:L56>=LARGE(D56:L56,Qui!$A$402))) -> 0 | N56: =IFERROR((VLOOKUP(CONCATENATE(B56,C56),Qui!$D$301:$F$356,3,)),0) -> 0 | O56: 52 | R56: 0 | S56: =IFERROR((VLOOKUP(CONCATENATE(P56,Q56),Qui!$D$301:$F$356,3,0)),0) -> 0
A57: 53 | E57: 0 | F57: 0 | G57: 0 | H57: 0 | I57: 0 | J57: 0 | K57: 0 | L57: 0 | M57: =SUM(D57:L57*(D57:L57>=LARGE(D57:L57,Qui!$A$402))) -> 0 | N57: =IFERROR((VLOOKUP(CONCATENATE(B57,C57),Qui!$D$301:$F$356,3,)),0) -> 0 | O57: 53 | R57: 0 | S57: =IFERROR((VLOOKUP(CONCATENATE(P57,Q57),Qui!$D$301:$F$356,3,0)),0) -> 0
A58: 54 | E58: 0 | F58: 0 | G58: 0 | H58: 0 | I58: 0 | J58: 0 | K58: 0 | L58: 0 | M58: =SUM(D58:L58*(D58:L58>=LARGE(D58:L58,Qui!$A$402))) -> 0 | N58: =IFERROR((VLOOKUP(CONCATENATE(B58,C58),Qui!$D$301:$F$356,3,)),0) -> 0 | O58: 54 | R58: 0 | S58: =IFERROR((VLOOKUP(CONCATENATE(P58,Q58),Qui!$D$301:$F$356,3,0)),0) -> 0
D59: =MAX(D5:D58) -> 0 | F59: =MAX(F5:F58) -> 0 | G59: =MAX(G5:G58) -> 0 | I59: =MAX(I5:I58) -> 0 | J59: =MAX(J5:J58) -> 0 | K59: =MAX(K5:K58) -> 0 | L59: =MAX(L5:L58) -> 0
A60: Classement général par équipe | O60: Classement par équipe
A62: 1 | M62: =SUM(D62:L62) -> 0 | N62: =VLOOKUP(B62,Qui!$A$201:$D$204,4) ->  | O62: 1 | R62: 0 | S62: =VLOOKUP(P62,Qui!$A$201:$D$204,4) -> 
A63: 2 | M63: 0 | N63: =VLOOKUP(B63,Qui!$A$201:$D$204,4) ->  | O63: 2 | R63: 0 | S63: =VLOOKUP(P63,Qui!$A$201:$D$204,4) -> 
A64: 3 | M64: 0 | N64: =VLOOKUP(B64,Qui!$A$201:$D$204,4) ->  | O64: 3 | R64: 0 | S64: =VLOOKUP(P64,Qui!$A$201:$D$204,4) -> 
A65: 4 | M65: 0 | N65: =VLOOKUP(B65,Qui!$A$201:$D$204,4) ->  | O65: 4 | R65: 0 | S65: =VLOOKUP(P65,Qui!$A$201:$D$204,4) -> 
A66: 5 | E66: 435 | N66: =VLOOKUP(B66,Qui!$A$201:$D$204,4) ->  | O66: 5 | R66: =SUMPRODUCT(((($S$5:$S$58=S66)*$R$5:$R$58*1))*((($S$5:$S$58=S66)*$R$5:$R$58*1)>=LARGE((($S$5:$S$58=S66)*$R$5:$R$58*1),Qui!$B$402))) ->  | S66: =VLOOKUP(P66,Qui!$A$201:$D$204,4) -> 
A67: 6 | E67: 435 | N67: =VLOOKUP(B67,Qui!$A$201:$D$204,4) ->  | O67: 6 | R67: =SUMPRODUCT(((($S$5:$S$58=S67)*$R$5:$R$58*1))*((($S$5:$S$58=S67)*$R$5:$R$58*1)>=LARGE((($S$5:$S$58=S67)*$R$5:$R$58*1),Qui!$B$402))) ->  | S67: =VLOOKUP(P67,Qui!$A$201:$D$204,4) -> 
D68: =MAX(D62:D67) -> 0 | F68: =MAX(F62:F67) ->  | G68: =MAX(G62:G67) -> 0 | I68: =MAX(I62:I67) -> 0 | J68: =MAX(J62:J67) -> 0 | K68: =MAX(K62:K67) -> 0 | L68: =MAX(L62:L67) -> 0 | R68: 0
M69: La Chaux-de-Fonds, le 2023 / CM
B71: =CONCATENATE("Rappels :") -> Rappels :
B73: =CONCATENATE("a) le classement général par équipe est fait sur le cumul des ",Qui!$B$402," meilleurs résultats individuels de chaque manche") -> a) le classement général par équipe est fait sur le cumul des 5 meilleurs résultats individuels de chaque manche
B74: =CONCATENATE("b) le classement général individuel est fait sur le cumul des ",Qui!$A$402," meilleurs résultats individuels") -> b) le classement général individuel est fait sur le cumul des 5 meilleurs résultats individuels

Sheet Manche_4 (hidden)
A1: Association intercantonale des joueurs de boules Grand Jeu Neuchâtelois
A2: =CONCATENATE("Championnat grand jeu neuchâtelois ",YEAR(Calendrier!B6)) -> Championnat grand jeu neuchâtelois 2024
A3: Classement général individuel | C3: Manches | D3: =Calendrier!F40 -> Grand-Sommartel | E3: =Calendrier!F47 -> Le Locle | F3: =Calendrier!F54 -> Evologia | G3: =Calendrier!F61 -> La Vue-des-Alpes | H3: =Calendrier!F68 -> L'Epi | I3: =Calendrier!F75 -> La Chaux-de-Fonds | J3: =Calendrier!F82 -> 00:00:00 | M3: =CONCATENATE("Général",CHAR(10),"les ",Qui!$A$402," meilleurs") -> Général les 5 meilleurs | P3: =CONCATENATE("Classement de la manche",CHAR(10),Calendrier!F61,CHAR(10),"du",TEXT(Calendrier!F63," jj.mm")," au",TEXT(Calendrier!F66," jj.mm.aaaa")) -> Classement de la manche La Vue-des-Alpes du 28.10 au 31.10.2024 | U3: =CONCATENATE(TEXT(Calendrier!F63," jj.mm")," au",TEXT(Calendrier!F66," jj.mm.aaaa")) -> 28.10 au 31.10.2024
D4: 1 | E4: 2 | F4: 3 | G4: 4 | H4: 5 | I4: 6 | J4: 7 | K4: 8 | L4: 9 | P4: =CONCATENATE("Champion de jeu : ",CHAR(10),P5," ",Q5) -> Champion de jeu :
A5: 1 | M5: =SUM(D5:L5*(D5:L5>=LARGE(D5:L5,Qui!$A$402))) ->  | N5: =IFERROR((VLOOKUP(CONCATENATE(B5,C5),Qui!$D$301:$F$356,3,)),0) -> 0 | O5: 1 | R5: 0 | S5: =IFERROR((VLOOKUP(CONCATENATE(P5,Q5),Qui!$D$301:$F$356,3,0)),0) -> 0
A6: 2 | M6: =SUM(D6:L6*(D6:L6>=LARGE(D6:L6,Qui!$A$402))) ->  | N6: =IFERROR((VLOOKUP(CONCATENATE(B6,C6),Qui!$D$301:$F$356,3,)),0) -> 0 | O6: 2 | R6: 0 | S6: =IFERROR((VLOOKUP(CONCATENATE(P6,Q6),Qui!$D$301:$F$356,3,0)),0) -> 0
A7: 3 | M7: =SUM(D7:L7*(D7:L7>=LARGE(D7:L7,Qui!$A$402))) ->  | N7: =IFERROR((VLOOKUP(CONCATENATE(B7,C7),Qui!$D$301:$F$356,3,)),0) -> 0 | O7: 3 | R7: 0 | S7: =IFERROR((VLOOKUP(CONCATENATE(P7,Q7),Qui!$D$301:$F$356,3,0)),0) -> 0
A8: 4 | M8: =SUM(D8:L8*(D8:L8>=LARGE(D8:L8,Qui!$A$402))) ->  | N8: =IFERROR((VLOOKUP(CONCATENATE(B8,C8),Qui!$D$301:$F$356,3,)),0) -> 0 | O8: 4 | R8: 0 | S8: =IFERROR((VLOOKUP(CONCATENATE(P8,Q8),Qui!$D$301:$F$356,3,0)),0) -> 0
A9: 5 | M9: =SUM(D9:L9*(D9:L9>=LARGE(D9:L9,Qui!$A$402))) ->  | N9: =IFERROR((VLOOKUP(CONCATENATE(B9,C9),Qui!$D$301:$F$356,3,)),0) -> 0 | O9: 5 | R9: 0 | S9: =IFERROR((VLOOKUP(CONCATENATE(P9,Q9),Qui!$D$301:$F$356,3,0)),0) -> 0
A10: 6 | M10: =SUM(D10:L10*(D10:L10>=LARGE(D10:L10,Qui!$A$402))) ->  | N10: =IFERROR((VLOOKUP(CONCATENATE(B10,C10),Qui!$D$301:$F$356,3,)),0) -> 0 | O10: 6 | R10: 0 | S10: =IFERROR((VLOOKUP(CONCATENATE(P10,Q10),Qui!$D$301:$F$356,3,0)),0) -> 0
A11: 7 | M11: =SUM(D11:L11*(D11:L11>=LARGE(D11:L11,Qui!$A$402))) ->  | N11: =IFERROR((VLOOKUP(CONCATENATE(B11,C11),Qui!$D$301:$F$356,3,)),0) -> 0 | O11: 7 | R11: 0 | S11: =IFERROR((VLOOKUP(CONCATENATE(P11,Q11),Qui!$D$301:$F$356,3,0)),0) -> 0
A12: 8 | M12: =SUM(D12:L12*(D12:L12>=LARGE(D12:L12,Qui!$A$402))) ->  | N12: =IFERROR((VLOOKUP(CONCATENATE(B12,C12),Qui!$D$301:$F$356,3,)),0) -> 0 | O12: 8 | R12: 0 | S12: =IFERROR((VLOOKUP(CONCATENATE(P12,Q12),Qui!$D$301:$F$356,3,0)),0) -> 0
A13: 9 | M13: =SUM(D13:L13*(D13:L13>=LARGE(D13:L13,Qui!$A$402))) ->  | N13: =IFERROR((VLOOKUP(CONCATENATE(B13,C13),Qui!$D$301:$F$356,3,)),0) -> 0 | O13: 9 | R13: 0 | S13: =IFERROR((VLOOKUP(CONCATENATE(P13,Q13),Qui!$D$301:$F$356,3,0)),0) -> 0
A14: 10 | M14: =SUM(D14:L14*(D14:L14>=LARGE(D14:L14,Qui!$A$402))) ->  | N14: =IFERROR((VLOOKUP(CONCATENATE(B14,C14),Qui!$D$301:$F$356,3,)),0) -> 0 | O14: 10 | R14: 0 | S14: =IFERROR((VLOOKUP(CONCATENATE(P14,Q14),Qui!$D$301:$F$356,3,0)),0) -> 0
A15: 11 | M15: =SUM(D15:L15*(D15:L15>=LARGE(D15:L15,Qui!$A$402))) ->  | N15: =IFERROR((VLOOKUP(CONCATENATE(B15,C15),Qui!$D$301:$F$356,3,)),0) -> 0 | O15: 11 | R15: 0 | S15: =IFERROR((VLOOKUP(CONCATENATE(P15,Q15),Qui!$D$301:$F$356,3,0)),0) -> 0
A16: 12 | M16: =SUM(D16:L16*(D16:L16>=LARGE(D16:L16,Qui!$A$402))) ->  | N16: =IFERROR((VLOOKUP(CONCATENATE(B16,C16),Qui!$D$301:$F$356,3,)),0) -> 0 | O16: 12 | R16: 0 | S16: =IFERROR((VLOOKUP(CONCATENATE(P16,Q16),Qui!$D$301:$F$356,3,0)),0) -> 0
A17: 13 | M17: =SUM(D17:L17*(D17:L17>=LARGE(D17:L17,Qui!$A$402))) ->  | N17: =IFERROR((VLOOKUP(CONCATENATE(B17,C17),Qui!$D$301:$F$356,3,)),0) -> 0 | O17: 13 | R17: 0 | S17: =IFERROR((VLOOKUP(CONCATENATE(P17,Q17),Qui!$D$301:$F$356,3,0)),0) -> 0
A18: 14 | M18: =SUM(D18:L18*(D18:L18>=LARGE(D18:L18,Qui!$A$402))) ->  | N18: =IFERROR((VLOOKUP(CONCATENATE(B18,C18),Qui!$D$301:$F$356,3,)),0) -> 0 | O18: 14 | R18: 0 | S18: =IFERROR((VLOOKUP(CONCATENATE(P18,Q18),Qui!$D$301:$F$356,3,0)),0) -> 0
A19: 15 | M19: =SUM(D19:L19*(D19:L19>=LARGE(D19:L19,Qui!$A$402))) ->  | N19: =IFERROR((VLOOKUP(CONCATENATE(B19,C19),Qui!$D$301:$F$356,3,)),0) -> 0 | O19: 15 | R19: 0 | S19: =IFERROR((VLOOKUP(CONCATENATE(P19,Q19),Qui!$D$301:$F$356,3,0)),0) -> 0
A20: 16 | M20: =SUM(D20:L20*(D20:L20>=LARGE(D20:L20,Qui!$A$402))) ->  | N20: =IFERROR((VLOOKUP(CONCATENATE(B20,C20),Qui!$D$301:$F$356,3,)),0) -> 0 | O20: 16 | R20: 0 | S20: =IFERROR((VLOOKUP(CONCATENATE(P20,Q20),Qui!$D$301:$F$356,3,0)),0) -> 0
A21: 17 | M21: =SUM(D21:L21*(D21:L21>=LARGE(D21:L21,Qui!$A$402))) ->  | N21: =IFERROR((VLOOKUP(CONCATENATE(B21,C21),Qui!$D$301:$F$356,3,)),0) -> 0 | O21: 17 | R21: 0 | S21: =IFERROR((VLOOKUP(CONCATENATE(P21,Q21),Qui!$D$301:$F$356,3,0)),0) -> 0
A22: 18 | M22: =SUM(D22:L22*(D22:L22>=LARGE(D22:L22,Qui!$A$402))) ->  | N22: =IFERROR((VLOOKUP(CONCATENATE(B22,C22),Qui!$D$301:$F$356,3,)),0) -> 0 | O22: 18 | R22: 0 | S22: =IFERROR((VLOOKUP(CONCATENATE(P22,Q22),Qui!$D$301:$F$356,3,0)),0) -> 0
A23: 19 | M23: =SUM(D23:L23*(D23:L23>=LARGE(D23:L23,Qui!$A$402))) ->  | N23: =IFERROR((VLOOKUP(CONCATENATE(B23,C23),Qui!$D$301:$F$356,3,)),0) -> 0 | O23: 19 | R23: 0 | S23: =IFERROR((VLOOKUP(CONCATENATE(P23,Q23),Qui!$D$301:$F$356,3,0)),0) -> 0
A24: 20 | M24: =SUM(D24:L24*(D24:L24>=LARGE(D24:L24,Qui!$A$402))) ->  | N24: =IFERROR((VLOOKUP(CONCATENATE(B24,C24),Qui!$D$301:$F$356,3,)),0) -> 0 | O24: 20 | R24: 0 | S24: =IFERROR((VLOOKUP(CONCATENATE(P24,Q24),Qui!$D$301:$F$356,3,0)),0) -> 0
A25: 21 | M25: =SUM(D25:L25*(D25:L25>=LARGE(D25:L25,Qui!$A$402))) ->  | N25: =IFERROR((VLOOKUP(CONCATENATE(B25,C25),Qui!$D$301:$F$356,3,)),0) -> 0 | O25: 21 | R25: 0 | S25: =IFERROR((VLOOKUP(CONCATENATE(P25,Q25),Qui!$D$301:$F$356,3,0)),0) -> 0
A26: 22 | M26: =SUM(D26:L26*(D26:L26>=LARGE(D26:L26,Qui!$A$402))) ->  | N26: =IFERROR((VLOOKUP(CONCATENATE(B26,C26),Qui!$D$301:$F$356,3,)),0) -> 0 | O26: 22 | R26: 0 | S26: =IFERROR((VLOOKUP(CONCATENATE(P26,Q26),Qui!$D$301:$F$356,3,0)),0) -> 0
A27: 23 | M27: =SUM(D27:L27*(D27:L27>=LARGE(D27:L27,Qui!$A$402))) ->  | N27: =IFERROR((VLOOKUP(CONCATENATE(B27,C27),Qui!$D$301:$F$356,3,)),0) -> 0 | O27: 23 | R27: 0 | S27: =IFERROR((VLOOKUP(CONCATENATE(P27,Q27),Qui!$D$301:$F$356,3,0)),0) -> 0
A28: 24 | M28: =SUM(D28:L28*(D28:L28>=LARGE(D28:L28,Qui!$A$402))) ->  | N28: =IFERROR((VLOOKUP(CONCATENATE(B28,C28),Qui!$D$301:$F$356,3,)),0) -> 0 | O28: 24 | R28: 0 | S28: =IFERROR((VLOOKUP(CONCATENATE(P28,Q28),Qui!$D$301:$F$356,3,0)),0) -> 0
A29: 25 | M29: =SUM(D29:L29*(D29:L29>=LARGE(D29:L29,Qui!$A$402))) ->  | N29: =IFERROR((VLOOKUP(CONCATENATE(B29,C29),Qui!$D$301:$F$356,3,)),0) -> 0 | O29: 25 | R29: 0 | S29: =IFERROR((VLOOKUP(CONCATENATE(P29,Q29),Qui!$D$301:$F$356,3,0)),0) -> 0
A30: 26 | M30: =SUM(D30:L30*(D30:L30>=LARGE(D30:L30,Qui!$A$402))) ->  | N30: =IFERROR((VLOOKUP(CONCATENATE(B30,C30),Qui!$D$301:$F$356,3,)),0) -> 0 | O30: 26 | R30: 0 | S30: =IFERROR((VLOOKUP(CONCATENATE(P30,Q30),Qui!$D$301:$F$356,3,0)),0) -> 0
A31: 27 | M31: =SUM(D31:L31*(D31:L31>=LARGE(D31:L31,Qui!$A$402))) ->  | N31: =IFERROR((VLOOKUP(CONCATENATE(B31,C31),Qui!$D$301:$F$356,3,)),0) -> 0 | O31: 27 | R31: 0 | S31: =IFERROR((VLOOKUP(CONCATENATE(P31,Q31),Qui!$D$301:$F$356,3,0)),0) -> 0
A32: 28 | M32: =SUM(D32:L32*(D32:L32>=LARGE(D32:L32,Qui!$A$402))) ->  | N32: =IFERROR((VLOOKUP(CONCATENATE(B32,C32),Qui!$D$301:$F$356,3,)),0) -> 0 | O32: 28 | R32: 0 | S32: =IFERROR((VLOOKUP(CONCATENATE(P32,Q32),Qui!$D$301:$F$356,3,0)),0) -> 0
A33: 29 | M33: =SUM(D33:L33*(D33:L33>=LARGE(D33:L33,Qui!$A$402))) ->  | N33: =IFERROR((VLOOKUP(CONCATENATE(B33,C33),Qui!$D$301:$F$356,3,)),0) -> 0 | O33: 29 | R33: 0 | S33: =IFERROR((VLOOKUP(CONCATENATE(P33,Q33),Qui!$D$301:$F$356,3,0)),0) -> 0
A34: 30 | M34: =SUM(D34:L34*(D34:L34>=LARGE(D34:L34,Qui!$A$402))) ->  | N34: =IFERROR((VLOOKUP(CONCATENATE(B34,C34),Qui!$D$301:$F$356,3,)),0) -> 0 | O34: 30 | R34: 0 | S34: =IFERROR((VLOOKUP(CONCATENATE(P34,Q34),Qui!$D$301:$F$356,3,0)),0) -> 0
A35: 31 | M35: =SUM(D35:L35*(D35:L35>=LARGE(D35:L35,Qui!$A$402))) ->  | N35: =IFERROR((VLOOKUP(CONCATENATE(B35,C35),Qui!$D$301:$F$356,3,)),0) -> 0 | O35: 31 | R35: 0 | S35: =IFERROR((VLOOKUP(CONCATENATE(P35,Q35),Qui!$D$301:$F$356,3,0)),0) -> 0
A36: 32 | M36: =SUM(D36:L36*(D36:L36>=LARGE(D36:L36,Qui!$A$402))) ->  | N36: =IFERROR((VLOOKUP(CONCATENATE(B36,C36),Qui!$D$301:$F$356,3,)),0) -> 0 | O36: 32 | R36: 0 | S36: =IFERROR((VLOOKUP(CONCATENATE(P36,Q36),Qui!$D$301:$F$356,3,0)),0) -> 0
A37: 33 | M37: =SUM(D37:L37*(D37:L37>=LARGE(D37:L37,Qui!$A$402))) ->  | N37: =IFERROR((VLOOKUP(CONCATENATE(B37,C37),Qui!$D$301:$F$356,3,)),0) -> 0 | O37: 33 | R37: 0 | S37: =IFERROR((VLOOKUP(CONCATENATE(P37,Q37),Qui!$D$301:$F$356,3,0)),0) -> 0
A38: 34 | M38: =SUM(D38:L38*(D38:L38>=LARGE(D38:L38,Qui!$A$402))) ->  | N38: =IFERROR((VLOOKUP(CONCATENATE(B38,C38),Qui!$D$301:$F$356,3,)),0) -> 0 | O38: 34 | R38: 0 | S38: =IFERROR((VLOOKUP(CONCATENATE(P38,Q38),Qui!$D$301:$F$356,3,0)),0) -> 0
A39: 35 | M39: =SUM(D39:L39*(D39:L39>=LARGE(D39:L39,Qui!$A$402))) ->  | N39: =IFERROR((VLOOKUP(CONCATENATE(B39,C39),Qui!$D$301:$F$356,3,)),0) -> 0 | O39: 35 | R39: 0 | S39: =IFERROR((VLOOKUP(CONCATENATE(P39,Q39),Qui!$D$301:$F$356,3,0)),0) -> 0
A40: 36 | D40: 0 | E40: 0 | F40: 0 | G40: 0 | H40: 0 | I40: 0 | J40: 0 | K40: 0 | L40: 0 | M40: =SUM(D40:L40*(D40:L40>=LARGE(D40:L40,Qui!$A$402))) -> 0 | N40: =IFERROR((VLOOKUP(CONCATENATE(B40,C40),Qui!$D$301:$F$356,3,)),0) -> 0 | O40: 36 | R40: 0 | S40: =IFERROR((VLOOKUP(CONCATENATE(P40,Q40),Qui!$D$301:$F$356,3,0)),0) -> 0
A41: 37 | D41: 0 | E41: 0 | F41: 0 | G41: 0 | H41: 0 | I41: 0 | J41: 0 | K41: 0 | L41: 0 | M41: =SUM(D41:L41*(D41:L41>=LARGE(D41:L41,Qui!$A$402))) -> 0 | N41: =IFERROR((VLOOKUP(CONCATENATE(B41,C41),Qui!$D$301:$F$356,3,)),0) -> 0 | O41: 37 | R41: 0 | S41: =IFERROR((VLOOKUP(CONCATENATE(P41,Q41),Qui!$D$301:$F$356,3,0)),0) -> 0
A42: 38 | D42: 0 | E42: 0 | F42: 0 | G42: 0 | H42: 0 | I42: 0 | J42: 0 | K42: 0 | L42: 0 | M42: =SUM(D42:L42*(D42:L42>=LARGE(D42:L42,Qui!$A$402))) -> 0 | N42: =IFERROR((VLOOKUP(CONCATENATE(B42,C42),Qui!$D$301:$F$356,3,)),0) -> 0 | O42: 38 | R42: 0 | S42: =IFERROR((VLOOKUP(CONCATENATE(P42,Q42),Qui!$D$301:$F$356,3,0)),0) -> 0
A43: 39 | D43: 0 | E43: 0 | F43: 0 | G43: 0 | H43: 0 | I43: 0 | J43: 0 | K43: 0 | L43: 0 | M43: =SUM(D43:L43*(D43:L43>=LARGE(D43:L43,Qui!$A$402))) -> 0 | N43: =IFERROR((VLOOKUP(CONCATENATE(B43,C43),Qui!$D$301:$F$356,3,)),0) -> 0 | O43: 39 | R43: 0 | S43: =IFERROR((VLOOKUP(CONCATENATE(P43,Q43),Qui!$D$301:$F$356,3,0)),0) -> 0
A44: 40 | D44: 0 | E44: 0 | F44: 0 | G44: 0 | H44: 0 | I44: 0 | J44: 0 | K44: 0 | L44: 0 | M44: =SUM(D44:L44*(D44:L44>=LARGE(D44:L44,Qui!$A$402))) -> 0 | N44: =IFERROR((VLOOKUP(CONCATENATE(B44,C44),Qui!$D$301:$F$356,3,)),0) -> 0 | O44: 40 | R44: 0 | S44: =IFERROR((VLOOKUP(CONCATENATE(P44,Q44),Qui!$D$301:$F$356,3,0)),0) -> 0
A45: 41 | D45: 0 | E45: 0 | F45: 0 | G45: 0 | H45: 0 | I45: 0 | J45: 0 | K45: 0 | L45: 0 | M45: =SUM(D45:L45*(D45:L45>=LARGE(D45:L45,Qui!$A$402))) -> 0 | N45: =IFERROR((VLOOKUP(CONCATENATE(B45,C45),Qui!$D$301:$F$356,3,)),0) -> 0 | O45: 41 | R45: 0 | S45: =IFERROR((VLOOKUP(CONCATENATE(P45,Q45),Qui!$D$301:$F$356,3,0)),0) -> 0
A46: 42 | D46: 0 | E46: 0 | F46: 0 | G46: 0 | H46: 0 | I46: 0 | J46: 0 | K46: 0 | L46: 0 | M46: =SUM(D46:L46*(D46:L46>=LARGE(D46:L46,Qui!$A$402))) -> 0 | N46: =IFERROR((VLOOKUP(CONCATENATE(B46,C46),Qui!$D$301:$F$356,3,)),0) -> 0 | O46: 42 | R46: 0 | S46: =IFERROR((VLOOKUP(CONCATENATE(P46,Q46),Qui!$D$301:$F$356,3,0)),0) -> 0
A47: 43 | D47: 0 | E47: 0 | F47: 0 | G47: 0 | H47: 0 | I47: 0 | J47: 0 | K47: 0 | L47: 0 | M47: =SUM(D47:L47*(D47:L47>=LARGE(D47:L47,Qui!$A$402))) -> 0 | N47: =IFERROR((VLOOKUP(CONCATENATE(B47,C47),Qui!$D$301:$F$356,3,)),0) -> 0 | O47: 43 | R47: 0 | S47: =IFERROR((VLOOKUP(CONCATENATE(P47,Q47),Qui!$D$301:$F$356,3,0)),0) -> 0
A48: 44 | D48: 0 | E48: 0 | F48: 0 | G48: 0 | H48: 0 | I48: 0 | J48: 0 | K48: 0 | L48: 0 | M48: =SUM(D48:L48*(D48:L48>=LARGE(D48:L48,Qui!$A$402))) -> 0 | N48: =IFERROR((VLOOKUP(CONCATENATE(B48,C48),Qui!$D$301:$F$356,3,)),0) -> 0 | O48: 44 | R48: 0 | S48: =IFERROR((VLOOKUP(CONCATENATE(P48,Q48),Qui!$D$301:$F$356,3,0)),0) -> 0
A49: 45 | D49: 0 | E49: 0 | F49: 0 | G49: 0 | H49: 0 | I49: 0 | J49: 0 | K49: 0 | L49: 0 | M49: =SUM(D49:L49*(D49:L49>=LARGE(D49:L49,Qui!$A$402))) -> 0 | N49: =IFERROR((VLOOKUP(CONCATENATE(B49,C49),Qui!$D$301:$F$356,3,)),0) -> 0 | O49: 45 | R49: 0 | S49: =IFERROR((VLOOKUP(CONCATENATE(P49,Q49),Qui!$D$301:$F$356,3,0)),0) -> 0
A50: 46 | D50: 0 | E50: 0 | F50: 0 | G50: 0 | H50: 0 | I50: 0 | J50: 0 | K50: 0 | L50: 0 | M50: =SUM(D50:L50*(D50:L50>=LARGE(D50:L50,Qui!$A$402))) -> 0 | N50: =IFERROR((VLOOKUP(CONCATENATE(B50,C50),Qui!$D$301:$F$356,3,)),0) -> 0 | O50: 46 | R50: 0 | S50: =IFERROR((VLOOKUP(CONCATENATE(P50,Q50),Qui!$D$301:$F$356,3,0)),0) -> 0
A51: 47 | D51: 0 | E51: 0 | F51: 0 | G51: 0 | H51: 0 | I51: 0 | J51: 0 | K51: 0 | L51: 0 | M51: =SUM(D51:L51*(D51:L51>=LARGE(D51:L51,Qui!$A$402))) -> 0 | N51: =IFERROR((VLOOKUP(CONCATENATE(B51,C51),Qui!$D$301:$F$356,3,)),0) -> 0 | O51: 47 | R51: 0 | S51: =IFERROR((VLOOKUP(CONCATENATE(P51,Q51),Qui!$D$301:$F$356,3,0)),0) -> 0
A52: 48 | D52: 0 | E52: 0 | F52: 0 | G52: 0 | H52: 0 | I52: 0 | J52: 0 | K52: 0 | L52: 0 | M52: =SUM(D52:L52*(D52:L52>=LARGE(D52:L52,Qui!$A$402))) -> 0 | N52: =IFERROR((VLOOKUP(CONCATENATE(B52,C52),Qui!$D$301:$F$356,3,)),0) -> 0 | O52: 48 | R52: 0 | S52: =IFERROR((VLOOKUP(CONCATENATE(P52,Q52),Qui!$D$301:$F$356,3,0)),0) -> 0
A53: 49 | D53: 0 | E53: 0 | F53: 0 | G53: 0 | H53: 0 | I53: 0 | J53: 0 | K53: 0 | L53: 0 | M53: =SUM(D53:L53*(D53:L53>=LARGE(D53:L53,Qui!$A$402))) -> 0 | N53: =IFERROR((VLOOKUP(CONCATENATE(B53,C53),Qui!$D$301:$F$356,3,)),0) -> 0 | O53: 49 | R53: 0 | S53: =IFERROR((VLOOKUP(CONCATENATE(P53,Q53),Qui!$D$301:$F$356,3,0)),0) -> 0
A54: 50 | D54: 0 | E54: 0 | F54: 0 | G54: 0 | H54: 0 | I54: 0 | J54: 0 | K54: 0 | L54: 0 | M54: =SUM(D54:L54*(D54:L54>=LARGE(D54:L54,Qui!$A$402))) -> 0 | N54: =IFERROR((VLOOKUP(CONCATENATE(B54,C54),Qui!$D$301:$F$356,3,)),0) -> 0 | O54: 50 | R54: 0 | S54: =IFERROR((VLOOKUP(CONCATENATE(P54,Q54),Qui!$D$301:$F$356,3,0)),0) -> 0
A55: 51 | D55: 0 | E55: 0 | F55: 0 | G55: 0 | H55: 0 | I55: 0 | J55: 0 | K55: 0 | L55: 0 | M55: =SUM(D55:L55*(D55:L55>=LARGE(D55:L55,Qui!$A$402))) -> 0 | N55: =IFERROR((VLOOKUP(CONCATENATE(B55,C55),Qui!$D$301:$F$356,3,)),0) -> 0 | O55: 51 | R55: 0 | S55: =IFERROR((VLOOKUP(CONCATENATE(P55,Q55),Qui!$D$301:$F$356,3,0)),0) -> 0
A56: 52 | D56: 0 | E56: 0 | F56: 0 | G56: 0 | H56: 0 | I56: 0 | J56: 0 | K56: 0 | L56: 0 | M56: =SUM(D56:L56*(D56:L56>=LARGE(D56:L56,Qui!$A$402))) -> 0 | N56: =IFERROR((VLOOKUP(CONCATENATE(B56,C56),Qui!$D$301:$F$356,3,)),0) -> 0 | O56: 52 | R56: 0 | S56: =IFERROR((VLOOKUP(CONCATENATE(P56,Q56),Qui!$D$301:$F$356,3,0)),0) -> 0
A57: 53 | E57: 0 | F57: 0 | G57: 0 | H57: 0 | I57: 0 | J57: 0 | K57: 0 | L57: 0 | M57: =SUM(D57:L57*(D57:L57>=LARGE(D57:L57,Qui!$A$402))) -> 0 | N57: =IFERROR((VLOOKUP(CONCATENATE(B57,C57),Qui!$D$301:$F$356,3,)),0) -> 0 | O57: 53 | R57: 0 | S57: =IFERROR((VLOOKUP(CONCATENATE(P57,Q57),Qui!$D$301:$F$356,3,0)),0) -> 0
A58: 54 | E58: 0 | F58: 0 | G58: 0 | H58: 0 | I58: 0 | J58: 0 | K58: 0 | L58: 0 | M58: =SUM(D58:L58*(D58:L58>=LARGE(D58:L58,Qui!$A$402))) -> 0 | N58: =IFERROR((VLOOKUP(CONCATENATE(B58,C58),Qui!$D$301:$F$356,3,)),0) -> 0 | O58: 54 | R58: 0 | S58: =IFERROR((VLOOKUP(CONCATENATE(P58,Q58),Qui!$D$301:$F$356,3,0)),0) -> 0
D59: =MAX(D5:D58) -> 0 | F59: =MAX(F5:F58) -> 0 | G59: =MAX(G5:G58) -> 0 | I59: =MAX(I5:I58) -> 0 | J59: =MAX(J5:J58) -> 0 | K59: =MAX(K5:K58) -> 0 | L59: =MAX(L5:L58) -> 0
A60: Classement général par équipe | O60: Classement par équipe
A62: 1 | M62: =SUM(D62:L62) -> 0 | N62: =VLOOKUP(B62,Qui!$A$201:$D$204,4) ->  | O62: 1 | R62: 0 | S62: =VLOOKUP(P62,Qui!$A$201:$D$204,4) -> 
A63: 2 | M63: 0 | N63: =VLOOKUP(B63,Qui!$A$201:$D$204,4) ->  | O63: 2 | R63: 0 | S63: =VLOOKUP(P63,Qui!$A$201:$D$204,4) -> 
A64: 3 | M64: 0 | N64: =VLOOKUP(B64,Qui!$A$201:$D$204,4) ->  | O64: 3 | R64: 0 | S64: =VLOOKUP(P64,Qui!$A$201:$D$204,4) -> 
A65: 4 | M65: 0 | N65: =VLOOKUP(B65,Qui!$A$201:$D$204,4) ->  | O65: 4 | R65: 0 | S65: =VLOOKUP(P65,Qui!$A$201:$D$204,4) -> 
A66: 5 | E66: 435 | N66: =VLOOKUP(B66,Qui!$A$201:$D$204,4) ->  | O66: 5 | R66: =SUMPRODUCT(((($S$5:$S$58=S66)*$R$5:$R$58*1))*((($S$5:$S$58=S66)*$R$5:$R$58*1)>=LARGE((($S$5:$S$58=S66)*$R$5:$R$58*1),Qui!$B$402))) ->  | S66: =VLOOKUP(P66,Qui!$A$201:$D$204,4) -> 
A67: 6 | E67: 435 | N67: =VLOOKUP(B67,Qui!$A$201:$D$204,4) ->  | O67: 6 | R67: =SUMPRODUCT(((($S$5:$S$58=S67)*$R$5:$R$58*1))*((($S$5:$S$58=S67)*$R$5:$R$58*1)>=LARGE((($S$5:$S$58=S67)*$R$5:$R$58*1),Qui!$B$402))) ->  | S67: =VLOOKUP(P67,Qui!$A$201:$D$204,4) -> 
D68: =MAX(D62:D67) -> 0 | F68: =MAX(F62:F67) ->  | G68: =MAX(G62:G67) ->  | I68: =MAX(I62:I67) -> 0 | J68: =MAX(J62:J67) -> 0 | K68: =MAX(K62:K67) -> 0 | L68: =MAX(L62:L67) -> 0 | R68: 0
M69: La Chaux-de-Fonds, le 2023 / CM
B71: =CONCATENATE("Rappels :") -> Rappels :
B73: =CONCATENATE("a) le classement général par équipe est fait sur le cumul des ",Qui!$B$402," meilleurs résultats individuels de chaque manche") -> a) le classement général par équipe est fait sur le cumul des 5 meilleurs résultats individuels de chaque manche
B74: =CONCATENATE("b) le classement général individuel est fait sur le cumul des ",Qui!$A$402," meilleurs résultats individuels") -> b) le classement général individuel est fait sur le cumul des 5 meilleurs résultats individuels

Sheet Manche_5 (hidden)
A1: Association intercantonale des joueurs de boules Grand Jeu Neuchâtelois
A2: =CONCATENATE("Championnat grand jeu neuchâtelois ",YEAR(Calendrier!B6)) -> Championnat grand jeu neuchâtelois 2024
A3: Classement général individuel | C3: Manches | D3: =Calendrier!F40 -> Grand-Sommartel | E3: =Calendrier!F47 -> Le Locle | F3: =Calendrier!F54 -> Evologia | G3: =Calendrier!F61 -> La Vue-des-Alpes | H3: =Calendrier!F68 -> L'Epi | I3: =Calendrier!F75 -> La Chaux-de-Fonds | J3: =Calendrier!F82 -> 00:00:00 | M3: =CONCATENATE("Général",CHAR(10),"les ",Qui!$A$402," meilleurs") -> Général les 5 meilleurs | P3: =CONCATENATE("Classement de la manche",CHAR(10),Calendrier!F68,CHAR(10),"du",TEXT(Calendrier!F70," jj.mm")," au",TEXT(Calendrier!F73," jj.mm.aaaa")) -> Classement de la manche L'Epi du 11.11 au 14.11.2024 | U3: =CONCATENATE(TEXT(Calendrier!F70," jj.mm")," au",TEXT(Calendrier!F73," jj.mm.aaaa")) -> 11.11 au 14.11.2024
D4: 1 | E4: 2 | F4: 3 | G4: 4 | H4: 5 | I4: 6 | J4: 7 | K4: 8 | L4: 9 | P4: =CONCATENATE("Champion de jeu : ",CHAR(10),P5," ",Q5) -> Champion de jeu :
A5: 1 | M5: =SUM(D5:L5*(D5:L5>=LARGE(D5:L5,Qui!$A$402))) ->  | N5: =IFERROR((VLOOKUP(CONCATENATE(B5,C5),Qui!$D$301:$F$356,3,)),0) -> 0 | O5: 1 | R5: 0 | S5: =IFERROR((VLOOKUP(CONCATENATE(P5,Q5),Qui!$D$301:$F$356,3,0)),0) -> 0
A6: 2 | M6: =SUM(D6:L6*(D6:L6>=LARGE(D6:L6,Qui!$A$402))) ->  | N6: =IFERROR((VLOOKUP(CONCATENATE(B6,C6),Qui!$D$301:$F$356,3,)),0) -> 0 | O6: 2 | R6: 0 | S6: =IFERROR((VLOOKUP(CONCATENATE(P6,Q6),Qui!$D$301:$F$356,3,0)),0) -> 0
A7: 3 | M7: =SUM(D7:L7*(D7:L7>=LARGE(D7:L7,Qui!$A$402))) ->  | N7: =IFERROR((VLOOKUP(CONCATENATE(B7,C7),Qui!$D$301:$F$356,3,)),0) -> 0 | O7: 3 | R7: 0 | S7: =IFERROR((VLOOKUP(CONCATENATE(P7,Q7),Qui!$D$301:$F$356,3,0)),0) -> 0
A8: 4 | M8: =SUM(D8:L8*(D8:L8>=LARGE(D8:L8,Qui!$A$402))) ->  | N8: =IFERROR((VLOOKUP(CONCATENATE(B8,C8),Qui!$D$301:$F$356,3,)),0) -> 0 | O8: 4 | R8: 0 | S8: =IFERROR((VLOOKUP(CONCATENATE(P8,Q8),Qui!$D$301:$F$356,3,0)),0) -> 0
A9: 5 | M9: =SUM(D9:L9*(D9:L9>=LARGE(D9:L9,Qui!$A$402))) ->  | N9: =IFERROR((VLOOKUP(CONCATENATE(B9,C9),Qui!$D$301:$F$356,3,)),0) -> 0 | O9: 5 | R9: 0 | S9: =IFERROR((VLOOKUP(CONCATENATE(P9,Q9),Qui!$D$301:$F$356,3,0)),0) -> 0
A10: 6 | M10: =SUM(D10:L10*(D10:L10>=LARGE(D10:L10,Qui!$A$402))) ->  | N10: =IFERROR((VLOOKUP(CONCATENATE(B10,C10),Qui!$D$301:$F$356,3,)),0) -> 0 | O10: 6 | R10: 0 | S10: =IFERROR((VLOOKUP(CONCATENATE(P10,Q10),Qui!$D$301:$F$356,3,0)),0) -> 0
A11: 7 | M11: =SUM(D11:L11*(D11:L11>=LARGE(D11:L11,Qui!$A$402))) ->  | N11: =IFERROR((VLOOKUP(CONCATENATE(B11,C11),Qui!$D$301:$F$356,3,)),0) -> 0 | O11: 7 | R11: 0 | S11: =IFERROR((VLOOKUP(CONCATENATE(P11,Q11),Qui!$D$301:$F$356,3,0)),0) -> 0
A12: 8 | M12: =SUM(D12:L12*(D12:L12>=LARGE(D12:L12,Qui!$A$402))) ->  | N12: =IFERROR((VLOOKUP(CONCATENATE(B12,C12),Qui!$D$301:$F$356,3,)),0) -> 0 | O12: 8 | R12: 0 | S12: =IFERROR((VLOOKUP(CONCATENATE(P12,Q12),Qui!$D$301:$F$356,3,0)),0) -> 0
A13: 9 | M13: =SUM(D13:L13*(D13:L13>=LARGE(D13:L13,Qui!$A$402))) ->  | N13: =IFERROR((VLOOKUP(CONCATENATE(B13,C13),Qui!$D$301:$F$356,3,)),0) -> 0 | O13: 9 | R13: 0 | S13: =IFERROR((VLOOKUP(CONCATENATE(P13,Q13),Qui!$D$301:$F$356,3,0)),0) -> 0
A14: 10 | M14: =SUM(D14:L14*(D14:L14>=LARGE(D14:L14,Qui!$A$402))) ->  | N14: =IFERROR((VLOOKUP(CONCATENATE(B14,C14),Qui!$D$301:$F$356,3,)),0) -> 0 | O14: 10 | R14: 0 | S14: =IFERROR((VLOOKUP(CONCATENATE(P14,Q14),Qui!$D$301:$F$356,3,0)),0) -> 0
A15: 11 | M15: =SUM(D15:L15*(D15:L15>=LARGE(D15:L15,Qui!$A$402))) ->  | N15: =IFERROR((VLOOKUP(CONCATENATE(B15,C15),Qui!$D$301:$F$356,3,)),0) -> 0 | O15: 11 | R15: 0 | S15: =IFERROR((VLOOKUP(CONCATENATE(P15,Q15),Qui!$D$301:$F$356,3,0)),0) -> 0
A16: 12 | M16: =SUM(D16:L16*(D16:L16>=LARGE(D16:L16,Qui!$A$402))) ->  | N16: =IFERROR((VLOOKUP(CONCATENATE(B16,C16),Qui!$D$301:$F$356,3,)),0) -> 0 | O16: 12 | R16: 0 | S16: =IFERROR((VLOOKUP(CONCATENATE(P16,Q16),Qui!$D$301:$F$356,3,0)),0) -> 0
A17: 13 | M17: =SUM(D17:L17*(D17:L17>=LARGE(D17:L17,Qui!$A$402))) ->  | N17: =IFERROR((VLOOKUP(CONCATENATE(B17,C17),Qui!$D$301:$F$356,3,)),0) -> 0 | O17: 13 | R17: 0 | S17: =IFERROR((VLOOKUP(CONCATENATE(P17,Q17),Qui!$D$301:$F$356,3,0)),0) -> 0
A18: 14 | M18: =SUM(D18:L18*(D18:L18>=LARGE(D18:L18,Qui!$A$402))) ->  | N18: =IFERROR((VLOOKUP(CONCATENATE(B18,C18),Qui!$D$301:$F$356,3,)),0) -> 0 | O18: 14 | R18: 0 | S18: =IFERROR((VLOOKUP(CONCATENATE(P18,Q18),Qui!$D$301:$F$356,3,0)),0) -> 0
A19: 15 | M19: =SUM(D19:L19*(D19:L19>=LARGE(D19:L19,Qui!$A$402))) ->  | N19: =IFERROR((VLOOKUP(CONCATENATE(B19,C19),Qui!$D$301:$F$356,3,)),0) -> 0 | O19: 15 | R19: 0 | S19: =IFERROR((VLOOKUP(CONCATENATE(P19,Q19),Qui!$D$301:$F$356,3,0)),0) -> 0
A20: 16 | M20: =SUM(D20:L20*(D20:L20>=LARGE(D20:L20,Qui!$A$402))) ->  | N20: =IFERROR((VLOOKUP(CONCATENATE(B20,C20),Qui!$D$301:$F$356,3,)),0) -> 0 | O20: 16 | R20: 0 | S20: =IFERROR((VLOOKUP(CONCATENATE(P20,Q20),Qui!$D$301:$F$356,3,0)),0) -> 0
A21: 17 | M21: =SUM(D21:L21*(D21:L21>=LARGE(D21:L21,Qui!$A$402))) ->  | N21: =IFERROR((VLOOKUP(CONCATENATE(B21,C21),Qui!$D$301:$F$356,3,)),0) -> 0 | O21: 17 | R21: 0 | S21: =IFERROR((VLOOKUP(CONCATENATE(P21,Q21),Qui!$D$301:$F$356,3,0)),0) -> 0
A22: 18 | M22: =SUM(D22:L22*(D22:L22>=LARGE(D22:L22,Qui!$A$402))) ->  | N22: =IFERROR((VLOOKUP(CONCATENATE(B22,C22),Qui!$D$301:$F$356,3,)),0) -> 0 | O22: 18 | R22: 0 | S22: =IFERROR((VLOOKUP(CONCATENATE(P22,Q22),Qui!$D$301:$F$356,3,0)),0) -> 0
A23: 19 | M23: =SUM(D23:L23*(D23:L23>=LARGE(D23:L23,Qui!$A$402))) ->  | N23: =IFERROR((VLOOKUP(CONCATENATE(B23,C23),Qui!$D$301:$F$356,3,)),0) -> 0 | O23: 19 | R23: 0 | S23: =IFERROR((VLOOKUP(CONCATENATE(P23,Q23),Qui!$D$301:$F$356,3,0)),0) -> 0
A24: 20 | M24: =SUM(D24:L24*(D24:L24>=LARGE(D24:L24,Qui!$A$402))) ->  | N24: =IFERROR((VLOOKUP(CONCATENATE(B24,C24),Qui!$D$301:$F$356,3,)),0) -> 0 | O24: 20 | R24: 0 | S24: =IFERROR((VLOOKUP(CONCATENATE(P24,Q24),Qui!$D$301:$F$356,3,0)),0) -> 0
A25: 21 | M25: =SUM(D25:L25*(D25:L25>=LARGE(D25:L25,Qui!$A$402))) ->  | N25: =IFERROR((VLOOKUP(CONCATENATE(B25,C25),Qui!$D$301:$F$356,3,)),0) -> 0 | O25: 21 | R25: 0 | S25: =IFERROR((VLOOKUP(CONCATENATE(P25,Q25),Qui!$D$301:$F$356,3,0)),0) -> 0
A26: 22 | M26: =SUM(D26:L26*(D26:L26>=LARGE(D26:L26,Qui!$A$402))) ->  | N26: =IFERROR((VLOOKUP(CONCATENATE(B26,C26),Qui!$D$301:$F$356,3,)),0) -> 0 | O26: 22 | R26: 0 | S26: =IFERROR((VLOOKUP(CONCATENATE(P26,Q26),Qui!$D$301:$F$356,3,0)),0) -> 0
A27: 23 | M27: =SUM(D27:L27*(D27:L27>=LARGE(D27:L27,Qui!$A$402))) ->  | N27: =IFERROR((VLOOKUP(CONCATENATE(B27,C27),Qui!$D$301:$F$356,3,)),0) -> 0 | O27: 23 | R27: 0 | S27: =IFERROR((VLOOKUP(CONCATENATE(P27,Q27),Qui!$D$301:$F$356,3,0)),0) -> 0
A28: 24 | M28: =SUM(D28:L28*(D28:L28>=LARGE(D28:L28,Qui!$A$402))) ->  | N28: =IFERROR((VLOOKUP(CONCATENATE(B28,C28),Qui!$D$301:$F$356,3,)),0) -> 0 | O28: 24 | R28: 0 | S28: =IFERROR((VLOOKUP(CONCATENATE(P28,Q28),Qui!$D$301:$F$356,3,0)),0) -> 0
A29: 25 | M29: =SUM(D29:L29*(D29:L29>=LARGE(D29:L29,Qui!$A$402))) ->  | N29: =IFERROR((VLOOKUP(CONCATENATE(B29,C29),Qui!$D$301:$F$356,3,)),0) -> 0 | O29: 25 | R29: 0 | S29: =IFERROR((VLOOKUP(CONCATENATE(P29,Q29),Qui!$D$301:$F$356,3,0)),0) -> 0
A30: 26 | M30: =SUM(D30:L30*(D30:L30>=LARGE(D30:L30,Qui!$A$402))) ->  | N30: =IFERROR((VLOOKUP(CONCATENATE(B30,C30),Qui!$D$301:$F$356,3,)),0) -> 0 | O30: 26 | R30: 0 | S30: =IFERROR((VLOOKUP(CONCATENATE(P30,Q30),Qui!$D$301:$F$356,3,0)),0) -> 0
A31: 27 | M31: =SUM(D31:L31*(D31:L31>=LARGE(D31:L31,Qui!$A$402))) ->  | N31: =IFERROR((VLOOKUP(CONCATENATE(B31,C31),Qui!$D$301:$F$356,3,)),0) -> 0 | O31: 27 | R31: 0 | S31: =IFERROR((VLOOKUP(CONCATENATE(P31,Q31),Qui!$D$301:$F$356,3,0)),0) -> 0
A32: 28 | M32: =SUM(D32:L32*(D32:L32>=LARGE(D32:L32,Qui!$A$402))) ->  | N32: =IFERROR((VLOOKUP(CONCATENATE(B32,C32),Qui!$D$301:$F$356,3,)),0) -> 0 | O32: 28 | R32: 0 | S32: =IFERROR((VLOOKUP(CONCATENATE(P32,Q32),Qui!$D$301:$F$356,3,0)),0) -> 0
A33: 29 | M33: =SUM(D33:L33*(D33:L33>=LARGE(D33:L33,Qui!$A$402))) ->  | N33: =IFERROR((VLOOKUP(CONCATENATE(B33,C33),Qui!$D$301:$F$356,3,)),0) -> 0 | O33: 29 | R33: 0 | S33: =IFERROR((VLOOKUP(CONCATENATE(P33,Q33),Qui!$D$301:$F$356,3,0)),0) -> 0
A34: 30 | M34: =SUM(D34:L34*(D34:L34>=LARGE(D34:L34,Qui!$A$402))) ->  | N34: =IFERROR((VLOOKUP(CONCATENATE(B34,C34),Qui!$D$301:$F$356,3,)),0) -> 0 | O34: 30 | R34: 0 | S34: =IFERROR((VLOOKUP(CONCATENATE(P34,Q34),Qui!$D$301:$F$356,3,0)),0) -> 0
A35: 31 | M35: =SUM(D35:L35*(D35:L35>=LARGE(D35:L35,Qui!$A$402))) ->  | N35: =IFERROR((VLOOKUP(CONCATENATE(B35,C35),Qui!$D$301:$F$356,3,)),0) -> 0 | O35: 31 | R35: 0 | S35: =IFERROR((VLOOKUP(CONCATENATE(P35,Q35),Qui!$D$301:$F$356,3,0)),0) -> 0
A36: 32 | M36: =SUM(D36:L36*(D36:L36>=LARGE(D36:L36,Qui!$A$402))) ->  | N36: =IFERROR((VLOOKUP(CONCATENATE(B36,C36),Qui!$D$301:$F$356,3,)),0) -> 0 | O36: 32 | R36: 0 | S36: =IFERROR((VLOOKUP(CONCATENATE(P36,Q36),Qui!$D$301:$F$356,3,0)),0) -> 0
A37: 33 | M37: =SUM(D37:L37*(D37:L37>=LARGE(D37:L37,Qui!$A$402))) ->  | N37: =IFERROR((VLOOKUP(CONCATENATE(B37,C37),Qui!$D$301:$F$356,3,)),0) -> 0 | O37: 33 | R37: 0 | S37: =IFERROR((VLOOKUP(CONCATENATE(P37,Q37),Qui!$D$301:$F$356,3,0)),0) -> 0
A38: 34 | M38: =SUM(D38:L38*(D38:L38>=LARGE(D38:L38,Qui!$A$402))) ->  | N38: =IFERROR((VLOOKUP(CONCATENATE(B38,C38),Qui!$D$301:$F$356,3,)),0) -> 0 | O38: 34 | R38: 0 | S38: =IFERROR((VLOOKUP(CONCATENATE(P38,Q38),Qui!$D$301:$F$356,3,0)),0) -> 0
A39: 35 | M39: =SUM(D39:L39*(D39:L39>=LARGE(D39:L39,Qui!$A$402))) ->  | N39: =IFERROR((VLOOKUP(CONCATENATE(B39,C39),Qui!$D$301:$F$356,3,)),0) -> 0 | O39: 35 | R39: 0 | S39: =IFERROR((VLOOKUP(CONCATENATE(P39,Q39),Qui!$D$301:$F$356,3,0)),0) -> 0
A40: 36 | D40: 0 | E40: 0 | F40: 0 | G40: 0 | H40: 0 | I40: 0 | J40: 0 | K40: 0 | L40: 0 | M40: =SUM(D40:L40*(D40:L40>=LARGE(D40:L40,Qui!$A$402))) -> 0 | N40: =IFERROR((VLOOKUP(CONCATENATE(B40,C40),Qui!$D$301:$F$356,3,)),0) -> 0 | O40: 36 | R40: 0 | S40: =IFERROR((VLOOKUP(CONCATENATE(P40,Q40),Qui!$D$301:$F$356,3,0)),0) -> 0
A41: 37 | D41: 0 | E41: 0 | F41: 0 | G41: 0 | H41: 0 | I41: 0 | J41: 0 | K41: 0 | L41: 0 | M41: =SUM(D41:L41*(D41:L41>=LARGE(D41:L41,Qui!$A$402))) -> 0 | N41: =IFERROR((VLOOKUP(CONCATENATE(B41,C41),Qui!$D$301:$F$356,3,)),0) -> 0 | O41: 37 | R41: 0 | S41: =IFERROR((VLOOKUP(CONCATENATE(P41,Q41),Qui!$D$301:$F$356,3,0)),0) -> 0
A42: 38 | D42: 0 | E42: 0 | F42: 0 | G42: 0 | H42: 0 | I42: 0 | J42: 0 | K42: 0 | L42: 0 | M42: =SUM(D42:L42*(D42:L42>=LARGE(D42:L42,Qui!$A$402))) -> 0 | N42: =IFERROR((VLOOKUP(CONCATENATE(B42,C42),Qui!$D$301:$F$356,3,)),0) -> 0 | O42: 38 | R42: 0 | S42: =IFERROR((VLOOKUP(CONCATENATE(P42,Q42),Qui!$D$301:$F$356,3,0)),0) -> 0
A43: 39 | D43: 0 | E43: 0 | F43: 0 | G43: 0 | H43: 0 | I43: 0 | J43: 0 | K43: 0 | L43: 0 | M43: =SUM(D43:L43*(D43:L43>=LARGE(D43:L43,Qui!$A$402))) -> 0 | N43: =IFERROR((VLOOKUP(CONCATENATE(B43,C43),Qui!$D$301:$F$356,3,)),0) -> 0 | O43: 39 | R43: 0 | S43: =IFERROR((VLOOKUP(CONCATENATE(P43,Q43),Qui!$D$301:$F$356,3,0)),0) -> 0
A44: 40 | D44: 0 | E44: 0 | F44: 0 | G44: 0 | H44: 0 | I44: 0 | J44: 0 | K44: 0 | L44: 0 | M44: =SUM(D44:L44*(D44:L44>=LARGE(D44:L44,Qui!$A$402))) -> 0 | N44: =IFERROR((VLOOKUP(CONCATENATE(B44,C44),Qui!$D$301:$F$356,3,)),0) -> 0 | O44: 40 | R44: 0 | S44: =IFERROR((VLOOKUP(CONCATENATE(P44,Q44),Qui!$D$301:$F$356,3,0)),0) -> 0
A45: 41 | D45: 0 | E45: 0 | F45: 0 | G45: 0 | H45: 0 | I45: 0 | J45: 0 | K45: 0 | L45: 0 | M45: =SUM(D45:L45*(D45:L45>=LARGE(D45:L45,Qui!$A$402))) -> 0 | N45: =IFERROR((VLOOKUP(CONCATENATE(B45,C45),Qui!$D$301:$F$356,3,)),0) -> 0 | O45: 41 | R45: 0 | S45: =IFERROR((VLOOKUP(CONCATENATE(P45,Q45),Qui!$D$301:$F$356,3,0)),0) -> 0
A46: 42 | D46: 0 | E46: 0 | F46: 0 | G46: 0 | H46: 0 | I46: 0 | J46: 0 | K46: 0 | L46: 0 | M46: =SUM(D46:L46*(D46:L46>=LARGE(D46:L46,Qui!$A$402))) -> 0 | N46: =IFERROR((VLOOKUP(CONCATENATE(B46,C46),Qui!$D$301:$F$356,3,)),0) -> 0 | O46: 42 | R46: 0 | S46: =IFERROR((VLOOKUP(CONCATENATE(P46,Q46),Qui!$D$301:$F$356,3,0)),0) -> 0
A47: 43 | D47: 0 | E47: 0 | F47: 0 | G47: 0 | H47: 0 | I47: 0 | J47: 0 | K47: 0 | L47: 0 | M47: =SUM(D47:L47*(D47:L47>=LARGE(D47:L47,Qui!$A$402))) -> 0 | N47: =IFERROR((VLOOKUP(CONCATENATE(B47,C47),Qui!$D$301:$F$356,3,)),0) -> 0 | O47: 43 | R47: 0 | S47: =IFERROR((VLOOKUP(CONCATENATE(P47,Q47),Qui!$D$301:$F$356,3,0)),0) -> 0
A48: 44 | D48: 0 | E48: 0 | F48: 0 | G48: 0 | H48: 0 | I48: 0 | J48: 0 | K48: 0 | L48: 0 | M48: =SUM(D48:L48*(D48:L48>=LARGE(D48:L48,Qui!$A$402))) -> 0 | N48: =IFERROR((VLOOKUP(CONCATENATE(B48,C48),Qui!$D$301:$F$356,3,)),0) -> 0 | O48: 44 | R48: 0 | S48: =IFERROR((VLOOKUP(CONCATENATE(P48,Q48),Qui!$D$301:$F$356,3,0)),0) -> 0
A49: 45 | D49: 0 | E49: 0 | F49: 0 | G49: 0 | H49: 0 | I49: 0 | J49: 0 | K49: 0 | L49: 0 | M49: =SUM(D49:L49*(D49:L49>=LARGE(D49:L49,Qui!$A$402))) -> 0 | N49: =IFERROR((VLOOKUP(CONCATENATE(B49,C49),Qui!$D$301:$F$356,3,)),0) -> 0 | O49: 45 | R49: 0 | S49: =IFERROR((VLOOKUP(CONCATENATE(P49,Q49),Qui!$D$301:$F$356,3,0)),0) -> 0
A50: 46 | D50: 0 | E50: 0 | F50: 0 | G50: 0 | H50: 0 | I50: 0 | J50: 0 | K50: 0 | L50: 0 | M50: =SUM(D50:L50*(D50:L50>=LARGE(D50:L50,Qui!$A$402))) -> 0 | N50: =IFERROR((VLOOKUP(CONCATENATE(B50,C50),Qui!$D$301:$F$356,3,)),0) -> 0 | O50: 46 | R50: 0 | S50: =IFERROR((VLOOKUP(CONCATENATE(P50,Q50),Qui!$D$301:$F$356,3,0)),0) -> 0
A51: 47 | D51: 0 | E51: 0 | F51: 0 | G51: 0 | H51: 0 | I51: 0 | J51: 0 | K51: 0 | L51: 0 | M51: =SUM(D51:L51*(D51:L51>=LARGE(D51:L51,Qui!$A$402))) -> 0 | N51: =IFERROR((VLOOKUP(CONCATENATE(B51,C51),Qui!$D$301:$F$356,3,)),0) -> 0 | O51: 47 | R51: 0 | S51: =IFERROR((VLOOKUP(CONCATENATE(P51,Q51),Qui!$D$301:$F$356,3,0)),0) -> 0
A52: 48 | D52: 0 | E52: 0 | F52: 0 | G52: 0 | H52: 0 | I52: 0 | J52: 0 | K52: 0 | L52: 0 | M52: =SUM(D52:L52*(D52:L52>=LARGE(D52:L52,Qui!$A$402))) -> 0 | N52: =IFERROR((VLOOKUP(CONCATENATE(B52,C52),Qui!$D$301:$F$356,3,)),0) -> 0 | O52: 48 | R52: 0 | S52: =IFERROR((VLOOKUP(CONCATENATE(P52,Q52),Qui!$D$301:$F$356,3,0)),0) -> 0
A53: 49 | D53: 0 | E53: 0 | F53: 0 | G53: 0 | H53: 0 | I53: 0 | J53: 0 | K53: 0 | L53: 0 | M53: =SUM(D53:L53*(D53:L53>=LARGE(D53:L53,Qui!$A$402))) -> 0 | N53: =IFERROR((VLOOKUP(CONCATENATE(B53,C53),Qui!$D$301:$F$356,3,)),0) -> 0 | O53: 49 | R53: 0 | S53: =IFERROR((VLOOKUP(CONCATENATE(P53,Q53),Qui!$D$301:$F$356,3,0)),0) -> 0
A54: 50 | D54: 0 | E54: 0 | F54: 0 | G54: 0 | H54: 0 | I54: 0 | J54: 0 | K54: 0 | L54: 0 | M54: =SUM(D54:L54*(D54:L54>=LARGE(D54:L54,Qui!$A$402))) -> 0 | N54: =IFERROR((VLOOKUP(CONCATENATE(B54,C54),Qui!$D$301:$F$356,3,)),0) -> 0 | O54: 50 | R54: 0 | S54: =IFERROR((VLOOKUP(CONCATENATE(P54,Q54),Qui!$D$301:$F$356,3,0)),0) -> 0
A55: 51 | D55: 0 | E55: 0 | F55: 0 | G55: 0 | H55: 0 | I55: 0 | J55: 0 | K55: 0 | L55: 0 | M55: =SUM(D55:L55*(D55:L55>=LARGE(D55:L55,Qui!$A$402))) -> 0 | N55: =IFERROR((VLOOKUP(CONCATENATE(B55,C55),Qui!$D$301:$F$356,3,)),0) -> 0 | O55: 51 | R55: 0 | S55: =IFERROR((VLOOKUP(CONCATENATE(P55,Q55),Qui!$D$301:$F$356,3,0)),0) -> 0
A56: 52 | D56: 0 | E56: 0 | F56: 0 | G56: 0 | H56: 0 | I56: 0 | J56: 0 | K56: 0 | L56: 0 | M56: =SUM(D56:L56*(D56:L56>=LARGE(D56:L56,Qui!$A$402))) -> 0 | N56: =IFERROR((VLOOKUP(CONCATENATE(B56,C56),Qui!$D$301:$F$356,3,)),0) -> 0 | O56: 52 | R56: 0 | S56: =IFERROR((VLOOKUP(CONCATENATE(P56,Q56),Qui!$D$301:$F$356,3,0)),0) -> 0
A57: 53 | E57: 0 | F57: 0 | G57: 0 | H57: 0 | I57: 0 | J57: 0 | K57: 0 | L57: 0 | M57: =SUM(D57:L57*(D57:L57>=LARGE(D57:L57,Qui!$A$402))) -> 0 | N57: =IFERROR((VLOOKUP(CONCATENATE(B57,C57),Qui!$D$301:$F$356,3,)),0) -> 0 | O57: 53 | R57: 0 | S57: =IFERROR((VLOOKUP(CONCATENATE(P57,Q57),Qui!$D$301:$F$356,3,0)),0) -> 0
A58: 54 | E58: 0 | F58: 0 | G58: 0 | H58: 0 | I58: 0 | J58: 0 | K58: 0 | L58: 0 | M58: =SUM(D58:L58*(D58:L58>=LARGE(D58:L58,Qui!$A$402))) -> 0 | N58: =IFERROR((VLOOKUP(CONCATENATE(B58,C58),Qui!$D$301:$F$356,3,)),0) -> 0 | O58: 54 | R58: 0 | S58: =IFERROR((VLOOKUP(CONCATENATE(P58,Q58),Qui!$D$301:$F$356,3,0)),0) -> 0
D59: =MAX(D5:D58) -> 0 | F59: =MAX(F5:F58) -> 0 | G59: =MAX(G5:G58) -> 0 | I59: =MAX(I5:I58) -> 0 | J59: =MAX(J5:J58) -> 0 | K59: =MAX(K5:K58) -> 0 | L59: =MAX(L5:L58) -> 0
A60: Classement général par équipe | O60: Classement par équipe
A62: 1 | M62: =SUM(D62:L62) -> 0 | N62: =VLOOKUP(B62,Qui!$A$201:$D$204,4) ->  | O62: 1 | R62: 0 | S62: =VLOOKUP(P62,Qui!$A$201:$D$204,4) -> 
A63: 2 | M63: 0 | N63: =VLOOKUP(B63,Qui!$A$201:$D$204,4) ->  | O63: 2 | R63: 0 | S63: =VLOOKUP(P63,Qui!$A$201:$D$204,4) -> 
A64: 3 | M64: 0 | N64: =VLOOKUP(B64,Qui!$A$201:$D$204,4) ->  | O64: 3 | R64: 0 | S64: =VLOOKUP(P64,Qui!$A$201:$D$204,4) -> 
A65: 4 | M65: 0 | N65: =VLOOKUP(B65,Qui!$A$201:$D$204,4) ->  | O65: 4 | R65: 0 | S65: =VLOOKUP(P65,Qui!$A$201:$D$204,4) -> 
A66: 5 | E66: 435 | N66: =VLOOKUP(B66,Qui!$A$201:$D$204,4) ->  | O66: 5 | R66: =SUMPRODUCT(((($S$5:$S$58=S66)*$R$5:$R$58*1))*((($S$5:$S$58=S66)*$R$5:$R$58*1)>=LARGE((($S$5:$S$58=S66)*$R$5:$R$58*1),Qui!$B$402))) ->  | S66: =VLOOKUP(P66,Qui!$A$201:$D$204,4) -> 
A67: 6 | E67: 435 | N67: =VLOOKUP(B67,Qui!$A$201:$D$204,4) ->  | O67: 6 | R67: =SUMPRODUCT(((($S$5:$S$58=S67)*$R$5:$R$58*1))*((($S$5:$S$58=S67)*$R$5:$R$58*1)>=LARGE((($S$5:$S$58=S67)*$R$5:$R$58*1),Qui!$B$402))) ->  | S67: =VLOOKUP(P67,Qui!$A$201:$D$204,4) -> 
D68: =MAX(D62:D67) -> 0 | F68: =MAX(F62:F67) ->  | G68: =MAX(G62:G67) ->  | I68: =MAX(I62:I67) -> 0 | J68: =MAX(J62:J67) -> 0 | K68: =MAX(K62:K67) -> 0 | L68: =MAX(L62:L67) -> 0 | R68: 0
M69: La Chaux-de-Fonds, le 2023 / CM
B71: =CONCATENATE("Rappels :") -> Rappels :
B73: =CONCATENATE("a) le classement général par équipe est fait sur le cumul des ",Qui!$B$402," meilleurs résultats individuels de chaque manche") -> a) le classement général par équipe est fait sur le cumul des 5 meilleurs résultats individuels de chaque manche
B74: =CONCATENATE("b) le classement général individuel est fait sur le cumul des ",Qui!$A$402," meilleurs résultats individuels") -> b) le classement général individuel est fait sur le cumul des 5 meilleurs résultats individuels

Sheet Manche_6 (hidden)
A1: Association intercantonale des joueurs de boules Grand Jeu Neuchâtelois
A2: =CONCATENATE("Championnat grand jeu neuchâtelois ",YEAR(Calendrier!B6)) -> Championnat grand jeu neuchâtelois 2024
A3: Classement général individuel | C3: Manches | D3: =Calendrier!F40 -> Grand-Sommartel | E3: =Calendrier!F47 -> Le Locle | F3: =Calendrier!F54 -> Evologia | G3: =Calendrier!F61 -> La Vue-des-Alpes | H3: =Calendrier!F68 -> L'Epi | I3: =Calendrier!F75 -> La Chaux-de-Fonds | J3: =Calendrier!F82 -> 00:00:00 | M3: =CONCATENATE("Général",CHAR(10),"les ",Qui!$A$402," meilleurs") -> Général les 5 meilleurs | P3: =CONCATENATE("Classement de la manche",CHAR(10),Calendrier!F75,CHAR(10),"du",TEXT(Calendrier!F77," jj.mm")," au",TEXT(Calendrier!F80," jj.mm.aaaa")) -> Classement de la manche La Chaux-de-Fonds du 25.11 au 28.11.2024 | U3: =CONCATENATE(TEXT(Calendrier!F77," jj.mm")," au",TEXT(Calendrier!F80," jj.mm.aaaa")) -> 25.11 au 28.11.2024
D4: 1 | E4: 2 | F4: 3 | G4: 4 | H4: 5 | I4: 6 | J4: 7 | K4: 8 | L4: 9 | P4: =CONCATENATE("Champion de jeu : ",CHAR(10),P5," ",Q5) -> Champion de jeu :
A5: 1 | M5: =SUM(D5:L5*(D5:L5>=LARGE(D5:L5,Qui!$A$402))) ->  | N5: =IFERROR((VLOOKUP(CONCATENATE(B5,C5),Qui!$D$301:$F$356,3,)),0) -> 0 | O5: 1 | S5: =IFERROR((VLOOKUP(CONCATENATE(P5,Q5),Qui!$D$301:$F$356,3,0)),0) -> 0
A6: 2 | M6: =SUM(D6:L6*(D6:L6>=LARGE(D6:L6,Qui!$A$402))) ->  | N6: =IFERROR((VLOOKUP(CONCATENATE(B6,C6),Qui!$D$301:$F$356,3,)),0) -> 0 | O6: 2 | S6: =IFERROR((VLOOKUP(CONCATENATE(P6,Q6),Qui!$D$301:$F$356,3,0)),0) -> 0
A7: 3 | M7: =SUM(D7:L7*(D7:L7>=LARGE(D7:L7,Qui!$A$402))) ->  | N7: =IFERROR((VLOOKUP(CONCATENATE(B7,C7),Qui!$D$301:$F$356,3,)),0) -> 0 | O7: 3 | S7: =IFERROR((VLOOKUP(CONCATENATE(P7,Q7),Qui!$D$301:$F$356,3,0)),0) -> 0
A8: 4 | M8: =SUM(D8:L8*(D8:L8>=LARGE(D8:L8,Qui!$A$402))) ->  | N8: =IFERROR((VLOOKUP(CONCATENATE(B8,C8),Qui!$D$301:$F$356,3,)),0) -> 0 | O8: 4 | S8: =IFERROR((VLOOKUP(CONCATENATE(P8,Q8),Qui!$D$301:$F$356,3,0)),0) -> 0
A9: 5 | M9: =SUM(D9:L9*(D9:L9>=LARGE(D9:L9,Qui!$A$402))) ->  | N9: =IFERROR((VLOOKUP(CONCATENATE(B9,C9),Qui!$D$301:$F$356,3,)),0) -> 0 | O9: 5 | S9: =IFERROR((VLOOKUP(CONCATENATE(P9,Q9),Qui!$D$301:$F$356,3,0)),0) -> 0
A10: 6 | M10: =SUM(D10:L10*(D10:L10>=LARGE(D10:L10,Qui!$A$402))) ->  | N10: =IFERROR((VLOOKUP(CONCATENATE(B10,C10),Qui!$D$301:$F$356,3,)),0) -> 0 | O10: 6 | S10: =IFERROR((VLOOKUP(CONCATENATE(P10,Q10),Qui!$D$301:$F$356,3,0)),0) -> 0
A11: 7 | M11: =SUM(D11:L11*(D11:L11>=LARGE(D11:L11,Qui!$A$402))) ->  | N11: =IFERROR((VLOOKUP(CONCATENATE(B11,C11),Qui!$D$301:$F$356,3,)),0) -> 0 | O11: 7 | S11: =IFERROR((VLOOKUP(CONCATENATE(P11,Q11),Qui!$D$301:$F$356,3,0)),0) -> 0
A12: 8 | M12: =SUM(D12:L12*(D12:L12>=LARGE(D12:L12,Qui!$A$402))) ->  | N12: =IFERROR((VLOOKUP(CONCATENATE(B12,C12),Qui!$D$301:$F$356,3,)),0) -> 0 | O12: 8 | S12: =IFERROR((VLOOKUP(CONCATENATE(P12,Q12),Qui!$D$301:$F$356,3,0)),0) -> 0
A13: 9 | M13: =SUM(D13:L13*(D13:L13>=LARGE(D13:L13,Qui!$A$402))) ->  | N13: =IFERROR((VLOOKUP(CONCATENATE(B13,C13),Qui!$D$301:$F$356,3,)),0) -> 0 | O13: 9 | S13: =IFERROR((VLOOKUP(CONCATENATE(P13,Q13),Qui!$D$301:$F$356,3,0)),0) -> 0
A14: 10 | M14: =SUM(D14:L14*(D14:L14>=LARGE(D14:L14,Qui!$A$402))) ->  | N14: =IFERROR((VLOOKUP(CONCATENATE(B14,C14),Qui!$D$301:$F$356,3,)),0) -> 0 | O14: 10 | S14: =IFERROR((VLOOKUP(CONCATENATE(P14,Q14),Qui!$D$301:$F$356,3,0)),0) -> 0
A15: 11 | M15: =SUM(D15:L15*(D15:L15>=LARGE(D15:L15,Qui!$A$402))) ->  | N15: =IFERROR((VLOOKUP(CONCATENATE(B15,C15),Qui!$D$301:$F$356,3,)),0) -> 0 | O15: 11 | S15: =IFERROR((VLOOKUP(CONCATENATE(P15,Q15),Qui!$D$301:$F$356,3,0)),0) -> 0
A16: 12 | M16: =SUM(D16:L16*(D16:L16>=LARGE(D16:L16,Qui!$A$402))) ->  | N16: =IFERROR((VLOOKUP(CONCATENATE(B16,C16),Qui!$D$301:$F$356,3,)),0) -> 0 | O16: 12 | S16: =IFERROR((VLOOKUP(CONCATENATE(P16,Q16),Qui!$D$301:$F$356,3,0)),0) -> 0
A17: 13 | M17: =SUM(D17:L17*(D17:L17>=LARGE(D17:L17,Qui!$A$402))) ->  | N17: =IFERROR((VLOOKUP(CONCATENATE(B17,C17),Qui!$D$301:$F$356,3,)),0) -> 0 | O17: 13 | S17: =IFERROR((VLOOKUP(CONCATENATE(P17,Q17),Qui!$D$301:$F$356,3,0)),0) -> 0
A18: 14 | M18: =SUM(D18:L18*(D18:L18>=LARGE(D18:L18,Qui!$A$402))) ->  | N18: =IFERROR((VLOOKUP(CONCATENATE(B18,C18),Qui!$D$301:$F$356,3,)),0) -> 0 | O18: 14 | S18: =IFERROR((VLOOKUP(CONCATENATE(P18,Q18),Qui!$D$301:$F$356,3,0)),0) -> 0
A19: 15 | M19: =SUM(D19:L19*(D19:L19>=LARGE(D19:L19,Qui!$A$402))) ->  | N19: =IFERROR((VLOOKUP(CONCATENATE(B19,C19),Qui!$D$301:$F$356,3,)),0) -> 0 | O19: 15 | S19: =IFERROR((VLOOKUP(CONCATENATE(P19,Q19),Qui!$D$301:$F$356,3,0)),0) -> 0
A20: 16 | M20: =SUM(D20:L20*(D20:L20>=LARGE(D20:L20,Qui!$A$402))) ->  | N20: =IFERROR((VLOOKUP(CONCATENATE(B20,C20),Qui!$D$301:$F$356,3,)),0) -> 0 | O20: 16 | S20: =IFERROR((VLOOKUP(CONCATENATE(P20,Q20),Qui!$D$301:$F$356,3,0)),0) -> 0
A21: 17 | M21: =SUM(D21:L21*(D21:L21>=LARGE(D21:L21,Qui!$A$402))) ->  | N21: =IFERROR((VLOOKUP(CONCATENATE(B21,C21),Qui!$D$301:$F$356,3,)),0) -> 0 | O21: 17 | S21: =IFERROR((VLOOKUP(CONCATENATE(P21,Q21),Qui!$D$301:$F$356,3,0)),0) -> 0
A22: 18 | M22: =SUM(D22:L22*(D22:L22>=LARGE(D22:L22,Qui!$A$402))) ->  | N22: =IFERROR((VLOOKUP(CONCATENATE(B22,C22),Qui!$D$301:$F$356,3,)),0) -> 0 | O22: 18 | S22: =IFERROR((VLOOKUP(CONCATENATE(P22,Q22),Qui!$D$301:$F$356,3,0)),0) -> 0
A23: 19 | M23: =SUM(D23:L23*(D23:L23>=LARGE(D23:L23,Qui!$A$402))) ->  | N23: =IFERROR((VLOOKUP(CONCATENATE(B23,C23),Qui!$D$301:$F$356,3,)),0) -> 0 | O23: 19 | S23: =IFERROR((VLOOKUP(CONCATENATE(P23,Q23),Qui!$D$301:$F$356,3,0)),0) -> 0
A24: 20 | M24: =SUM(D24:L24*(D24:L24>=LARGE(D24:L24,Qui!$A$402))) ->  | N24: =IFERROR((VLOOKUP(CONCATENATE(B24,C24),Qui!$D$301:$F$356,3,)),0) -> 0 | O24: 20 | S24: =IFERROR((VLOOKUP(CONCATENATE(P24,Q24),Qui!$D$301:$F$356,3,0)),0) -> 0
A25: 21 | M25: =SUM(D25:L25*(D25:L25>=LARGE(D25:L25,Qui!$A$402))) ->  | N25: =IFERROR((VLOOKUP(CONCATENATE(B25,C25),Qui!$D$301:$F$356,3,)),0) -> 0 | O25: 21 | S25: =IFERROR((VLOOKUP(CONCATENATE(P25,Q25),Qui!$D$301:$F$356,3,0)),0) -> 0
A26: 22 | M26: =SUM(D26:L26*(D26:L26>=LARGE(D26:L26,Qui!$A$402))) ->  | N26: =IFERROR((VLOOKUP(CONCATENATE(B26,C26),Qui!$D$301:$F$356,3,)),0) -> 0 | O26: 22 | S26: =IFERROR((VLOOKUP(CONCATENATE(P26,Q26),Qui!$D$301:$F$356,3,0)),0) -> 0
A27: 23 | M27: =SUM(D27:L27*(D27:L27>=LARGE(D27:L27,Qui!$A$402))) ->  | N27: =IFERROR((VLOOKUP(CONCATENATE(B27,C27),Qui!$D$301:$F$356,3,)),0) -> 0 | O27: 23 | S27: =IFERROR((VLOOKUP(CONCATENATE(P27,Q27),Qui!$D$301:$F$356,3,0)),0) -> 0
A28: 24 | M28: =SUM(D28:L28*(D28:L28>=LARGE(D28:L28,Qui!$A$402))) ->  | N28: =IFERROR((VLOOKUP(CONCATENATE(B28,C28),Qui!$D$301:$F$356,3,)),0) -> 0 | O28: 24 | S28: =IFERROR((VLOOKUP(CONCATENATE(P28,Q28),Qui!$D$301:$F$356,3,0)),0) -> 0
A29: 25 | M29: =SUM(D29:L29*(D29:L29>=LARGE(D29:L29,Qui!$A$402))) ->  | N29: =IFERROR((VLOOKUP(CONCATENATE(B29,C29),Qui!$D$301:$F$356,3,)),0) -> 0 | O29: 25 | S29: =IFERROR((VLOOKUP(CONCATENATE(P29,Q29),Qui!$D$301:$F$356,3,0)),0) -> 0
A30: 26 | M30: =SUM(D30:L30*(D30:L30>=LARGE(D30:L30,Qui!$A$402))) ->  | N30: =IFERROR((VLOOKUP(CONCATENATE(B30,C30),Qui!$D$301:$F$356,3,)),0) -> 0 | O30: 26 | S30: =IFERROR((VLOOKUP(CONCATENATE(P30,Q30),Qui!$D$301:$F$356,3,0)),0) -> 0
A31: 27 | M31: =SUM(D31:L31*(D31:L31>=LARGE(D31:L31,Qui!$A$402))) ->  | N31: =IFERROR((VLOOKUP(CONCATENATE(B31,C31),Qui!$D$301:$F$356,3,)),0) -> 0 | O31: 27 | S31: =IFERROR((VLOOKUP(CONCATENATE(P31,Q31),Qui!$D$301:$F$356,3,0)),0) -> 0
A32: 28 | M32: =SUM(D32:L32*(D32:L32>=LARGE(D32:L32,Qui!$A$402))) ->  | N32: =IFERROR((VLOOKUP(CONCATENATE(B32,C32),Qui!$D$301:$F$356,3,)),0) -> 0 | O32: 28 | S32: =IFERROR((VLOOKUP(CONCATENATE(P32,Q32),Qui!$D$301:$F$356,3,0)),0) -> 0
A33: 29 | M33: =SUM(D33:L33*(D33:L33>=LARGE(D33:L33,Qui!$A$402))) ->  | N33: =IFERROR((VLOOKUP(CONCATENATE(B33,C33),Qui!$D$301:$F$356,3,)),0) -> 0 | O33: 29 | S33: =IFERROR((VLOOKUP(CONCATENATE(P33,Q33),Qui!$D$301:$F$356,3,0)),0) -> 0
A34: 30 | M34: =SUM(D34:L34*(D34:L34>=LARGE(D34:L34,Qui!$A$402))) ->  | N34: =IFERROR((VLOOKUP(CONCATENATE(B34,C34),Qui!$D$301:$F$356,3,)),0) -> 0 | O34: 30 | S34: =IFERROR((VLOOKUP(CONCATENATE(P34,Q34),Qui!$D$301:$F$356,3,0)),0) -> 0
A35: 31 | D35: 0 | E35: 0 | F35: 0 | G35: 0 | H35: 0 | I35: 0 | M35: =SUM(D35:L35*(D35:L35>=LARGE(D35:L35,Qui!$A$402))) -> 0 | N35: =IFERROR((VLOOKUP(CONCATENATE(B35,C35),Qui!$D$301:$F$356,3,)),0) -> 0 | O35: 31 | S35: =IFERROR((VLOOKUP(CONCATENATE(P35,Q35),Qui!$D$301:$F$356,3,0)),0) -> 0
A36: 32 | M36: =SUM(D36:L36*(D36:L36>=LARGE(D36:L36,Qui!$A$402))) ->  | N36: =IFERROR((VLOOKUP(CONCATENATE(B36,C36),Qui!$D$301:$F$356,3,)),0) -> 0 | O36: 32 | S36: =IFERROR((VLOOKUP(CONCATENATE(P36,Q36),Qui!$D$301:$F$356,3,0)),0) -> 0
A37: 33 | M37: =SUM(D37:L37*(D37:L37>=LARGE(D37:L37,Qui!$A$402))) ->  | N37: =IFERROR((VLOOKUP(CONCATENATE(B37,C37),Qui!$D$301:$F$356,3,)),0) -> 0 | O37: 33 | R37: 0 | S37: =IFERROR((VLOOKUP(CONCATENATE(P37,Q37),Qui!$D$301:$F$356,3,0)),0) -> 0
A38: 34 | M38: =SUM(D38:L38*(D38:L38>=LARGE(D38:L38,Qui!$A$402))) ->  | N38: =IFERROR((VLOOKUP(CONCATENATE(B38,C38),Qui!$D$301:$F$356,3,)),0) -> 0 | O38: 34 | R38: 0 | S38: =IFERROR((VLOOKUP(CONCATENATE(P38,Q38),Qui!$D$301:$F$356,3,0)),0) -> 0
A39: 35 | M39: =SUM(D39:L39*(D39:L39>=LARGE(D39:L39,Qui!$A$402))) ->  | N39: =IFERROR((VLOOKUP(CONCATENATE(B39,C39),Qui!$D$301:$F$356,3,)),0) -> 0 | O39: 35 | R39: 0 | S39: =IFERROR((VLOOKUP(CONCATENATE(P39,Q39),Qui!$D$301:$F$356,3,0)),0) -> 0
A40: 36 | D40: 0 | E40: 0 | F40: 0 | G40: 0 | H40: 0 | I40: 0 | J40: 0 | K40: 0 | L40: 0 | M40: =SUM(D40:L40*(D40:L40>=LARGE(D40:L40,Qui!$A$402))) -> 0 | N40: =IFERROR((VLOOKUP(CONCATENATE(B40,C40),Qui!$D$301:$F$356,3,)),0) -> 0 | O40: 36 | R40: 0 | S40: =IFERROR((VLOOKUP(CONCATENATE(P40,Q40),Qui!$D$301:$F$356,3,0)),0) -> 0
A41: 37 | D41: 0 | E41: 0 | F41: 0 | G41: 0 | H41: 0 | I41: 0 | J41: 0 | K41: 0 | L41: 0 | M41: =SUM(D41:L41*(D41:L41>=LARGE(D41:L41,Qui!$A$402))) -> 0 | N41: =IFERROR((VLOOKUP(CONCATENATE(B41,C41),Qui!$D$301:$F$356,3,)),0) -> 0 | O41: 37 | R41: 0 | S41: =IFERROR((VLOOKUP(CONCATENATE(P41,Q41),Qui!$D$301:$F$356,3,0)),0) -> 0
A42: 38 | D42: 0 | E42: 0 | F42: 0 | G42: 0 | H42: 0 | I42: 0 | J42: 0 | K42: 0 | L42: 0 | M42: =SUM(D42:L42*(D42:L42>=LARGE(D42:L42,Qui!$A$402))) -> 0 | N42: =IFERROR((VLOOKUP(CONCATENATE(B42,C42),Qui!$D$301:$F$356,3,)),0) -> 0 | O42: 38 | R42: 0 | S42: =IFERROR((VLOOKUP(CONCATENATE(P42,Q42),Qui!$D$301:$F$356,3,0)),0) -> 0
A43: 39 | D43: 0 | E43: 0 | F43: 0 | G43: 0 | H43: 0 | I43: 0 | J43: 0 | K43: 0 | L43: 0 | M43: =SUM(D43:L43*(D43:L43>=LARGE(D43:L43,Qui!$A$402))) -> 0 | N43: =IFERROR((VLOOKUP(CONCATENATE(B43,C43),Qui!$D$301:$F$356,3,)),0) -> 0 | O43: 39 | R43: 0 | S43: =IFERROR((VLOOKUP(CONCATENATE(P43,Q43),Qui!$D$301:$F$356,3,0)),0) -> 0
A44: 40 | D44: 0 | E44: 0 | F44: 0 | G44: 0 | H44: 0 | I44: 0 | J44: 0 | K44: 0 | L44: 0 | M44: =SUM(D44:L44*(D44:L44>=LARGE(D44:L44,Qui!$A$402))) -> 0 | N44: =IFERROR((VLOOKUP(CONCATENATE(B44,C44),Qui!$D$301:$F$356,3,)),0) -> 0 | O44: 40 | R44: 0 | S44: =IFERROR((VLOOKUP(CONCATENATE(P44,Q44),Qui!$D$301:$F$356,3,0)),0) -> 0
A45: 41 | D45: 0 | E45: 0 | F45: 0 | G45: 0 | H45: 0 | I45: 0 | J45: 0 | K45: 0 | L45: 0 | M45: =SUM(D45:L45*(D45:L45>=LARGE(D45:L45,Qui!$A$402))) -> 0 | N45: =IFERROR((VLOOKUP(CONCATENATE(B45,C45),Qui!$D$301:$F$356,3,)),0) -> 0 | O45: 41 | R45: 0 | S45: =IFERROR((VLOOKUP(CONCATENATE(P45,Q45),Qui!$D$301:$F$356,3,0)),0) -> 0
A46: 42 | D46: 0 | E46: 0 | F46: 0 | G46: 0 | H46: 0 | I46: 0 | J46: 0 | K46: 0 | L46: 0 | M46: =SUM(D46:L46*(D46:L46>=LARGE(D46:L46,Qui!$A$402))) -> 0 | N46: =IFERROR((VLOOKUP(CONCATENATE(B46,C46),Qui!$D$301:$F$356,3,)),0) -> 0 | O46: 42 | R46: 0 | S46: =IFERROR((VLOOKUP(CONCATENATE(P46,Q46),Qui!$D$301:$F$356,3,0)),0) -> 0
A47: 43 | D47: 0 | E47: 0 | F47: 0 | G47: 0 | H47: 0 | I47: 0 | J47: 0 | K47: 0 | L47: 0 | M47: =SUM(D47:L47*(D47:L47>=LARGE(D47:L47,Qui!$A$402))) -> 0 | N47: =IFERROR((VLOOKUP(CONCATENATE(B47,C47),Qui!$D$301:$F$356,3,)),0) -> 0 | O47: 43 | R47: 0 | S47: =IFERROR((VLOOKUP(CONCATENATE(P47,Q47),Qui!$D$301:$F$356,3,0)),0) -> 0
A48: 44 | D48: 0 | E48: 0 | F48: 0 | G48: 0 | H48: 0 | I48: 0 | J48: 0 | K48: 0 | L48: 0 | M48: =SUM(D48:L48*(D48:L48>=LARGE(D48:L48,Qui!$A$402))) -> 0 | N48: =IFERROR((VLOOKUP(CONCATENATE(B48,C48),Qui!$D$301:$F$356,3,)),0) -> 0 | O48: 44 | R48: 0 | S48: =IFERROR((VLOOKUP(CONCATENATE(P48,Q48),Qui!$D$301:$F$356,3,0)),0) -> 0
A49: 45 | D49: 0 | E49: 0 | F49: 0 | G49: 0 | H49: 0 | I49: 0 | J49: 0 | K49: 0 | L49: 0 | M49: =SUM(D49:L49*(D49:L49>=LARGE(D49:L49,Qui!$A$402))) -> 0 | N49: =IFERROR((VLOOKUP(CONCATENATE(B49,C49),Qui!$D$301:$F$356,3,)),0) -> 0 | O49: 45 | R49: 0 | S49: =IFERROR((VLOOKUP(CONCATENATE(P49,Q49),Qui!$D$301:$F$356,3,0)),0) -> 0
A50: 46 | D50: 0 | E50: 0 | F50: 0 | G50: 0 | H50: 0 | I50: 0 | J50: 0 | K50: 0 | L50: 0 | M50: =SUM(D50:L50*(D50:L50>=LARGE(D50:L50,Qui!$A$402))) -> 0 | N50: =IFERROR((VLOOKUP(CONCATENATE(B50,C50),Qui!$D$301:$F$356,3,)),0) -> 0 | O50: 46 | R50: 0 | S50: =IFERROR((VLOOKUP(CONCATENATE(P50,Q50),Qui!$D$301:$F$356,3,0)),0) -> 0
A51: 47 | D51: 0 | E51: 0 | F51: 0 | G51: 0 | H51: 0 | I51: 0 | J51: 0 | K51: 0 | L51: 0 | M51: =SUM(D51:L51*(D51:L51>=LARGE(D51:L51,Qui!$A$402))) -> 0 | N51: =IFERROR((VLOOKUP(CONCATENATE(B51,C51),Qui!$D$301:$F$356,3,)),0) -> 0 | O51: 47 | R51: 0 | S51: =IFERROR((VLOOKUP(CONCATENATE(P51,Q51),Qui!$D$301:$F$356,3,0)),0) -> 0
A52: 48 | D52: 0 | E52: 0 | F52: 0 | G52: 0 | H52: 0 | I52: 0 | J52: 0 | K52: 0 | L52: 0 | M52: =SUM(D52:L52*(D52:L52>=LARGE(D52:L52,Qui!$A$402))) -> 0 | N52: =IFERROR((VLOOKUP(CONCATENATE(B52,C52),Qui!$D$301:$F$356,3,)),0) -> 0 | O52: 48 | R52: 0 | S52: =IFERROR((VLOOKUP(CONCATENATE(P52,Q52),Qui!$D$301:$F$356,3,0)),0) -> 0
A53: 49 | D53: 0 | E53: 0 | F53: 0 | G53: 0 | H53: 0 | I53: 0 | J53: 0 | K53: 0 | L53: 0 | M53: =SUM(D53:L53*(D53:L53>=LARGE(D53:L53,Qui!$A$402))) -> 0 | N53: =IFERROR((VLOOKUP(CONCATENATE(B53,C53),Qui!$D$301:$F$356,3,)),0) -> 0 | O53: 49 | R53: 0 | S53: =IFERROR((VLOOKUP(CONCATENATE(P53,Q53),Qui!$D$301:$F$356,3,0)),0) -> 0
A54: 50 | D54: 0 | E54: 0 | F54: 0 | G54: 0 | H54: 0 | I54: 0 | J54: 0 | K54: 0 | L54: 0 | M54: =SUM(D54:L54*(D54:L54>=LARGE(D54:L54,Qui!$A$402))) -> 0 | N54: =IFERROR((VLOOKUP(CONCATENATE(B54,C54),Qui!$D$301:$F$356,3,)),0) -> 0 | O54: 50 | R54: 0 | S54: =IFERROR((VLOOKUP(CONCATENATE(P54,Q54),Qui!$D$301:$F$356,3,0)),0) -> 0
A55: 51 | D55: 0 | E55: 0 | F55: 0 | G55: 0 | H55: 0 | I55: 0 | J55: 0 | K55: 0 | L55: 0 | M55: =SUM(D55:L55*(D55:L55>=LARGE(D55:L55,Qui!$A$402))) -> 0 | N55: =IFERROR((VLOOKUP(CONCATENATE(B55,C55),Qui!$D$301:$F$356,3,)),0) -> 0 | O55: 51 | R55: 0 | S55: =IFERROR((VLOOKUP(CONCATENATE(P55,Q55),Qui!$D$301:$F$356,3,0)),0) -> 0
A56: 52 | D56: 0 | E56: 0 | F56: 0 | G56: 0 | H56: 0 | I56: 0 | J56: 0 | K56: 0 | L56: 0 | M56: =SUM(D56:L56*(D56:L56>=LARGE(D56:L56,Qui!$A$402))) -> 0 | N56: =IFERROR((VLOOKUP(CONCATENATE(B56,C56),Qui!$D$301:$F$356,3,)),0) -> 0 | O56: 52 | R56: 0 | S56: =IFERROR((VLOOKUP(CONCATENATE(P56,Q56),Qui!$D$301:$F$356,3,0)),0) -> 0
A57: 53 | E57: 0 | F57: 0 | G57: 0 | H57: 0 | I57: 0 | J57: 0 | K57: 0 | L57: 0 | M57: =SUM(D57:L57*(D57:L57>=LARGE(D57:L57,Qui!$A$402))) -> 0 | N57: =IFERROR((VLOOKUP(CONCATENATE(B57,C57),Qui!$D$301:$F$356,3,)),0) -> 0 | O57: 53 | R57: 0 | S57: =IFERROR((VLOOKUP(CONCATENATE(P57,Q57),Qui!$D$301:$F$356,3,0)),0) -> 0
A58: 54 | E58: 0 | F58: 0 | G58: 0 | H58: 0 | I58: 0 | J58: 0 | K58: 0 | L58: 0 | M58: =SUM(D58:L58*(D58:L58>=LARGE(D58:L58,Qui!$A$402))) -> 0 | N58: =IFERROR((VLOOKUP(CONCATENATE(B58,C58),Qui!$D$301:$F$356,3,)),0) -> 0 | O58: 54 | R58: 0 | S58: =IFERROR((VLOOKUP(CONCATENATE(P58,Q58),Qui!$D$301:$F$356,3,0)),0) -> 0
D59: =MAX(D5:D58) -> 0 | F59: =MAX(F5:F58) -> 0 | G59: =MAX(G5:G58) -> 0 | I59: =MAX(I5:I58) -> 0 | J59: =MAX(J5:J58) -> 0 | K59: =MAX(K5:K58) -> 0 | L59: =MAX(L5:L58) -> 0
A60: Classement général par équipe | O60: Classement par équipe
A62: 1 | M62: =SUM(D62:L62*(D62:L62>=LARGE(D62:L62,Qui!$B$402))) ->  | N62: =VLOOKUP(B62,Qui!$A$201:$D$204,4) ->  | O62: 1 | S62: =VLOOKUP(P62,Qui!$A$201:$D$204,4) -> 
A63: 2 | M63: =SUM(D63:L63*(D63:L63>=LARGE(D63:L63,Qui!$B$402))) ->  | N63: =VLOOKUP(B63,Qui!$A$201:$D$204,4) ->  | O63: 2 | S63: =VLOOKUP(P63,Qui!$A$201:$D$204,4) -> 
A64: 3 | M64: =SUM(D64:L64*(D64:L64>=LARGE(D64:L64,Qui!$B$402))) ->  | N64: =VLOOKUP(B64,Qui!$A$201:$D$204,4) ->  | O64: 3 | S64: =VLOOKUP(P64,Qui!$A$201:$D$204,4) -> 
A65: 4 | M65: =SUM(D65:L65*(D65:L65>=LARGE(D65:L65,Qui!$B$402))) ->  | N65: =VLOOKUP(B65,Qui!$A$201:$D$204,4) ->  | O65: 4 | S65: =VLOOKUP(P65,Qui!$A$201:$D$204,4) -> 
A66: 5 | E66: 435 | M66: =SUM(D66:L66*(D66:L66>=LARGE(D66:L66,Qui!$B$402))) ->  | N66: =VLOOKUP(B66,Qui!$A$201:$D$204,4) ->  | O66: 5 | R66: =SUMPRODUCT(((($S$5:$S$58=S66)*$R$5:$R$58*1))*((($S$5:$S$58=S66)*$R$5:$R$58*1)>=LARGE((($S$5:$S$58=S66)*$R$5:$R$58*1),Qui!$B$402))) ->  | S66: =VLOOKUP(P66,Qui!$A$201:$D$204,4) -> 
A67: 6 | E67: 435 | M67: =SUM(D67:L67*(D67:L67>=LARGE(D67:L67,Qui!$B$402))) ->  | N67: =VLOOKUP(B67,Qui!$A$201:$D$204,4) ->  | O67: 6 | R67: =SUMPRODUCT(((($S$5:$S$58=S67)*$R$5:$R$58*1))*((($S$5:$S$58=S67)*$R$5:$R$58*1)>=LARGE((($S$5:$S$58=S67)*$R$5:$R$58*1),Qui!$B$402))) ->  | S67: =VLOOKUP(P67,Qui!$A$201:$D$204,4) -> 
D68: =MAX(D62:D67) -> 0 | F68: =MAX(F62:F67) ->  | G68: =MAX(G62:G67) ->  | I68: =MAX(I62:I67) -> 0 | J68: =MAX(J62:J67) -> 0 | K68: =MAX(K62:K67) -> 0 | L68: =MAX(L62:L67) -> 0 | R68: 0
M69: La Chaux-de-Fonds, le 2023 / CM
B71: =CONCATENATE("Rappels :") -> Rappels :
B73: =CONCATENATE("a) le classement général par équipe est fait sur le cumul des ",Qui!$B$402," meilleurs résultats individuels de chaque manche") -> a) le classement général par équipe est fait sur le cumul des 5 meilleurs résultats individuels de chaque manche
B74: =CONCATENATE("b) le classement général individuel est fait sur le cumul des ",Qui!$A$402," meilleurs résultats individuels") -> b) le classement général individuel est fait sur le cumul des 5 meilleurs résultats individuels

Sheet Manche_7 (hidden)
A1: Association intercantonale des joueurs de boules Grand Jeu Neuchâtelois
A2: =CONCATENATE("Championnat grand jeu neuchâtelois ",YEAR(Calendrier!B6)) -> Championnat grand jeu neuchâtelois 2024
A3: Classement général individuel | C3: Manches | D3: =Calendrier!F40 -> Grand-Sommartel | E3: =Calendrier!F47 -> Le Locle | F3: =Calendrier!F54 -> Evologia | G3: =Calendrier!F61 -> La Vue-des-Alpes | H3: =Calendrier!F68 -> L'Epi | I3: =Calendrier!F75 -> La Chaux-de-Fonds | J3: =Calendrier!F82 -> 00:00:00 | M3: =CONCATENATE("Général",CHAR(10),"les ",Qui!$A$402," meilleurs") -> Général les 5 meilleurs | P3: =CONCATENATE("Classement de la manche",CHAR(10),Calendrier!F82,CHAR(10),"du ",TEXT(Calendrier!F84," jj.mm")," au ",TEXT(Calendrier!F87," jj.mm.aaaa")) -> Classement de la manche du 07.01 au 10.01.1900
D4: 1 | E4: 2 | F4: 3 | G4: 4 | H4: 5 | I4: 6 | J4: 7 | K4: 8 | L4: 9 | P4: =CONCATENATE("Champion de jeu : ",CHAR(10),P5," ",Q5) -> Champion de jeu :
A5: 1 | M5: =SUM(D5:L5*(D5:L5>=LARGE(D5:L5,Qui!$A$402))) ->  | N5: =IFERROR((VLOOKUP(CONCATENATE(B5,C5),Qui!$D$301:$F$356,3,)),0) -> 0 | O5: 1 | R5: 0 | S5: =IFERROR((VLOOKUP(CONCATENATE(P5,Q5),Qui!$D$301:$F$356,3,0)),0) -> 0
A6: 2 | M6: =SUM(D6:L6*(D6:L6>=LARGE(D6:L6,Qui!$A$402))) ->  | N6: =IFERROR((VLOOKUP(CONCATENATE(B6,C6),Qui!$D$301:$F$356,3,)),0) -> 0 | O6: 2 | R6: 0 | S6: =IFERROR((VLOOKUP(CONCATENATE(P6,Q6),Qui!$D$301:$F$356,3,0)),0) -> 0
A7: 3 | M7: =SUM(D7:L7*(D7:L7>=LARGE(D7:L7,Qui!$A$402))) ->  | N7: =IFERROR((VLOOKUP(CONCATENATE(B7,C7),Qui!$D$301:$F$356,3,)),0) -> 0 | O7: 3 | R7: 0 | S7: =IFERROR((VLOOKUP(CONCATENATE(P7,Q7),Qui!$D$301:$F$356,3,0)),0) -> 0
A8: 4 | M8: =SUM(D8:L8*(D8:L8>=LARGE(D8:L8,Qui!$A$402))) ->  | N8: =IFERROR((VLOOKUP(CONCATENATE(B8,C8),Qui!$D$301:$F$356,3,)),0) -> 0 | O8: 4 | R8: 0 | S8: =IFERROR((VLOOKUP(CONCATENATE(P8,Q8),Qui!$D$301:$F$356,3,0)),0) -> 0
A9: 5 | M9: =SUM(D9:L9*(D9:L9>=LARGE(D9:L9,Qui!$A$402))) ->  | N9: =IFERROR((VLOOKUP(CONCATENATE(B9,C9),Qui!$D$301:$F$356,3,)),0) -> 0 | O9: 5 | R9: 0 | S9: =IFERROR((VLOOKUP(CONCATENATE(P9,Q9),Qui!$D$301:$F$356,3,0)),0) -> 0
A10: 6 | M10: =SUM(D10:L10*(D10:L10>=LARGE(D10:L10,Qui!$A$402))) ->  | N10: =IFERROR((VLOOKUP(CONCATENATE(B10,C10),Qui!$D$301:$F$356,3,)),0) -> 0 | O10: 6 | R10: 0 | S10: =IFERROR((VLOOKUP(CONCATENATE(P10,Q10),Qui!$D$301:$F$356,3,0)),0) -> 0
A11: 7 | M11: =SUM(D11:L11*(D11:L11>=LARGE(D11:L11,Qui!$A$402))) ->  | N11: =IFERROR((VLOOKUP(CONCATENATE(B11,C11),Qui!$D$301:$F$356,3,)),0) -> 0 | O11: 7 | R11: 0 | S11: =IFERROR((VLOOKUP(CONCATENATE(P11,Q11),Qui!$D$301:$F$356,3,0)),0) -> 0
A12: 8 | M12: =SUM(D12:L12*(D12:L12>=LARGE(D12:L12,Qui!$A$402))) ->  | N12: =IFERROR((VLOOKUP(CONCATENATE(B12,C12),Qui!$D$301:$F$356,3,)),0) -> 0 | O12: 8 | R12: 0 | S12: =IFERROR((VLOOKUP(CONCATENATE(P12,Q12),Qui!$D$301:$F$356,3,0)),0) -> 0
A13: 9 | M13: =SUM(D13:L13*(D13:L13>=LARGE(D13:L13,Qui!$A$402))) ->  | N13: =IFERROR((VLOOKUP(CONCATENATE(B13,C13),Qui!$D$301:$F$356,3,)),0) -> 0 | O13: 9 | R13: 0 | S13: =IFERROR((VLOOKUP(CONCATENATE(P13,Q13),Qui!$D$301:$F$356,3,0)),0) -> 0
A14: 10 | M14: =SUM(D14:L14*(D14:L14>=LARGE(D14:L14,Qui!$A$402))) ->  | N14: =IFERROR((VLOOKUP(CONCATENATE(B14,C14),Qui!$D$301:$F$356,3,)),0) -> 0 | O14: 10 | R14: 0 | S14: =IFERROR((VLOOKUP(CONCATENATE(P14,Q14),Qui!$D$301:$F$356,3,0)),0) -> 0
A15: 11 | M15: =SUM(D15:L15*(D15:L15>=LARGE(D15:L15,Qui!$A$402))) ->  | N15: =IFERROR((VLOOKUP(CONCATENATE(B15,C15),Qui!$D$301:$F$356,3,)),0) -> 0 | O15: 11 | R15: 0 | S15: =IFERROR((VLOOKUP(CONCATENATE(P15,Q15),Qui!$D$301:$F$356,3,0)),0) -> 0
A16: 12 | M16: =SUM(D16:L16*(D16:L16>=LARGE(D16:L16,Qui!$A$402))) ->  | N16: =IFERROR((VLOOKUP(CONCATENATE(B16,C16),Qui!$D$301:$F$356,3,)),0) -> 0 | O16: 12 | R16: 0 | S16: =IFERROR((VLOOKUP(CONCATENATE(P16,Q16),Qui!$D$301:$F$356,3,0)),0) -> 0
A17: 13 | M17: =SUM(D17:L17*(D17:L17>=LARGE(D17:L17,Qui!$A$402))) ->  | N17: =IFERROR((VLOOKUP(CONCATENATE(B17,C17),Qui!$D$301:$F$356,3,)),0) -> 0 | O17: 13 | R17: 0 | S17: =IFERROR((VLOOKUP(CONCATENATE(P17,Q17),Qui!$D$301:$F$356,3,0)),0) -> 0
A18: 14 | M18: =SUM(D18:L18*(D18:L18>=LARGE(D18:L18,Qui!$A$402))) ->  | N18: =IFERROR((VLOOKUP(CONCATENATE(B18,C18),Qui!$D$301:$F$356,3,)),0) -> 0 | O18: 14 | R18: 0 | S18: =IFERROR((VLOOKUP(CONCATENATE(P18,Q18),Qui!$D$301:$F$356,3,0)),0) -> 0
A19: 15 | M19: =SUM(D19:L19*(D19:L19>=LARGE(D19:L19,Qui!$A$402))) ->  | N19: =IFERROR((VLOOKUP(CONCATENATE(B19,C19),Qui!$D$301:$F$356,3,)),0) -> 0 | O19: 15 | R19: 0 | S19: =IFERROR((VLOOKUP(CONCATENATE(P19,Q19),Qui!$D$301:$F$356,3,0)),0) -> 0
A20: 16 | M20: =SUM(D20:L20*(D20:L20>=LARGE(D20:L20,Qui!$A$402))) ->  | N20: =IFERROR((VLOOKUP(CONCATENATE(B20,C20),Qui!$D$301:$F$356,3,)),0) -> 0 | O20: 16 | R20: 0 | S20: =IFERROR((VLOOKUP(CONCATENATE(P20,Q20),Qui!$D$301:$F$356,3,0)),0) -> 0
A21: 17 | M21: =SUM(D21:L21*(D21:L21>=LARGE(D21:L21,Qui!$A$402))) ->  | N21: =IFERROR((VLOOKUP(CONCATENATE(B21,C21),Qui!$D$301:$F$356,3,)),0) -> 0 | O21: 17 | R21: 0 | S21: =IFERROR((VLOOKUP(CONCATENATE(P21,Q21),Qui!$D$301:$F$356,3,0)),0) -> 0
A22: 18 | M22: =SUM(D22:L22*(D22:L22>=LARGE(D22:L22,Qui!$A$402))) ->  | N22: =IFERROR((VLOOKUP(CONCATENATE(B22,C22),Qui!$D$301:$F$356,3,)),0) -> 0 | O22: 18 | R22: 0 | S22: =IFERROR((VLOOKUP(CONCATENATE(P22,Q22),Qui!$D$301:$F$356,3,0)),0) -> 0
A23: 19 | M23: =SUM(D23:L23*(D23:L23>=LARGE(D23:L23,Qui!$A$402))) ->  | N23: =IFERROR((VLOOKUP(CONCATENATE(B23,C23),Qui!$D$301:$F$356,3,)),0) -> 0 | O23: 19 | R23: 0 | S23: =IFERROR((VLOOKUP(CONCATENATE(P23,Q23),Qui!$D$301:$F$356,3,0)),0) -> 0
A24: 20 | M24: =SUM(D24:L24*(D24:L24>=LARGE(D24:L24,Qui!$A$402))) ->  | N24: =IFERROR((VLOOKUP(CONCATENATE(B24,C24),Qui!$D$301:$F$356,3,)),0) -> 0 | O24: 20 | R24: 0 | S24: =IFERROR((VLOOKUP(CONCATENATE(P24,Q24),Qui!$D$301:$F$356,3,0)),0) -> 0
A25: 21 | M25: =SUM(D25:L25*(D25:L25>=LARGE(D25:L25,Qui!$A$402))) ->  | N25: =IFERROR((VLOOKUP(CONCATENATE(B25,C25),Qui!$D$301:$F$356,3,)),0) -> 0 | O25: 21 | R25: 0 | S25: =IFERROR((VLOOKUP(CONCATENATE(P25,Q25),Qui!$D$301:$F$356,3,0)),0) -> 0
A26: 22 | M26: =SUM(D26:L26*(D26:L26>=LARGE(D26:L26,Qui!$A$402))) ->  | N26: =IFERROR((VLOOKUP(CONCATENATE(B26,C26),Qui!$D$301:$F$356,3,)),0) -> 0 | O26: 22 | R26: 0 | S26: =IFERROR((VLOOKUP(CONCATENATE(P26,Q26),Qui!$D$301:$F$356,3,0)),0) -> 0
A27: 23 | M27: =SUM(D27:L27*(D27:L27>=LARGE(D27:L27,Qui!$A$402))) ->  | N27: =IFERROR((VLOOKUP(CONCATENATE(B27,C27),Qui!$D$301:$F$356,3,)),0) -> 0 | O27: 23 | R27: 0 | S27: =IFERROR((VLOOKUP(CONCATENATE(P27,Q27),Qui!$D$301:$F$356,3,0)),0) -> 0
A28: 24 | M28: =SUM(D28:L28*(D28:L28>=LARGE(D28:L28,Qui!$A$402))) ->  | N28: =IFERROR((VLOOKUP(CONCATENATE(B28,C28),Qui!$D$301:$F$356,3,)),0) -> 0 | O28: 24 | R28: 0 | S28: =IFERROR((VLOOKUP(CONCATENATE(P28,Q28),Qui!$D$301:$F$356,3,0)),0) -> 0
A29: 25 | M29: =SUM(D29:L29*(D29:L29>=LARGE(D29:L29,Qui!$A$402))) ->  | N29: =IFERROR((VLOOKUP(CONCATENATE(B29,C29),Qui!$D$301:$F$356,3,)),0) -> 0 | O29: 25 | R29: 0 | S29: =IFERROR((VLOOKUP(CONCATENATE(P29,Q29),Qui!$D$301:$F$356,3,0)),0) -> 0
A30: 26 | M30: =SUM(D30:L30*(D30:L30>=LARGE(D30:L30,Qui!$A$402))) ->  | N30: =IFERROR((VLOOKUP(CONCATENATE(B30,C30),Qui!$D$301:$F$356,3,)),0) -> 0 | O30: 26 | R30: 0 | S30: =IFERROR((VLOOKUP(CONCATENATE(P30,Q30),Qui!$D$301:$F$356,3,0)),0) -> 0
A31: 27 | M31: =SUM(D31:L31*(D31:L31>=LARGE(D31:L31,Qui!$A$402))) ->  | N31: =IFERROR((VLOOKUP(CONCATENATE(B31,C31),Qui!$D$301:$F$356,3,)),0) -> 0 | O31: 27 | R31: 0 | S31: =IFERROR((VLOOKUP(CONCATENATE(P31,Q31),Qui!$D$301:$F$356,3,0)),0) -> 0
A32: 28 | M32: =SUM(D32:L32*(D32:L32>=LARGE(D32:L32,Qui!$A$402))) ->  | N32: =IFERROR((VLOOKUP(CONCATENATE(B32,C32),Qui!$D$301:$F$356,3,)),0) -> 0 | O32: 28 | R32: 0 | S32: =IFERROR((VLOOKUP(CONCATENATE(P32,Q32),Qui!$D$301:$F$356,3,0)),0) -> 0
A33: 29 | M33: =SUM(D33:L33*(D33:L33>=LARGE(D33:L33,Qui!$A$402))) ->  | N33: =IFERROR((VLOOKUP(CONCATENATE(B33,C33),Qui!$D$301:$F$356,3,)),0) -> 0 | O33: 29 | R33: 0 | S33: =IFERROR((VLOOKUP(CONCATENATE(P33,Q33),Qui!$D$301:$F$356,3,0)),0) -> 0
A34: 30 | M34: =SUM(D34:L34*(D34:L34>=LARGE(D34:L34,Qui!$A$402))) ->  | N34: =IFERROR((VLOOKUP(CONCATENATE(B34,C34),Qui!$D$301:$F$356,3,)),0) -> 0 | O34: 30 | R34: 0 | S34: =IFERROR((VLOOKUP(CONCATENATE(P34,Q34),Qui!$D$301:$F$356,3,0)),0) -> 0
A35: 31 | M35: =SUM(D35:L35*(D35:L35>=LARGE(D35:L35,Qui!$A$402))) ->  | N35: =IFERROR((VLOOKUP(CONCATENATE(B35,C35),Qui!$D$301:$F$356,3,)),0) -> 0 | O35: 31 | R35: 0 | S35: =IFERROR((VLOOKUP(CONCATENATE(P35,Q35),Qui!$D$301:$F$356,3,0)),0) -> 0
A36: 32 | M36: =SUM(D36:L36*(D36:L36>=LARGE(D36:L36,Qui!$A$402))) ->  | N36: =IFERROR((VLOOKUP(CONCATENATE(B36,C36),Qui!$D$301:$F$356,3,)),0) -> 0 | O36: 32 | R36: 0 | S36: =IFERROR((VLOOKUP(CONCATENATE(P36,Q36),Qui!$D$301:$F$356,3,0)),0) -> 0
A37: 33 | M37: =SUM(D37:L37*(D37:L37>=LARGE(D37:L37,Qui!$A$402))) ->  | N37: =IFERROR((VLOOKUP(CONCATENATE(B37,C37),Qui!$D$301:$F$356,3,)),0) -> 0 | O37: 33 | R37: 0 | S37: =IFERROR((VLOOKUP(CONCATENATE(P37,Q37),Qui!$D$301:$F$356,3,0)),0) -> 0
A38: 34 | M38: =SUM(D38:L38*(D38:L38>=LARGE(D38:L38,Qui!$A$402))) ->  | N38: =IFERROR((VLOOKUP(CONCATENATE(B38,C38),Qui!$D$301:$F$356,3,)),0) -> 0 | O38: 34 | R38: 0 | S38: =IFERROR((VLOOKUP(CONCATENATE(P38,Q38),Qui!$D$301:$F$356,3,0)),0) -> 0
A39: 35 | M39: =SUM(D39:L39*(D39:L39>=LARGE(D39:L39,Qui!$A$402))) ->  | N39: =IFERROR((VLOOKUP(CONCATENATE(B39,C39),Qui!$D$301:$F$356,3,)),0) -> 0 | O39: 35 | R39: 0 | S39: =IFERROR((VLOOKUP(CONCATENATE(P39,Q39),Qui!$D$301:$F$356,3,0)),0) -> 0
A40: 36 | D40: 0 | E40: 0 | F40: 0 | G40: 0 | H40: 0 | I40: 0 | J40: 0 | K40: 0 | L40: 0 | M40: =SUM(D40:L40*(D40:L40>=LARGE(D40:L40,Qui!$A$402))) -> 0 | N40: =IFERROR((VLOOKUP(CONCATENATE(B40,C40),Qui!$D$301:$F$356,3,)),0) -> 0 | O40: 36 | R40: 0 | S40: =IFERROR((VLOOKUP(CONCATENATE(P40,Q40),Qui!$D$301:$F$356,3,0)),0) -> 0
A41: 37 | D41: 0 | E41: 0 | F41: 0 | G41: 0 | H41: 0 | I41: 0 | J41: 0 | K41: 0 | L41: 0 | M41: =SUM(D41:L41*(D41:L41>=LARGE(D41:L41,Qui!$A$402))) -> 0 | N41: =IFERROR((VLOOKUP(CONCATENATE(B41,C41),Qui!$D$301:$F$356,3,)),0) -> 0 | O41: 37 | R41: 0 | S41: =IFERROR((VLOOKUP(CONCATENATE(P41,Q41),Qui!$D$301:$F$356,3,0)),0) -> 0
A42: 38 | D42: 0 | E42: 0 | F42: 0 | G42: 0 | H42: 0 | I42: 0 | J42: 0 | K42: 0 | L42: 0 | M42: =SUM(D42:L42*(D42:L42>=LARGE(D42:L42,Qui!$A$402))) -> 0 | N42: =IFERROR((VLOOKUP(CONCATENATE(B42,C42),Qui!$D$301:$F$356,3,)),0) -> 0 | O42: 38 | R42: 0 | S42: =IFERROR((VLOOKUP(CONCATENATE(P42,Q42),Qui!$D$301:$F$356,3,0)),0) -> 0
A43: 39 | D43: 0 | E43: 0 | F43: 0 | G43: 0 | H43: 0 | I43: 0 | J43: 0 | K43: 0 | L43: 0 | M43: =SUM(D43:L43*(D43:L43>=LARGE(D43:L43,Qui!$A$402))) -> 0 | N43: =IFERROR((VLOOKUP(CONCATENATE(B43,C43),Qui!$D$301:$F$356,3,)),0) -> 0 | O43: 39 | R43: 0 | S43: =IFERROR((VLOOKUP(CONCATENATE(P43,Q43),Qui!$D$301:$F$356,3,0)),0) -> 0
A44: 40 | D44: 0 | E44: 0 | F44: 0 | G44: 0 | H44: 0 | I44: 0 | J44: 0 | K44: 0 | L44: 0 | M44: =SUM(D44:L44*(D44:L44>=LARGE(D44:L44,Qui!$A$402))) -> 0 | N44: =IFERROR((VLOOKUP(CONCATENATE(B44,C44),Qui!$D$301:$F$356,3,)),0) -> 0 | O44: 40 | R44: 0 | S44: =IFERROR((VLOOKUP(CONCATENATE(P44,Q44),Qui!$D$301:$F$356,3,0)),0) -> 0
A45: 41 | D45: 0 | E45: 0 | F45: 0 | G45: 0 | H45: 0 | I45: 0 | J45: 0 | K45: 0 | L45: 0 | M45: =SUM(D45:L45*(D45:L45>=LARGE(D45:L45,Qui!$A$402))) -> 0 | N45: =IFERROR((VLOOKUP(CONCATENATE(B45,C45),Qui!$D$301:$F$356,3,)),0) -> 0 | O45: 41 | R45: 0 | S45: =IFERROR((VLOOKUP(CONCATENATE(P45,Q45),Qui!$D$301:$F$356,3,0)),0) -> 0
A46: 42 | D46: 0 | E46: 0 | F46: 0 | G46: 0 | H46: 0 | I46: 0 | J46: 0 | K46: 0 | L46: 0 | M46: =SUM(D46:L46*(D46:L46>=LARGE(D46:L46,Qui!$A$402))) -> 0 | N46: =IFERROR((VLOOKUP(CONCATENATE(B46,C46),Qui!$D$301:$F$356,3,)),0) -> 0 | O46: 42 | R46: 0 | S46: =IFERROR((VLOOKUP(CONCATENATE(P46,Q46),Qui!$D$301:$F$356,3,0)),0) -> 0
A47: 43 | D47: 0 | E47: 0 | F47: 0 | G47: 0 | H47: 0 | I47: 0 | J47: 0 | K47: 0 | L47: 0 | M47: =SUM(D47:L47*(D47:L47>=LARGE(D47:L47,Qui!$A$402))) -> 0 | N47: =IFERROR((VLOOKUP(CONCATENATE(B47,C47),Qui!$D$301:$F$356,3,)),0) -> 0 | O47: 43 | R47: 0 | S47: =IFERROR((VLOOKUP(CONCATENATE(P47,Q47),Qui!$D$301:$F$356,3,0)),0) -> 0
A48: 44 | D48: 0 | E48: 0 | F48: 0 | G48: 0 | H48: 0 | I48: 0 | J48: 0 | K48: 0 | L48: 0 | M48: =SUM(D48:L48*(D48:L48>=LARGE(D48:L48,Qui!$A$402))) -> 0 | N48: =IFERROR((VLOOKUP(CONCATENATE(B48,C48),Qui!$D$301:$F$356,3,)),0) -> 0 | O48: 44 | R48: 0 | S48: =IFERROR((VLOOKUP(CONCATENATE(P48,Q48),Qui!$D$301:$F$356,3,0)),0) -> 0
A49: 45 | D49: 0 | E49: 0 | F49: 0 | G49: 0 | H49: 0 | I49: 0 | J49: 0 | K49: 0 | L49: 0 | M49: =SUM(D49:L49*(D49:L49>=LARGE(D49:L49,Qui!$A$402))) -> 0 | N49: =IFERROR((VLOOKUP(CONCATENATE(B49,C49),Qui!$D$301:$F$356,3,)),0) -> 0 | O49: 45 | R49: 0 | S49: =IFERROR((VLOOKUP(CONCATENATE(P49,Q49),Qui!$D$301:$F$356,3,0)),0) -> 0
A50: 46 | D50: 0 | E50: 0 | F50: 0 | G50: 0 | H50: 0 | I50: 0 | J50: 0 | K50: 0 | L50: 0 | M50: =SUM(D50:L50*(D50:L50>=LARGE(D50:L50,Qui!$A$402))) -> 0 | N50: =IFERROR((VLOOKUP(CONCATENATE(B50,C50),Qui!$D$301:$F$356,3,)),0) -> 0 | O50: 46 | R50: 0 | S50: =IFERROR((VLOOKUP(CONCATENATE(P50,Q50),Qui!$D$301:$F$356,3,0)),0) -> 0
A51: 47 | D51: 0 | E51: 0 | F51: 0 | G51: 0 | H51: 0 | I51: 0 | J51: 0 | K51: 0 | L51: 0 | M51: =SUM(D51:L51*(D51:L51>=LARGE(D51:L51,Qui!$A$402))) -> 0 | N51: =IFERROR((VLOOKUP(CONCATENATE(B51,C51),Qui!$D$301:$F$356,3,)),0) -> 0 | O51: 47 | R51: 0 | S51: =IFERROR((VLOOKUP(CONCATENATE(P51,Q51),Qui!$D$301:$F$356,3,0)),0) -> 0
A52: 48 | D52: 0 | E52: 0 | F52: 0 | G52: 0 | H52: 0 | I52: 0 | J52: 0 | K52: 0 | L52: 0 | M52: =SUM(D52:L52*(D52:L52>=LARGE(D52:L52,Qui!$A$402))) -> 0 | N52: =IFERROR((VLOOKUP(CONCATENATE(B52,C52),Qui!$D$301:$F$356,3,)),0) -> 0 | O52: 48 | R52: 0 | S52: =IFERROR((VLOOKUP(CONCATENATE(P52,Q52),Qui!$D$301:$F$356,3,0)),0) -> 0
A53: 49 | D53: 0 | E53: 0 | F53: 0 | G53: 0 | H53: 0 | I53: 0 | J53: 0 | K53: 0 | L53: 0 | M53: =SUM(D53:L53*(D53:L53>=LARGE(D53:L53,Qui!$A$402))) -> 0 | N53: =IFERROR((VLOOKUP(CONCATENATE(B53,C53),Qui!$D$301:$F$356,3,)),0) -> 0 | O53: 49 | R53: 0 | S53: =IFERROR((VLOOKUP(CONCATENATE(P53,Q53),Qui!$D$301:$F$356,3,0)),0) -> 0
A54: 50 | D54: 0 | E54: 0 | F54: 0 | G54: 0 | H54: 0 | I54: 0 | J54: 0 | K54: 0 | L54: 0 | M54: =SUM(D54:L54*(D54:L54>=LARGE(D54:L54,Qui!$A$402))) -> 0 | N54: =IFERROR((VLOOKUP(CONCATENATE(B54,C54),Qui!$D$301:$F$356,3,)),0) -> 0 | O54: 50 | R54: 0 | S54: =IFERROR((VLOOKUP(CONCATENATE(P54,Q54),Qui!$D$301:$F$356,3,0)),0) -> 0
A55: 51 | D55: 0 | E55: 0 | F55: 0 | G55: 0 | H55: 0 | I55: 0 | J55: 0 | K55: 0 | L55: 0 | M55: =SUM(D55:L55*(D55:L55>=LARGE(D55:L55,Qui!$A$402))) -> 0 | N55: =IFERROR((VLOOKUP(CONCATENATE(B55,C55),Qui!$D$301:$F$356,3,)),0) -> 0 | O55: 51 | R55: 0 | S55: =IFERROR((VLOOKUP(CONCATENATE(P55,Q55),Qui!$D$301:$F$356,3,0)),0) -> 0
A56: 52 | D56: 0 | E56: 0 | F56: 0 | G56: 0 | H56: 0 | I56: 0 | J56: 0 | K56: 0 | L56: 0 | M56: =SUM(D56:L56*(D56:L56>=LARGE(D56:L56,Qui!$A$402))) -> 0 | N56: =IFERROR((VLOOKUP(CONCATENATE(B56,C56),Qui!$D$301:$F$356,3,)),0) -> 0 | O56: 52 | R56: 0 | S56: =IFERROR((VLOOKUP(CONCATENATE(P56,Q56),Qui!$D$301:$F$356,3,0)),0) -> 0
A57: 53 | E57: 0 | F57: 0 | G57: 0 | H57: 0 | I57: 0 | J57: 0 | K57: 0 | L57: 0 | M57: =SUM(D57:L57*(D57:L57>=LARGE(D57:L57,Qui!$A$402))) -> 0 | N57: =IFERROR((VLOOKUP(CONCATENATE(B57,C57),Qui!$D$301:$F$356,3,)),0) -> 0 | O57: 53 | R57: 0 | S57: =IFERROR((VLOOKUP(CONCATENATE(P57,Q57),Qui!$D$301:$F$356,3,0)),0) -> 0
A58: 54 | E58: 0 | F58: 0 | G58: 0 | H58: 0 | I58: 0 | J58: 0 | K58: 0 | L58: 0 | M58: =SUM(D58:L58*(D58:L58>=LARGE(D58:L58,Qui!$A$402))) -> 0 | N58: =IFERROR((VLOOKUP(CONCATENATE(B58,C58),Qui!$D$301:$F$356,3,)),0) -> 0 | O58: 54 | R58: 0 | S58: =IFERROR((VLOOKUP(CONCATENATE(P58,Q58),Qui!$D$301:$F$356,3,0)),0) -> 0
D59: =MAX(D5:D58) -> 0 | F59: =MAX(F5:F58) -> 0 | G59: =MAX(G5:G58) -> 0 | I59: =MAX(I5:I58) -> 0 | J59: =MAX(J5:J58) -> 0 | K59: =MAX(K5:K58) -> 0 | L59: =MAX(L5:L58) -> 0
A60: Classement général par équipe | O60: Classement par équipe
A62: 1 | J62: 418 | M62: =SUM(D62:L62*(D62:L62>=LARGE(D62:L62,Qui!$B$402))) ->  | N62: =VLOOKUP(B62,Qui!$A$201:$D$204,4) ->  | O62: 1 | R62: 0 | S62: =VLOOKUP(P62,Qui!$A$201:$D$204,4) -> 
A63: 2 | J63: 444 | M63: =SUM(D63:L63*(D63:L63>=LARGE(D63:L63,Qui!$B$402))) ->  | N63: =VLOOKUP(B63,Qui!$A$201:$D$204,4) ->  | O63: 2 | R63: 0 | S63: =VLOOKUP(P63,Qui!$A$201:$D$204,4) -> 
A64: 3 | J64: 412 | M64: =SUM(D64:L64*(D64:L64>=LARGE(D64:L64,Qui!$B$402))) ->  | N64: =VLOOKUP(B64,Qui!$A$201:$D$204,4) ->  | O64: 3 | R64: 0 | S64: =VLOOKUP(P64,Qui!$A$201:$D$204,4) -> 
A65: 4 | J65: 426 | M65: =SUM(D65:L65*(D65:L65>=LARGE(D65:L65,Qui!$B$402))) ->  | N65: =VLOOKUP(B65,Qui!$A$201:$D$204,4) ->  | O65: 4 | R65: 0 | S65: =VLOOKUP(P65,Qui!$A$201:$D$204,4) -> 
A66: 5 | E66: 435 | M66: =SUM(D66:L66*(D66:L66>=LARGE(D66:L66,Qui!$B$402))) ->  | N66: =VLOOKUP(B66,Qui!$A$201:$D$204,4) ->  | O66: 5 | R66: =SUMPRODUCT(((($S$5:$S$58=S66)*$R$5:$R$58*1))*((($S$5:$S$58=S66)*$R$5:$R$58*1)>=LARGE((($S$5:$S$58=S66)*$R$5:$R$58*1),Qui!$B$402))) ->  | S66: =VLOOKUP(P66,Qui!$A$201:$D$204,4) -> 
A67: 6 | E67: 435 | M67: =SUM(D67:L67*(D67:L67>=LARGE(D67:L67,Qui!$B$402))) ->  | N67: =VLOOKUP(B67,Qui!$A$201:$D$204,4) ->  | O67: 6 | R67: =SUMPRODUCT(((($S$5:$S$58=S67)*$R$5:$R$58*1))*((($S$5:$S$58=S67)*$R$5:$R$58*1)>=LARGE((($S$5:$S$58=S67)*$R$5:$R$58*1),Qui!$B$402))) ->  | S67: =VLOOKUP(P67,Qui!$A$201:$D$204,4) -> 
D68: =MAX(D62:D67) -> 0 | F68: =MAX(F62:F67) ->  | G68: =MAX(G62:G67) ->  | I68: =MAX(I62:I67) -> 0 | J68: =MAX(J62:J67) ->  | K68: =MAX(K62:K67) -> 0 | L68: =MAX(L62:L67) -> 0 | R68: 0
M69: La Chaux-de-Fonds, le 4 décembre 2019, CM / DP
B71: =CONCATENATE("Rappels :") -> Rappels :
B73: =CONCATENATE("a) le classement général par équipe est fait sur le cumul des ",Qui!$B$402," meilleurs résultats individuels de chaque manche") -> a) le classement général par équipe est fait sur le cumul des 5 meilleurs résultats individuels de chaque manche
B74: =CONCATENATE("b) le classement général individuel est fait sur le cumul des ",Qui!$A$402," meilleurs résultats individuels") -> b) le classement général individuel est fait sur le cumul des 5 meilleurs résultats individuels

Sheet Challenge_1 (hidden)
A1: Association intercantonale des joueurs de boules, Grand Jeu Neuchâtelois
A2: =CONCATENATE(Calendrier!A4," Jeu : ",(Calendrier!F4)) -> Challenge 80ème Jeu : L'Epi
J3: =CONCATENATE("du ",TEXT(Calendrier!F6," jj.mm")," au ",TEXT(Calendrier!F9," jj.mm.aaaa")) -> du 18.03 au 21.03.2024
A4: Classement par équipes | H4: Classement individuel | M4: Equipe | Q4: Equipes possibles | V4: Equipes triées
Q5: N° | R5: Nom | S5: Total équipe | V5: Rang | W5: Nom | X5: Prénom | Y5: Résultat | Z5: TotEquipe | AA5: Equipe
A6: 1er | B6: =IF($D11,(INDEX($Q$6:$S$20,MATCH($AA6,$Q$6:$Q$20,0),2)),0) -> L'Epi I | E6: =VLOOKUP(B6,Qui!$A$201:$D$204,4) -> 4 | F6: 1 | H6: Reichen | I6: Sylvain | J6: 115 | K6: =IFERROR((VLOOKUP(CONCATENATE(H6,I6),Qui!$D$301:$F$356,3,0)),0) -> 4 | M6: E1 | Q6: C1 | R6: La Chaux-de-Fonds I | S6: =SUMIF($M$6:$M$40,"="&$Q6,$J$6:$J$40) -> 300 | V6: 1 | W6: Reichen | X6: Sylvain | Y6: 115 | Z6: =IF($AA6<>"",(IF($Y6,(INDEX($Q$6:$S$20,MATCH($AA6,$Q$6:$Q$20,0),3)),0)),0) -> 414 | AA6: E1
B7: =W6 -> Reichen | C7: Sylvain | D7: 115 | F7: 2 | H7: Bühler | I7: Raymond | J7: 113 | K7: =IFERROR((VLOOKUP(CONCATENATE(H7,I7),Qui!$D$301:$F$356,3,0)),0) -> 0 | M7: E1 | Q7: C2 | R7: La Chaux-de-Fonds II | S7: 134 | V7: 2 | W7: Bühler | X7: Raymond | Y7: 113 | Z7: 414 | AA7: E1
B8: Bühler | C8: Raymond | D8: 113 | F8: 3 | H8: Gerber | I8: Michel | J8: 111 | K8: =IFERROR((VLOOKUP(CONCATENATE(H8,I8),Qui!$D$301:$F$356,3,0)),0) -> 0 | M8: L1 | Q8: E1 | R8: L'Epi I | S8: 414 | V8: 3 | W8: Mores | X8: Blaise | Y8: 94 | Z8: 414 | AA8: E1
B9: Mores | C9: Blaise | D9: 94 | F9: 4 | H9: Tynowski | I9: Lucien | J9: 103 | K9: =IFERROR((VLOOKUP(CONCATENATE(H9,I9),Qui!$D$301:$F$356,3,0)),0) -> 3 | M9: L1 | Q9: E2 | R9: L'Epi II | S9: 192 | V9: 4 | W9: Wäfler | X9: Jean-Louis | Y9: 92 | Z9: 414 | AA9: E1
B10: Wäfler | C10: Jean-Louis | D10: 92 | F10: 5 | H10: Cassi | I10: Alain | J10: 96 | K10: =IFERROR((VLOOKUP(CONCATENATE(H10,I10),Qui!$D$301:$F$356,3,0)),0) -> 3 | M10: L1 | Q10: L1 | R10: Le Locle I | S10: 400 | V10: 5 | W10: Gerber | X10: Michel | Y10: 111 | Z10: 400 | AA10: L1
C11: Total | D11: =SUM(D7:D10) -> 414 | F11: 6 | H11: Dick | I11: Pierre-Alain | J11: 95 | K11: =IFERROR((VLOOKUP(CONCATENATE(H11,I11),Qui!$D$301:$F$356,3,0)),0) -> 2 | M11: V1 | Q11: L2 | R11: Le Locle II | S11: 0 | V11: 6 | W11: Tynowski | X11: Lucien | Y11: 103 | Z11: 400 | AA11: L1
F12: 7 | H12: Mores | I12: Blaise | J12: 94 | K12: =IFERROR((VLOOKUP(CONCATENATE(H12,I12),Qui!$D$301:$F$356,3,0)),0) -> 4 | M12: E1 | Q12: V1 | R12: La Vue-des-Alpes I | S12: 286.1 | V12: 7 | W12: Cassi | X12: Alain | Y12: 96 | Z12: 400 | AA12: L1
A13: 2ème | B13: =IF($D18,(INDEX($Q$6:$S$20,MATCH($AA10,$Q$6:$Q$20,0),2)),0) -> Le Locle I | E13: =VLOOKUP(B13,Qui!$A$201:$D$204,4) -> 3 | F13: 8 | H13: Wäfler | I13: Jean-Louis | J13: 92 | K13: =IFERROR((VLOOKUP(CONCATENATE(H13,I13),Qui!$D$301:$F$356,3,0)),0) -> 4 | M13: E1 | Q13: V2 | R13: La Vue-des-Alpes II | S13: 0 | V13: 8 | W13: Bart | X13: Fabien | Y13: 90 | Z13: 400 | AA13: L1
B14: =W10 -> Gerber | C14: Michel | D14: 111 | F14: 9 | H14: Bart | I14: Fabien | J14: 90 | K14: =IFERROR((VLOOKUP(CONCATENATE(H14,I14),Qui!$D$301:$F$356,3,0)),0) -> 3 | M14: L1 | S14: 201 | V14: 9 | W14: Billod-Morel | X14: Gérald | Y14: 82 | Z14: 300 | AA14: C1
B15: Tynowski | C15: Lucien | D15: 103 | F15: 10 | H15: Jeanneret | I15: Louis | J15: 82 | K15: =IFERROR((VLOOKUP(CONCATENATE(H15,I15),Qui!$D$301:$F$356,3,0)),0) -> 2 | M15: V1 | S15: 201 | V15: 10 | W15: Voirol | X15: Pierre | Y15: 81 | Z15: 300 | AA15: C1
B16: Cassi | C16: Alain | D16: 96 | F16: 11 | H16: Billod-Morel | I16: Gérald | J16: 82 | K16: =IFERROR((VLOOKUP(CONCATENATE(H16,I16),Qui!$D$301:$F$356,3,0)),0) -> 1 | M16: C1 | S16: 201 | V16: 11 | W16: Rollat | X16: Christian | Y16: 76 | Z16: 300 | AA16: C1
B17: Bart | C17: Fabien | D17: 90 | F17: 12 | H17: Voirol | I17: Pierre | J17: 81 | K17: =IFERROR((VLOOKUP(CONCATENATE(H17,I17),Qui!$D$301:$F$356,3,0)),0) -> 1 | M17: C1 | S17: 201 | V17: 12 | W17: Monnier | X17: Christian | Y17: 61 | Z17: 300 | AA17: C1
C18: Total | D18: =SUM(D14:D17) -> 400 | F18: 13 | H18: Pellaton | I18: Daniel | J18: 80 | K18: =IFERROR((VLOOKUP(CONCATENATE(H18,I18),Qui!$D$301:$F$356,3,0)),0) -> 4 | M18: E2 | S18: 201 | V18: 13 | W18: Dick | X18: Pierre-Alain | Y18: 95 | Z18: 286.1 | AA18: V1
F19: 14 | H19: Rollat | I19: Christian | J19: 76 | K19: =IFERROR((VLOOKUP(CONCATENATE(H19,I19),Qui!$D$301:$F$356,3,0)),0) -> 1 | M19: C1 | S19: 201 | V19: 14 | W19: Jeanneret | X19: Louis | Y19: 82 | Z19: 286.1 | AA19: V1
A20: 3ème | B20: =IF($D25,(INDEX($Q$6:$S$20,MATCH($AA14,$Q$6:$Q$20,0),2)),0) -> La Chaux-de-Fonds I | E20: =VLOOKUP(B20,Qui!$A$201:$D$204,4) -> 1 | F20: 15 | H20: Chassot | I20: Yves | J20: 76 | K20: =IFERROR((VLOOKUP(CONCATENATE(H20,I20),Qui!$D$301:$F$356,3,0)),0) -> 2 | M20: V1 | S20: 201 | V20: 15 | W20: Chassot | X20: Yves | Y20: 76 | Z20: 286.1 | AA20: V1
B21: =W14 -> Billod-Morel | C21: Gérald | D21: 82 | F21: 16 | H21: Rossier | I21: Yves-Alain | J21: 69 | K21: =IFERROR((VLOOKUP(CONCATENATE(H21,I21),Qui!$D$301:$F$356,3,0)),0) -> 4 | M21: E2 | V21: 16 | W21: Vuillème | X21: Claude-Alain | Y21: 33.1 | Z21: 286.1 | AA21: V1
B22: Voirol | C22: Pierre | D22: 81 | F22: 17 | H22: Monnier | I22: Christian | J22: 61 | K22: =IFERROR((VLOOKUP(CONCATENATE(H22,I22),Qui!$D$301:$F$356,3,0)),0) -> 1 | M22: C1 | V22: 17 | W22: Pellaton | X22: Daniel | Y22: 80 | Z22: 192 | AA22: E2
B23: Rollat | C23: Christian | D23: 76 | F23: 18 | H23: Dubois | I23: Eric | J23: 59 | K23: =IFERROR((VLOOKUP(CONCATENATE(H23,I23),Qui!$D$301:$F$356,3,0)),0) -> 1 | M23: C2 | V23: 18 | W23: Rossier | X23: Yves-Alain | Y23: 69 | Z23: 192 | AA23: E2
B24: Monnier | C24: Christian | D24: 61 | F24: 19 | H24: Tinguely | I24: Didier | J24: 58 | K24: =IFERROR((VLOOKUP(CONCATENATE(H24,I24),Qui!$D$301:$F$356,3,0)),0) -> 1 | V24: 19 | W24: Frutiger | X24: Bertrand | Y24: 33 | Z24: 192 | AA24: E2
D25: =SUM(D21:D24) -> 300 | F25: 20 | H25: Oppliger | I25: Hervé | J25: 55 | K25: =IFERROR((VLOOKUP(CONCATENATE(H25,I25),Qui!$D$301:$F$356,3,0)),0) -> 2 | V25: 20 | W25: Rindlisbacher | X25: Heinz | Y25: 10 | Z25: 192 | AA25: E2
F26: 21 | H26: Dubois | I26: Marcel | J26: 46 | K26: =IFERROR((VLOOKUP(CONCATENATE(H26,I26),Qui!$D$301:$F$356,3,0)),0) -> 1 | V26: 21 | W26: Dubois | X26: Eric | Y26: 59 | Z26: 134 | AA26: C2
A27: 4ème | B27: =IF($D32,(INDEX($Q$6:$S$20,MATCH($AA18,$Q$6:$Q$20,0),2)),0) -> La Vue-des-Alpes I | E27: =VLOOKUP(B27,Qui!$A$201:$D$204,4) -> 2 | F27: 22 | H27: Haussener | I27: Philippe | J27: 42 | K27: =IFERROR((VLOOKUP(CONCATENATE(H27,I27),Qui!$D$301:$F$356,3,0)),0) -> 2 | V27: 22 | W27: Dubois | X27: Emmanuel | Y27: 38 | Z27: 134 | AA27: C2
B28: =W18 -> Dick | C28: Pierre-Alain | D28: 95 | F28: 23 | H28: Dubois | I28: Emmanuel | J28: 38 | K28: =IFERROR((VLOOKUP(CONCATENATE(H28,I28),Qui!$D$301:$F$356,3,0)),0) -> 1 | M28: C2 | V28: 23 | W28: Matthey | X28: Pierre | Y28: 24 | Z28: 134 | AA28: C2
B29: Jeanneret | C29: Louis | D29: 82 | F29: 24 | H29: Vuillème | I29: Claude-Alain | J29: 33 | K29: =IFERROR((VLOOKUP(CONCATENATE(H29,I29),Qui!$D$301:$F$356,3,0)),0) -> 2 | M29: V1 | V29: 24 | W29: Jean-Mairet | X29: Jean-Claude | Y29: 13 | Z29: 134 | AA29: C2
B30: Chassot | C30: Yves | D30: 76 | F30: 25 | H30: Frutiger | I30: Bertrand | J30: 33 | K30: =IFERROR((VLOOKUP(CONCATENATE(H30,I30),Qui!$D$301:$F$356,3,0)),0) -> 4 | M30: E2 | V30: 25 | W30: Tinguely | X30: Didier | Y30: 58 | Z30: 0
B31: Vuillème | C31: Claude-Alain | D31: 33 | F31: 26 | H31: Matthey | I31: Pierre | J31: 24 | K31: =IFERROR((VLOOKUP(CONCATENATE(H31,I31),Qui!$D$301:$F$356,3,0)),0) -> 1 | M31: C2 | V31: 26 | W31: Oppliger | X31: Hervé | Y31: 55 | Z31: 0
C32: Total | D32: =SUM(D28:D31) -> 286 | F32: 27 | H32: Jean-Mairet | I32: Jean-Claude | J32: 13 | K32: =IFERROR((VLOOKUP(CONCATENATE(H32,I32),Qui!$D$301:$F$356,3,0)),0) -> 1 | M32: C2 | V32: 27 | W32: Dubois | X32: Marcel | Y32: 46 | Z32: 0
F33: 28 | H33: Rindlisbacher | I33: Heinz | J33: 10 | K33: =IFERROR((VLOOKUP(CONCATENATE(H33,I33),Qui!$D$301:$F$356,3,0)),0) -> 4 | M33: E2 | V33: 28 | W33: Haussener | X33: Philippe | Y33: 42 | Z33: 0
A34: 5ème | B34: =IF($D39,(INDEX($Q$6:$S$20,MATCH($AA22,$Q$6:$Q$20,0),2)),0) -> L'Epi II | E34: =VLOOKUP(B34,Qui!$A$201:$D$204,4) -> 4 | F34: 29 | H34: Favre | I34: Daniel | J34: 0 | K34: =IFERROR((VLOOKUP(CONCATENATE(H34,I34),Qui!$D$301:$F$356,3,0)),0) -> 3 | V34: 29 | W34: Favre | X34: Daniel | Y34: 0 | Z34: 0
B35: =W22 -> Pellaton | C35: Daniel | D35: 80 | F35: 30 | H35: Bourquin | I35: Willy | J35: 0 | K35: =IFERROR((VLOOKUP(CONCATENATE(H35,I35),Qui!$D$301:$F$356,3,0)),0) -> 4 | V35: 30 | W35: Bourquin | X35: Willy | Y35: 0 | Z35: 0
B36: Rossier | C36: Yves-Alain | D36: 69 | F36: 31 | H36: Charlet | I36: Léon | J36: 0 | K36: =IFERROR((VLOOKUP(CONCATENATE(H36,I36),Qui!$D$301:$F$356,3,0)),0) -> 0 | V36: 31 | W36: Charlet | X36: Léon | Y36: 0 | Z36: 0
B37: Frutiger | C37: Bertrand | D37: 33 | F37: 32 | H37: Kemajl | I37: Fetahi | J37: 0 | K37: =IFERROR((VLOOKUP(CONCATENATE(H37,I37),Qui!$D$301:$F$356,3,0)),0) -> 3 | V37: 32 | W37: Kemajl | X37: Fetahi | Y37: 0 | Z37: 0
B38: Rindlisbacher | C38: Heinz | D38: 10 | F38: 33 | H38: Geiser | I38: Willy | J38: 0 | K38: =IFERROR((VLOOKUP(CONCATENATE(H38,I38),Qui!$D$301:$F$356,3,0)),0) -> 0 | V38: 33 | W38: Geiser | X38: Willy | Y38: 0 | Z38: =IF($AA38<>"",(IF($Y38,(INDEX($Q$6:$S$20,MATCH($AA38,$Q$6:$Q$20,0),3)),0)),0) -> 0
C39: Total | D39: =SUM(D35:D38) -> 192 | F39: 34 | K39: =IFERROR((VLOOKUP(CONCATENATE(H39,I39),Qui!$D$301:$F$356,3,0)),0) -> 0 | V39: 34 | Z39: 0
F40: 35 | K40: =IFERROR((VLOOKUP(CONCATENATE(H40,I40),Qui!$D$301:$F$356,3,0)),0) -> 0 | V40: 35 | Z40: 0
A41: 6ème | B41: =IF($D46,(INDEX($Q$6:$S$20,MATCH($AA26,$Q$6:$Q$20,0),2)),0) -> La Chaux-de-Fonds II | E41: =VLOOKUP(B41,Qui!$A$201:$D$204,4) -> 1 | F41: 36 | V41: 36 | Z41: 0
B42: =W26 -> Dubois | C42: Eric | D42: 59 | F42: 37 | V42: 37 | Z42: 0
B43: Dubois | C43: Emmanuel | D43: 38 | F43: 38 | V43: 38 | Z43: 0
B44: Matthey | C44: Pierre | D44: 24 | F44: 39 | V44: 39 | Z44: 0
B45: Jean-Mairet | C45: Jean-Claude | D45: 13 | F45: 40 | V45: 40 | Z45: 0
D46: =SUM(D42:D45) -> 134 | F46: 41 | V46: 41 | Z46: 0
F47: 42 | V47: 42 | Z47: 0
A48: 7ème | B48: =IF($D53,(INDEX($Q$6:$S$20,MATCH($AA30,$Q$6:$Q$20,0),2)),0) ->  | E48: =VLOOKUP(B48,Qui!$A$201:$D$204,4) ->  | F48: 43 | V48: 43 | Z48: 0
B49: =W30 -> Tinguely | C49: Didier | D49: 58 | E49: =Z33 -> 0 | F49: 44 | V49: 44 | Z49: 0
B50: Oppliger | C50: Hervé | D50: 55 | F50: 45 | V50: 45 | Z50: 0
B51: Dubois | C51: Marcel | D51: 46 | F51: 46 | V51: 46 | Z51: 0
B52: Haussener | C52: Philippe | D52: 42 | F52: 47 | V52: 47 | Z52: 0
D53: =SUM(D49:D52) -> 201 | F53: 48 | V53: 48 | Z53: 0
A54: 8ème | B54: =IF($D59,(INDEX($Q$6:$S$20,MATCH($AA34,$Q$6:$Q$20,0),2)),0) -> 0 | E54: =VLOOKUP(B54,Qui!$A$201:$D$204,4) ->  | F54: 49 | V54: 49 | Z54: 0
B55: =W34 -> Favre | C55: Daniel | D55: 0
B56: Bourquin | C56: Willy | D56: 0
B57: Charlet | C57: Léon | D57: 0 | H57: =CONCATENATE("Champion de jeu : ",H6," ",I6) -> Champion de jeu : Reichen Sylvain | J57: =J6 -> 115
B58: Kemajl | C58: Fetahi | D58: 0
D59: =SUM(D55:D58) -> 0 | J59: La Chaux-de-Fonds, le 4 avril 2020, cm

Sheet Challenge_2 (hidden)
A1: Association intercantonale des joueurs de boules, Grand Jeu Neuchâtelois
A2: =CONCATENATE(Calendrier!A25," Jeu : ",(Calendrier!F25)) -> Challenge - ÉTÉ (ex Impartial) Jeu :
J3: =CONCATENATE("du ",TEXT(Calendrier!F27," jj.mm")," au ",TEXT(Calendrier!F30," jj.mm.aaaa")) -> du 08.05 au 11.05.2023
A4: Classement par équipe | H4: Classement individuel | M4: Equipe | Q4: Equipes possibles | V4: Equipes triées
Q5: N° | R5: Nom | S5: Total équipe | V5: Rang | W5: Nom | X5: Prénom | Y5: Résultat | Z5: TotEquipe | AA5: Equipe
A6: 1 | B6: La Chaux-de-Fonds | D6: 471 | E6: =VLOOKUP(B6,Qui!$A$201:$D$204,4) -> 1 | F6: 1 | H6: Tynowski | I6: Lucien | J6: 121 | K6: =IFERROR((VLOOKUP(CONCATENATE(H6,I6),Qui!$D$301:$F$356,3,0)),0) -> 3 | Q6: C1 | R6: La Chaux-de-Fonds I | S6: =SUMIF($M$6:$M$40,"="&$Q6,$J$6:$J$40) -> 0 | V6: 1 | W6: Mores | X6: Blaise | Y6: 103 | Z6: =IF($AA6<>"",(IF($Y6,(INDEX($Q$6:$S$20,MATCH($AA6,$Q$6:$Q$20,0),3)),0)),0) -> 0
A7: 2 | B7: Le Locle | D7: 468 | F7: 2 | H7: Favre | I7: Daniel | J7: 111 | K7: =IFERROR((VLOOKUP(CONCATENATE(H7,I7),Qui!$D$301:$F$356,3,0)),0) -> 3 | Q7: C2 | R7: La Chaux-de-Fonds II | S7: 0 | V7: 2 | W7: Tynowski | X7: Lucien | Y7: 101 | Z7: 0
A8: 3 | B8: L'Epi | D8: 416 | F8: 3 | H8: Monnier | I8: Christian | J8: 109 | K8: =IFERROR((VLOOKUP(CONCATENATE(H8,I8),Qui!$D$301:$F$356,3,0)),0) -> 1 | Q8: E1 | R8: L'Epi I | S8: 0 | V8: 3 | W8: Favre | X8: Daniel | Y8: 100 | Z8: 0
A9: 4 | B9: La Vue-des-Alpes | D9: 412 | F9: 4 | H9: Bart | I9: Fabien | J9: 106 | K9: =IFERROR((VLOOKUP(CONCATENATE(H9,I9),Qui!$D$301:$F$356,3,0)),0) -> 3 | Q9: E2 | R9: L'Epi II | S9: 0 | V9: 4 | W9: Monnier | X9: Christian | Y9: 99 | Z9: 0
F10: 5 | H10: Voirol | I10: Pierre | J10: 105 | K10: =IFERROR((VLOOKUP(CONCATENATE(H10,I10),Qui!$D$301:$F$356,3,0)),0) -> 1 | Q10: L1 | R10: Le Locle I | S10: 0 | V10: 5 | W10: Bart | X10: Fabien | Y10: 93 | Z10: 0
F11: 6 | H11: Mores | I11: Blaise | J11: 103 | K11: =IFERROR((VLOOKUP(CONCATENATE(H11,I11),Qui!$D$301:$F$356,3,0)),0) -> 4 | Q11: L2 | R11: Le Locle II | S11: 0 | V11: 6 | W11: Fetahi | X11: Kemajl | Y11: 92 | Z11: 0
F12: 7 | H12: Billod-Morel | I12: Gérald | J12: 99 | K12: =IFERROR((VLOOKUP(CONCATENATE(H12,I12),Qui!$D$301:$F$356,3,0)),0) -> 1 | Q12: V1 | R12: La Vue-des-Alpes I | S12: 0 | V12: 7 | W12: Bourquin | X12: Willy | Y12: 80 | Z12: 0
E13: =VLOOKUP(B13,Qui!$A$201:$D$204,4) ->  | F13: 8 | H13: Dubois | I13: Eric | J13: 92 | K13: =IFERROR((VLOOKUP(CONCATENATE(H13,I13),Qui!$D$301:$F$356,3,0)),0) -> 1 | Q13: V2 | R13: La Vue-des-Alpes II | S13: 0 | V13: 8 | W13: Cassi | X13: Alain | Y13: 78 | Z13: 0
F14: 9 | H14: Frutiger | I14: Bertrand | J14: 92 | K14: =IFERROR((VLOOKUP(CONCATENATE(H14,I14),Qui!$D$301:$F$356,3,0)),0) -> 4 | S14: 2110 | V14: 9 | W14: Dick | X14: Pierre-Alain | Y14: 75 | Z14: 0
F15: 10 | H15: Fetahi | I15: Kemajl | J15: 89 | K15: =IFERROR((VLOOKUP(CONCATENATE(H15,I15),Qui!$D$301:$F$356,3,0)),0) -> 0 | S15: 2110 | V15: 10 | W15: Jeanneret | X15: Louis | Y15: 72 | Z15: 0
F16: 11 | H16: Chassot | I16: Yves-Alain | J16: 87 | K16: =IFERROR((VLOOKUP(CONCATENATE(H16,I16),Qui!$D$301:$F$356,3,0)),0) -> 0 | S16: 2110 | V16: 11 | W16: Frutiger | X16: Bertrand | Y16: 69 | Z16: 0
F17: 12 | H17: Vuillème | I17: Claude-Alain | J17: 85 | K17: =IFERROR((VLOOKUP(CONCATENATE(H17,I17),Qui!$D$301:$F$356,3,0)),0) -> 2 | S17: 2110 | V17: 12 | W17: Bühler | X17: Raymond | Y17: 64 | Z17: 0
F18: 13 | H18: Rossier | I18: Yves-Alain | J18: 84 | K18: =IFERROR((VLOOKUP(CONCATENATE(H18,I18),Qui!$D$301:$F$356,3,0)),0) -> 4 | S18: 2110 | V18: 13 | W18: Chassot | X18: Yves-Alain | Y18: 63 | Z18: 0
F19: 14 | H19: Jeanneret | I19: Louis | J19: 83 | K19: =IFERROR((VLOOKUP(CONCATENATE(H19,I19),Qui!$D$301:$F$356,3,0)),0) -> 2 | S19: 2110 | V19: 14 | W19: Rossier | X19: Yves-Alain | Y19: 60 | Z19: 0
E20: =VLOOKUP(B20,Qui!$A$201:$D$204,4) ->  | F20: 15 | H20: Oppliger | I20: Hervé | J20: 83 | K20: =IFERROR((VLOOKUP(CONCATENATE(H20,I20),Qui!$D$301:$F$356,3,0)),0) -> 2 | S20: 2110 | V20: 15 | W20: Vuillème | X20: Claude-Alain | Y20: 60 | Z20: 0
F21: 16 | H21: Dick | I21: Pierre-Alain | J21: 74 | K21: =IFERROR((VLOOKUP(CONCATENATE(H21,I21),Qui!$D$301:$F$356,3,0)),0) -> 2 | V21: 16 | W21: Oppliger | X21: Hervé | Y21: 57 | Z21: 0
F22: 17 | H22: Pellaton | I22: Daniel | J22: 70 | K22: =IFERROR((VLOOKUP(CONCATENATE(H22,I22),Qui!$D$301:$F$356,3,0)),0) -> 4 | V22: 17 | W22: Pellaton | X22: Daniel | Y22: 54 | Z22: 0
F23: 18 | H23: Bühler | I23: Raymond | J23: 67 | K23: =IFERROR((VLOOKUP(CONCATENATE(H23,I23),Qui!$D$301:$F$356,3,0)),0) -> 0 | V23: 18 | W23: Rollat | X23: Christian | Y23: 50 | Z23: 0
F24: 19 | H24: Dubois | I24: Emmanuel | J24: 66 | K24: =IFERROR((VLOOKUP(CONCATENATE(H24,I24),Qui!$D$301:$F$356,3,0)),0) -> 1 | V24: 19 | W24: Aeschlimann | X24: Louis | Y24: 34 | Z24: 0
F25: 20 | H25: Rollat | I25: Christian | J25: 62 | K25: =IFERROR((VLOOKUP(CONCATENATE(H25,I25),Qui!$D$301:$F$356,3,0)),0) -> 1 | V25: 20 | W25: Voirol | X25: Pierre | Y25: 34 | Z25: 0
F26: 21 | H26: Haussener | I26: Philippe | J26: 58 | K26: =IFERROR((VLOOKUP(CONCATENATE(H26,I26),Qui!$D$301:$F$356,3,0)),0) -> 2 | V26: 21 | W26: Rindlisbacher | X26: Heinz | Y26: 21 | Z26: 0
E27: =VLOOKUP(B27,Qui!$A$201:$D$204,4) ->  | F27: 22 | H27: Bourquin | I27: Willy | J27: 57 | K27: =IFERROR((VLOOKUP(CONCATENATE(H27,I27),Qui!$D$301:$F$356,3,0)),0) -> 4 | V27: 22 | W27: Matthey | X27: Pierre | Y27: 13 | Z27: 0
B28: =W18 -> Chassot | C28: =X18 -> Yves-Alain | F28: 23 | H28: Dubois | I28: Marcel | J28: 48 | K28: =IFERROR((VLOOKUP(CONCATENATE(H28,I28),Qui!$D$301:$F$356,3,0)),0) -> 1 | V28: 23 | W28: Dubois | X28: Marcel | Y28: 9 | Z28: 0
B29: =W19 -> Rossier | C29: Yves-Alain | F29: 24 | H29: Matthey | I29: Pierre | J29: 46 | K29: =IFERROR((VLOOKUP(CONCATENATE(H29,I29),Qui!$D$301:$F$356,3,0)),0) -> 1 | V29: 24 | W29: Billod-Morel | X29: Gérald | Y29: 0 | Z29: 0
B30: =W20 -> Vuillème | C30: Claude-Alain | F30: 25 | H30: Coppey | I30: Romain | J30: 41 | K30: =IFERROR((VLOOKUP(CONCATENATE(H30,I30),Qui!$D$301:$F$356,3,0)),0) -> 0 | V30: 25 | W30: Dubois | X30: Eric | Y30: 0 | Z30: 0
B31: =W21 -> Oppliger | C31: Hervé | F31: 26 | H31: Aeschlimann | I31: Louis | J31: 38 | K31: =IFERROR((VLOOKUP(CONCATENATE(H31,I31),Qui!$D$301:$F$356,3,0)),0) -> 0 | V31: 26 | W31: Jean-Mairet | X31: Jean-Claude | Y31: 0 | Z31: 0
C32: Total | F32: 27 | H32: Jean-Mairet | I32: Jean-Claude | J32: 22 | K32: =IFERROR((VLOOKUP(CONCATENATE(H32,I32),Qui!$D$301:$F$356,3,0)),0) -> 1 | V32: 27 | W32: Dubois | X32: Emmanuel | Y32: 0 | Z32: 0
F33: 28 | H33: Rindlisbacher | I33: Heinz | J33: 12 | K33: =IFERROR((VLOOKUP(CONCATENATE(H33,I33),Qui!$D$301:$F$356,3,0)),0) -> 4 | V33: 28 | W33: Wäfler | X33: Jean-Louis | Y33: 0 | Z33: 0
A34: 5ème | B34: =IF($D39,(INDEX($Q$6:$S$20,MATCH($AA22,$Q$6:$Q$20,0),2)),0) -> 0 | E34: =VLOOKUP(B34,Qui!$A$201:$D$204,4) ->  | F34: 29 | K34: =IFERROR((VLOOKUP(CONCATENATE(H34,I34),Qui!$D$301:$F$356,3,0)),0) -> 0 | V34: 29 | W34: Reichen | X34: Sylvain | Y34: 0 | Z34: 0
B35: =W22 -> Pellaton | C35: =X22 -> Daniel | F35: 30 | K35: =IFERROR((VLOOKUP(CONCATENATE(H35,I35),Qui!$D$301:$F$356,3,0)),0) -> 0 | V35: 30 | W35: Haussener | X35: Philippe | Y35: 0 | Z35: 0
B36: =W23 -> Rollat | C36: Christian | F36: 31 | K36: =IFERROR((VLOOKUP(CONCATENATE(H36,I36),Qui!$D$301:$F$356,3,0)),0) -> 0 | V36: 31 | W36: Charlet | X36: Léon | Y36: 0 | Z36: 0
B37: =W24 -> Aeschlimann | C37: Louis | F37: 32 | K37: =IFERROR((VLOOKUP(CONCATENATE(H37,I37),Qui!$D$301:$F$356,3,0)),0) -> 0 | V37: 32 | Z37: 0
B38: =W25 -> Voirol | C38: Pierre | F38: 33 | K38: =IFERROR((VLOOKUP(CONCATENATE(H38,I38),Qui!$D$301:$F$356,3,0)),0) -> 0 | V38: 33 | Z38: =IF($AA38<>"",(IF($Y38,(INDEX($Q$6:$S$20,MATCH($AA38,$Q$6:$Q$20,0),3)),0)),0) -> 0
C39: Total | F39: 34 | K39: =IFERROR((VLOOKUP(CONCATENATE(H39,I39),Qui!$D$301:$F$356,3,0)),0) -> 0 | V39: 34 | Z39: 0
F40: 35 | K40: =IFERROR((VLOOKUP(CONCATENATE(H40,I40),Qui!$D$301:$F$356,3,0)),0) -> 0 | V40: 35 | Z40: 0
A41: 6ème | B41: =IF($D46,(INDEX($Q$6:$S$20,MATCH($AA26,$Q$6:$Q$20,0),2)),0) -> 0 | E41: =VLOOKUP(B41,Qui!$A$201:$D$204,4) ->  | F41: 36 | V41: 36 | Z41: 0
B42: =W26 -> Rindlisbacher | C42: =X26 -> Heinz | F42: 37 | V42: 37 | Z42: 0
B43: =W27 -> Matthey | C43: Pierre | F43: 38 | V43: 38 | Z43: 0
B44: =W28 -> Dubois | C44: Marcel | F44: 39 | V44: 39 | Z44: 0
B45: =W29 -> Billod-Morel | C45: Gérald | F45: 40 | V45: 40 | Z45: 0
F46: 41 | V46: 41 | Z46: 0
F47: 42 | V47: 42 | Z47: 0
A48: 7ème | B48: =IF($D53,(INDEX($Q$6:$S$20,MATCH($AA30,$Q$6:$Q$20,0),2)),0) -> 0 | E48: =VLOOKUP(B48,Qui!$A$201:$D$204,4) ->  | F48: 43 | V48: 43 | Z48: 0
B49: =W30 -> Dubois | C49: =X30 -> Eric | E49: =Z33 -> 0 | F49: 44 | V49: 44 | Z49: 0
B50: =W31 -> Jean-Mairet | C50: Jean-Claude | F50: 45 | V50: 45 | Z50: 0
B51: =W32 -> Dubois | C51: Emmanuel | F51: 46 | V51: 46 | Z51: 0
B52: =W33 -> Wäfler | C52: Jean-Louis | F52: 47 | V52: 47 | Z52: 0
F53: 48 | V53: 48 | Z53: 0
A54: 8ème | B54: =IF($D59,(INDEX($Q$6:$S$20,MATCH($AA34,$Q$6:$Q$20,0),2)),0) -> 0 | E54: =VLOOKUP(B54,Qui!$A$201:$D$204,4) ->  | F54: 49 | V54: 49 | Z54: 0
B55: =W34 -> Reichen | C55: =X34 -> Sylvain
B56: =W35 -> Haussener | C56: Philippe | D56: 0
B57: =W36 -> Charlet | C57: Léon | D57: 0 | H57: =CONCATENATE("Champion de jeu : ",H6," ",I6) -> Champion de jeu : Tynowski Lucien | J57: =J6 -> 121
B58: =W37 -> 0 | C58: 0 | D58: 0
D59: =SUM(D55:D58) -> 0 | J59: La Chaux-de-Fonds, le 4 avril 2020, cm

Sheet Challenge_GJ (hidden)
A1: Association intercantonale des joueurs de boules, Grand Jeu Neuchâtelois
A2: =CONCATENATE(Calendrier!A11," Jeu : ",(Calendrier!F11)) -> Challenge - ÉTÉ (ex Impartial) Jeu : La Chaux-de-Fonds
J3: =CONCATENATE("du",TEXT(Calendrier!F13," jj.mm")," au",TEXT(Calendrier!F16," jj.mm.aaaa")) -> du 22.04 au 25.04.2024
A4: Classement par équipes | H4: Classement individuel | M4: Club | Q4: Clubs possibles | V4: Equipes triées (RE_xx) | AC4: Clubs tri
Q5: N° | R5: Nom | S5: Total club | V5: Rang | W5: Nom | X5: Prénom | Y5: Résultat | Z5: Total Club | AA5: Club | AC5: N° | AD5: Nom | AE5: Total club
A6: 1er | B6: =IF($D12,(INDEX($Q$6:$S$20,MATCH($AA6,$Q$6:$Q$20,0),2)),0) -> Le Locle | E6: =VLOOKUP(B6,Qui!$A$201:$D$204,4) -> 3 | F6: 1 | H6: Mores | I6: Blaise | J6: 103 | K6: =IFERROR((VLOOKUP(CONCATENATE(H6,I6),Q_NP_ClNom_ClNo,3,0)),0) -> 4 | M6: =K6 -> 4 | Q6: =Qui!D201 -> 1 | R6: =Qui!F201 -> La Chaux-de-Fonds | S6: =SUMPRODUCT(LARGE((CI_NoClub=$Q6)*(CI_Resultat),{1;2;3;4;5})) -> 205 | V6: 1 | W6: Tynowski | X6: Lucien | Y6: 101 | Z6: =IF($AA6<>"",(IF($Y6,(INDEX($Q$6:$S$20,MATCH($AA6,$Q$6:$Q$20,0),3)),0)),0) -> 464 | AA6: 3 | AC6: 4 | AD6: L'Epi | AE6: 444 | AF6: =LARGE(RE_TotClub,1) -> 464 | AG6: =LARGE(RE_TotClub,2) -> 464 | AH6: =LARGE(RE_TotClub,3) -> 464 | AI6: =LARGE(RE_TotClub,4) -> 464 | AK6: =INDEX(RE_TotClub,$AE$6,1) -> 
B7: =W6 -> Tynowski | C7: =X6 -> Lucien | D7: 101 | F7: 2 | H7: Tynowski | I7: Lucien | J7: 101 | K7: 3 | M7: 3 | Q7: =Qui!D202 -> 2 | R7: =Qui!F202 -> La Vue-des-Alpes | S7: =SUMPRODUCT(LARGE((CI_NoClub=$Q7)*(CI_Resultat),{1;2;3;4;5})) -> 327 | V7: 2 | W7: Favre | X7: Daniel | Y7: 100 | Z7: 464 | AA7: 3 | AC7: 3 | AD7: Le Locle | AE7: 333 | AF7: =IF((LARGE(RE_TotClub,1)<AE$6),"qqq",(LARGE(RE_TotClub,1)<AE$6)) -> FALSE | AG7: =LARGE(RE_TotClub,2) -> 464 | AH7: =LARGE(RE_TotClub,3) -> 464 | AI7: =LARGE(RE_TotClub,4) -> 464
B8: =W7 -> Favre | C8: Daniel | D8: 100 | F8: 3 | H8: Favre | I8: Daniel | J8: 100 | K8: 3 | M8: 3 | Q8: =Qui!D203 -> 3 | R8: =Qui!F203 -> Le Locle | S8: =SUMPRODUCT(LARGE((CI_NoClub=$Q8)*(CI_Resultat),{1;2;3;4;5})) -> 464 | V8: 3 | W8: Bart | X8: Fabien | Y8: 93 | Z8: 464 | AA8: 3 | AC8: 2 | AD8: La Vue-des-Alpes | AE8: 223
B9: =W8 -> Bart | C9: Fabien | D9: 93 | F9: 4 | H9: Monnier | I9: Christian | J9: 99 | K9: 1 | M9: 1 | Q9: =Qui!D204 -> 4 | R9: =Qui!F204 -> L'Epi | S9: =SUMPRODUCT(LARGE((CI_NoClub=$Q9)*(CI_Resultat),{1;2;3;4;5})) -> 366 | V9: 4 | W9: Kemajl | X9: Fetahi | Y9: 92 | Z9: 464 | AA9: 3 | AC9: 1 | AD9: La Chaux-de-Fonds | AE9: 111
B10: =W9 -> Kemajl | C10: =X9 -> Fetahi | D10: =Y9 -> 92 | F10: 5 | H10: Bart | I10: Fabien | J10: 93 | K10: 3 | M10: 3 | Q10: =Qui!D205 -> 5 | R10: =Qui!F205 -> 0 | S10: =SUMPRODUCT(LARGE((CI_NoClub=$Q10)*(CI_Resultat),{1;2;3;4;5})) -> 0 | V10: 5 | W10: Cassi | X10: Alain | Y10: 78 | Z10: 464 | AA10: 3 | AC10: 5 | AD10: 0 | AE10: 0
B11: =W10 -> Cassi | C11: =X10 -> Alain | D11: =Y10 -> 78 | F11: 6 | H11: Kemajl | I11: Fetahi | J11: 92 | K11: 3 | M11: 3 | S11: =SUMIF($M$6:$M$40,"="&$Q11,$J$6:$J$40) -> 0 | V11: 6 | W11: Mores | X11: Blaise | Y11: 103 | Z11: 366 | AA11: 4 | AE11: 0
C12: Total | D12: =SUM(D7:D11) -> 464 | F12: 7 | H12: Bourquin | I12: Willy | J12: 80 | K12: 4 | M12: 4 | S12: =SUMIF($M$6:$M$40,"="&$Q12,$J$6:$J$40) -> 0 | V12: 7 | W12: Bourquin | X12: Willy | Y12: 80 | Z12: 366 | AA12: 4 | AE12: 0
F13: 8 | H13: Cassi | I13: Alain | J13: 78 | K13: 3 | M13: 3 | V13: 8 | W13: Frutiger | X13: Bertrand | Y13: 69 | Z13: 366 | AA13: 4
A14: 2ème | B14: =IF($D20,(INDEX($Q$6:$S$20,MATCH($AA10,$Q$6:$Q$20,0),2)),0) -> Le Locle | E14: =VLOOKUP(B14,Qui!$A$201:$D$204,4) -> 3 | F14: 9 | H14: Dick | I14: Pierre-Alain | J14: 75 | K14: 2 | M14: 2 | V14: 9 | W14: Bühler | X14: Raymond | Y14: 64 | Z14: 366 | AA14: 4
B15: =W10 -> Cassi | C15: Alain | D15: 78 | F15: 10 | H15: Jeanneret | I15: Louis | J15: 72 | K15: 2 | M15: 2 | V15: 10 | W15: Rossier | X15: Yves-Alain | Y15: 60 | Z15: 366 | AA15: 4
B16: Mores | C16: Blaise | D16: 103 | F16: 11 | H16: Frutiger | I16: Bertrand | J16: 69 | K16: 4 | M16: 4 | V16: 11 | W16: Pellaton | X16: Daniel | Y16: 54 | Z16: 366 | AA16: 4
B17: Bourquin | C17: Willy | D17: 80 | F17: 12 | H17: Bühler | I17: Raymond | J17: 64 | K17: 0 | M17: 0 | V17: 12 | W17: Aeschlimann | X17: Loris | Y17: 34 | Z17: 366 | AA17: 4
B18: Frutiger | C18: Bertrand | D18: 69 | F18: 13 | H18: Chassot | I18: Yves | J18: 63 | K18: 2 | M18: 2 | V18: 13 | W18: Rindlisbacher | X18: Heinz | Y18: 21 | Z18: 366 | AA18: 4
B19: =W13 -> Frutiger | C19: =X13 -> Bertrand | D19: =Y13 -> 69 | F19: 14 | H19: Rossier | I19: Yves-Alain | J19: 60 | K19: 4 | M19: 4 | V19: 14 | W19: Dick | X19: Pierre-Alain | Y19: 75 | Z19: 327 | AA19: 2
C20: Total | D20: =SUM(D15:D19) -> 399 | F20: 15 | H20: Vuillème | I20: Claude-Alain | J20: 60 | K20: 2 | M20: 2 | V20: 15 | W20: Jeanneret | X20: Louis | Y20: 72 | Z20: 327 | AA20: 2
F21: 16 | H21: Oppliger | I21: Hervé | J21: 57 | K21: 2 | M21: 2 | V21: 16 | W21: Chassot | X21: Yves | Y21: 63 | Z21: 327 | AA21: 2
A22: 3ème | B22: =IF($D28,(INDEX($Q$6:$S$20,MATCH($AA14,$Q$6:$Q$20,0),2)),0) -> L'Epi | E22: =VLOOKUP(B22,Qui!$A$201:$D$204,4) -> 4 | F22: 17 | H22: Pellaton | I22: Daniel | J22: 54 | K22: 4 | M22: 4 | V22: 17 | W22: Vuillème | X22: Claude-Alain | Y22: 60 | Z22: 327 | AA22: 2
B23: =W14 -> Bühler | C23: Raymond | D23: 64 | F23: 18 | H23: Rollat | I23: Christian | J23: 50 | K23: 1 | M23: 1 | V23: 18 | W23: Oppliger | X23: Hervé | Y23: 57 | Z23: 327 | AA23: 2
B24: Rossier | C24: Yves-Alain | D24: 60 | F24: 19 | H24: Aeschlimann | I24: Loris | J24: 34 | K24: 4 | M24: 4 | V24: 19 | W24: Monnier | X24: Christian | Y24: 99 | Z24: 205 | AA24: 1
B25: Pellaton | C25: Daniel | D25: 54 | F25: 20 | H25: Voirol | I25: Pierre | J25: 34 | K25: 1 | M25: 1 | V25: 20 | W25: Rollat | X25: Christian | Y25: 50 | Z25: 205 | AA25: 1
B26: Aeschlimann | C26: Loris | D26: 34 | F26: 21 | H26: Rindlisbacher | I26: Heinz | J26: 21 | K26: 4 | M26: 4 | V26: 21 | W26: Voirol | X26: Pierre | Y26: 34 | Z26: 205 | AA26: 1
B27: =W17 -> Aeschlimann | C27: =X17 -> Loris | D27: =Y17 -> 34 | F27: 22 | H27: Matthey | I27: Pierre | J27: 13 | K27: 1 | M27: 1 | V27: 22 | W27: Matthey | X27: Pierre | Y27: 13 | Z27: 205 | AA27: 1
D28: =SUM(D23:D27) -> 246 | F28: 23 | H28: Dubois | I28: Marcel | J28: 9 | K28: 1 | M28: 1 | V28: 23 | W28: Dubois | X28: Marcel | Y28: 9 | Z28: 205 | AA28: 1
F29: 24 | H29: Billod-Morel | I29: Gérald | J29: 0 | K29: 1 | M29: 1 | V29: 24 | W29: Billod-Morel | X29: Gérald | Y29: 0 | Z29: 0 | AA29: 1
A30: 4ème | B30: =IF($D36,(INDEX($Q$6:$S$20,MATCH($AA18,$Q$6:$Q$20,0),2)),0) -> L'Epi | E30: =VLOOKUP(B30,Qui!$A$201:$D$204,4) -> 4 | F30: 25 | H30: Dubois | I30: Eric | J30: 0 | K30: 1 | M30: 1 | V30: 25 | W30: Dubois | X30: Eric | Y30: 0 | Z30: 0 | AA30: 1
B31: =W18 -> Rindlisbacher | C31: Heinz | D31: 21 | F31: 26 | H31: Jean-Mairet | I31: Jean-Claude | J31: 0 | K31: 1 | M31: 1 | V31: 26 | W31: Jean-Mairet | X31: Jean-Claude | Y31: 0 | Z31: 0 | AA31: 1
B32: Dick | C32: Pierre-Alain | D32: 75 | F32: 27 | H32: Dubois | I32: Emmanuel | J32: 0 | K32: 1 | M32: 1 | V32: 27 | W32: Dubois | X32: Emmanuel | Y32: 0 | Z32: 0 | AA32: 1
B33: Jeanneret | C33: Louis | D33: 72 | F33: 28 | H33: Wäfler | I33: Jean-Louis | J33: 0 | K33: 4 | M33: 4 | V33: 28 | W33: Wäfler | X33: Jean-Louis | Y33: 0 | Z33: 0 | AA33: 4
B34: Chassot | C34: Yves | D34: 63 | F34: 29 | H34: Reichen | I34: Sylvain | J34: 0 | K34: 4 | M34: 4 | V34: 29 | W34: Reichen | X34: Sylvain | Y34: 0 | Z34: 0 | AA34: 4
B35: =W21 -> Chassot | C35: =X21 -> Yves | D35: =Y21 -> 63 | F35: 30 | H35: Haussener | I35: Philippe | J35: 0 | K35: 2 | M35: 2 | V35: 30 | W35: Haussener | X35: Philippe | Y35: 0 | Z35: 0 | AA35: 2
C36: Total | D36: =SUM(D31:D35) -> 294 | F36: 31 | K36: 0 | M36: 0 | V36: 31 | Z36: 0 | AA36: 0
F37: 32 | K37: 0 | M37: 0 | V37: 32 | Z37: 0 | AA37: 0
A38: 5ème | B38: =IF($D43,(INDEX($Q$6:$S$20,MATCH($AA22,$Q$6:$Q$20,0),2)),0) -> La Vue-des-Alpes | E38: =VLOOKUP(B38,Qui!$A$201:$D$204,4) -> 2 | F38: 33 | K38: =IFERROR((VLOOKUP(CONCATENATE(H38,I38),Q_NP_ClNom_ClNo,3,0)),0) -> 0 | M38: 0 | V38: 33 | Z38: =IF($AA38<>"",(IF($Y38,(INDEX($Q$6:$S$20,MATCH($AA38,$Q$6:$Q$20,0),3)),0)),0) -> 0 | AA38: 0
B39: =W22 -> Vuillème | C39: Claude-Alain | D39: 60 | F39: 34 | K39: 0 | V39: 34 | Z39: 0 | AA39: 0
B40: Oppliger | C40: Hervé | D40: 57 | F40: 35 | K40: 0 | V40: 35 | Z40: 0 | AA40: 0
B41: Monnier | C41: Christian | D41: 99 | F41: 36 | K41: 0 | V41: 36 | Z41: 0 | AA41: 0
B42: Rollat | C42: Christian | D42: 50 | F42: 37 | K42: 0 | V42: 37 | Z42: 0 | AA42: 0
C43: Total | D43: =SUM(D39:D42) -> 266 | F43: 38 | K43: 0 | V43: 38 | Z43: 0 | AA43: 0
F44: 39 | K44: 0 | V44: 39 | Z44: 0 | AA44: 0
A45: 6ème | B45: =IF($D51,(INDEX($Q$6:$S$20,MATCH($AA26,$Q$6:$Q$20,0),2)),0) -> La Chaux-de-Fonds | E45: =VLOOKUP(B45,Qui!$A$201:$D$204,4) -> 1 | F45: 40 | K45: 0 | V45: 40 | Z45: 0 | AA45: 0
B46: =W26 -> Voirol | C46: Pierre | D46: 34 | F46: 41 | K46: 0 | V46: 41 | Z46: 0 | AA46: 0
B47: Matthey | C47: Pierre | D47: 13 | F47: 42 | K47: 0 | V47: 42 | Z47: 0 | AA47: 0
B48: Dubois | C48: Marcel | D48: 9 | F48: 43 | K48: 0 | V48: 43 | Z48: 0 | AA48: 0
B49: Billod-Morel | C49: Gérald | D49: 0 | F49: 44 | K49: 0 | V49: 44 | Z49: 0 | AA49: 0
B50: =W29 -> Billod-Morel | C50: =X29 -> Gérald | D50: =Y29 -> 0 | F50: 45 | K50: 0 | V50: 45 | Z50: 0 | AA50: 0
D51: =SUM(D46:D50) -> 56 | F51: 46 | K51: 0 | V51: 46 | Z51: 0 | AA51: 0
F52: 47 | K52: 0 | V52: 47 | Z52: 0 | AA52: 0
F53: 48 | K53: 0 | V53: 48 | Z53: 0 | AA53: 0
F54: 49 | K54: 0 | V54: 49 | Z54: 0 | AA54: 0
H57: =CONCATENATE("Champion de jeu : ",H6," ",I6) -> Champion de jeu : Mores Blaise | J57: =J6 -> 103
J59: La Chaux-de-Fonds, le 4 avril 2020, cm
R62: Résultat club
R63: =LARGE($S$6:$S$12,1) -> 464
R64: =LARGE($S$6:$S$12,2) -> 366
R65: =LARGE($S$6:$S$12,3) -> 327
R66: =LARGE($S$6:$S$12,4) -> 205
R67: =LARGE($S$6:$S$12,5) -> 0
R72: =IF(ROW()=1,#REF!,INDEX($A$2:$A$100,(ROW()-2)*5+5)) -> 
R73: =INDEX(L63:P111,7,2) -> 0
R74: =IF(ROWS(#REF!)>$B$3,"",INDEX(#REF!,SMALL(IF((#REF!>=$B$1)*(#REF!<=$B$2),ROW(#REF!)-ROW(#REF!)+1),ROWS(#REF!)))) -> 
R75: =LARGE(O63:O111,3) ->  | S75: =VLOOKUP(#REF!,$Z$6:$Z$54,1,0) ->  | T75: =VLOOKUP(#REF!,$Z$6:$Z$54,1,0) -> 
R76: =INDEX(L63:N71, 3,2) -> 0 | S76: =VLOOKUP(#REF!,$Z$6:$Z$54,1,0) ->  | T76: =VLOOKUP(#REF!,$Z$6:$Z$54,1,0) -> 
S77: =VLOOKUP(#REF!,$Z$6:$Z$54,1,0) ->  | T77: =VLOOKUP(#REF!,$Z$6:$Z$54,1,0) -> 
S78: =VLOOKUP(#REF!,$Z$6:$Z$54,1,0) ->  | T78: =VLOOKUP(#REF!,$Z$6:$Z$54,1,0) -> 
S79: =VLOOKUP(#REF!,$Z$6:$Z$54,1,0) ->  | T79: =VLOOKUP(#REF!,$Z$6:$Z$54,1,0) -> 
S80: =VLOOKUP(#REF!,$Z$6:$Z$54,1,0) ->  | T80: =VLOOKUP(#REF!,$Z$6:$Z$54,1,0) -> 
S81: =VLOOKUP(#REF!,$Z$6:$Z$54,1,0) ->  | T81: =VLOOKUP(#REF!,$Z$6:$Z$54,1,0) -> 
R84: =INDEX($Z$6:$Z$54,MIN(IF(COUNTIF(#REF!,$Z$6:$Z$54),ROW(O$54)-ROW()+1,ROW($Z$6:$Z$54)-ROW()+1))) -> 

Sheet Champions_AN (hidden)
A1: Association intercantonale des joueurs de boules Grand Jeu Neuchâtelois
B2: =CONCATENATE("Récapitulatif pour l'année ",YEAR(Calendrier!B6)) -> Récapitulatif pour l'année 2024
B6: =Calendrier!A4 -> Challenge 80ème | C6: =Calendrier!F4 -> L'Epi | D6: =Challenge_1!H57 -> Champion de jeu : Reichen Sylvain | E6: =Challenge_1!J57 -> 115
C7: =Challenge_1!J3 -> du 18.03 au 21.03.2024 | D7: =CONCATENATE("Par équipe : ",(Challenge_1!$B$6)) -> Par équipe : L'Epi I | E7: =Challenge_1!D11 -> 414
B9: =Calendrier!A25 -> Challenge - ÉTÉ (ex Impartial) | C9: =Calendrier!F25 -> 0 | D9: =Challenge_2!H42 -> 0 | E9: =Challenge_2!J42 -> 0
C10: =Challenge_2!J3 -> du 08.05 au 11.05.2023 | D10: =CONCATENATE("Par équipe : ",(Challenge_2!$B$6)) -> Par équipe : La Chaux-de-Fonds | E10: =Challenge_2!D11 -> 0
B12: =Calendrier!A11 -> Challenge - ÉTÉ (ex Impartial) | C12: =Calendrier!F11 -> La Chaux-de-Fonds | E12: =Manche_1!$R$5 -> 118
B15: =Calendrier!A18 -> COUPE SUISSE | C15: =Calendrier!F18 -> Evologia
C16: =Calendrier!F23 -> 2024-06-29
B19: =Calendrier!A40 -> Championnat 1ère manche | C19: =Calendrier!F40 -> Grand-Sommartel | D19: =Manche_1!$P$4 -> Champion de jeu : Bart Fabien | E19: =Manche_1!$R$5 -> 118
C20: =Manche_1!U3 -> 26.08 au 29.08.2024 | D20: =CONCATENATE("Par équipe : ",(Manche_1!$P$62)) -> Par équipe : La Vue-des-Alpes | E20: =Manche_1!$R$62 -> 480
B22: =Calendrier!A47 -> Championnat 2ème manche | C22: =Calendrier!F47 -> Le Locle | D22: =Manche_2!$P$4 -> Champion de jeu : Bart Fabien | E22: =Manche_2!$R$5 -> 109
C23: =Manche_2!U3 -> 09.09 au 12.09.2024 | D23: =CONCATENATE("Par équipe : ",(Manche_2!$P$62)) -> Par équipe : La Vue-des-Alpes | E23: =Manche_2!$R$62 -> 0
B25: =Calendrier!A54 -> Championnat 3ème manche | C25: =Calendrier!F54 -> Evologia | D25: =Manche_3!$P$4 -> Champion de jeu : | E25: =Manche_3!$R$5 -> 0
C26: =Manche_3!U3 -> 30.09 au 03.10.2024 | D26: =CONCATENATE("Par équipe : ",(Manche_3!$P$62)) -> Par équipe : | E26: =Manche_3!$R$62 -> 0
B28: =Calendrier!A61 -> Championnat 4ème manche | C28: =Calendrier!F61 -> La Vue-des-Alpes | D28: =Manche_4!$P$4 -> Champion de jeu : | E28: =Manche_4!$R$5 -> 0
C29: =Manche_4!U3 -> 28.10 au 31.10.2024 | D29: =CONCATENATE("Par équipe : ",(Manche_4!$P$62)) -> Par équipe : | E29: =Manche_4!$R$62 -> 0
B31: =Calendrier!A68 -> Championnat 5ème manche | C31: =Calendrier!F68 -> L'Epi | D31: =Manche_5!$P$4 -> Champion de jeu : | E31: =Manche_5!$R$5 -> 0
C32: =Manche_5!U3 -> 11.11 au 14.11.2024 | D32: =CONCATENATE("Par équipe : ",(Manche_5!$P$62)) -> Par équipe : | E32: =Manche_5!$R$62 -> 0
B34: =Calendrier!A75 -> Championnat 6ème manche | C34: =Calendrier!F75 -> La Chaux-de-Fonds | D34: =Manche_6!$P$4 -> Champion de jeu : | E34: =Manche_6!$R$5 -> 0
C35: =Manche_6!U3 -> 25.11 au 28.11.2024 | D35: =CONCATENATE("Par équipe : ",(Manche_6!$P$62)) -> Par équipe : | E35: =Manche_6!$R$62 -> 0
B37: =Calendrier!A82 -> 0 | D37: =Manche_7!$P$4 -> Champion de jeu : | E37: =Manche_7!$R$5 -> 0
B38: =Calendrier!F82 -> 0 | D38: =CONCATENATE("Par équipe : ",(Manche_7!$P$62)) -> Par équipe : | E38: =Manche_7!$R$62 -> 0
B41: Classement général | D41: =CONCATENATE("Champion des jeux : ",Manche_7!$B$5," ",Manche_7!$C$5) -> Champion des jeux : | E41: =Manche_7!$M$5 -> 
D42: =CONCATENATE("Par équipe : ",Manche_7!$B$62) -> Par équipe : | E42: =Manche_7!$M$62 -> 

Sheet A Ameliorer (hidden)
A1: Date | B1: Qui | C1: Accepté | D1: Réalisé | E1: Quoi
A2: 2019-09-01 | B2: Daniel | D2: 2020-02-02 | E2: Mentionner la date d'arrivée dans l'Intercantonale pour chaque joueur ==> jubilaire
A3: 2019-09-01 | B3: Daniel | D3: 2020-02-02 | E3: Mentionner la date de naissance pour chaque joueur ==> sympa
A4: 2019-09-01 | B4: Daniel | C4: 2020-04-09 | E4: Intégrer toutes les compétitions
A5: 2019-10-31 | B5: Daniel | D5: 2019-12-31 | E5: Interdiction de relancer Tri si déjà fait
A6: 2019-09-17 | B6: Daniel | D6: 2019-09-17 | E6: Affichage des chiffres à virgule ==> suppression des décimales
A7: 2019-09-17 | B7: Daniel | D7: 2019-09-17 | E7: Addition totaux équipe manche 2
A8: 2019-10-09 | B8: Daniel | D8: 2019-10-09 | E8: Interdiction de relancer Préparationi déjà fait
C11: 2020-04-09 | E11: Intégrer coupe suisse
C12: 2020-04-10 | E12: Intégrer challenge 70ème
A14: 2020-07-07 | B14: Daniel | D14: 2020-07-07 | E14: Détection de scores identiques et mise en évidence
